{"text_format":"1","workbook":"xlsx","n_sheets":9,"sheets":["Index","Paper 1","Paper 2","Paper 3","CHECK Student Refs are the same","SINGLE Student Analysis","BLANK Analysis","Scaled Score Look Up","Sheet1"],"not_rendered":{"charts":0,"images":0,"macros":1,"external_links":1,"defined_names":63,"comments":0,"pivot_tables":0},"unopened":[],"bounds":{"document_bytes":16777216,"sheet_cells":100000,"rows_first":2000,"rows_last":500,"rows_between":2000,"halvings":0,"cell_chars":16384,"cell_head_chars":4096},"cells_cut":0,"cells_raw":0,"read":"whole","date_system":"1900"}

{"sheet":"Index","index":0,"n_rows":8,"n_cols":2,"rows_kept":8,"cut":false,"hidden":true,"merged":[]}
[]
[null,"INDEX"]
[null,"NCalc Data"]
[null,"Calc Data"]
[null,"Student Reference"]
[null,"Analysis"]
[null,"Hidden"]
[null,"Sheet1"]

{"sheet":"Paper 1","index":1,"n_rows":44,"n_cols":501,"rows_kept":44,"cut":false,"hidden":false,"merged":[[43,0,43,1],[0,1,0,2]]}
["PAPER 2","Enter student names UNDER each number i.e. cells E2, F2, G2, etc",null,1,2,3,4,5,6,7,8,9,10,11,12,13,14,15,16,17,18,19,20,21,22,23,24,25,26,27,28,29,30,31,32,33,34,35,36,37,38,39,40,41,42,43,44,45,46,47,48,49,50,51,52,53,54,55,56,57,58,59,60,61,62,63,64,65,66,67,68,69,70,71,72,73,74,75,76,77,78,79,80,81,82,83,84,85,86,87,88,89,90,91,92,93,94,95,96,97,98,99,100,101,102,103,104,105,106,107,108,109,110,111,112,113,114,115,116,117,118,119,120,121,122,123,124,125,126,127,128,129,130,131,132,133,134,135,136,137,138,139,140,141,142,143,144,145,146,147,148,149,150,151,152,153,154,155,156,157,158,159,160,161,162,163,164,165,166,167,168,169,170,171,172,173,174,175,176,177,178,179,180,181,182,183,184,185,186,187,188,189,190,191,192,193,194,195,196,197,198,199,200,201,202,203,204,205,206,207,208,209,210,211,212,213,214,215,216,217,218,219,220,221,222,223,224,225,226,227,228,229,230,231,232,233,234,235,236,237,238,239,240,241,242,243,244,245,246,247,248,249,250,251,252,253,254,255,256,257,258,259,260,261,262,263,264,265,266,267,268,269,270,271,272,273,274,275,276,277,278,279,280,281,282,283,284,285,286,287,288,289,290,291,292,293,294,295,296,297,298,299,300,301,302,303,304,305,306,307,308,309,310,311,312,313,314,315,316,317,318,319,320,321,322,323,324,325,326,327,328,329,330,331,332,333,334,335,336,337,338,339,340,341,342,343,344,345,346,347,348,349,350,351,352,353,354,355,356,357,358,359,360,361,362,363,364,365,366,367,368,369,370,371,372,373,374,375,376,377,378,379,380,381,382,383,384,385,386,387,388,389,390,391,392,393,394,395,396,397,398,399,400,401,402,403,404,405,406,407,408,409,410,411,412,413,414,415,416,417,418,419,420,421,422,423,424,425,426,427,428,429,430,431,432,433,434,435,436,437,438,439,440,441,442,443,444,445,446,447,448,449,450,451,452,453,454,455,456,457,458,459,460,461,462,463,464,465,466,467,468,469,470,471,472,473,474,475,476,477,478,479,480,481,482,483,484,485,486,487,488,489,490,491,492,493,494,495,496,497,500]
["Questions /","Topic","MAX",null,null,null,null,null,null,null,null,null,null,null,null,null,null,null,null,null,null,null,null,null,null,null,null,null,null,null,null,null,null,null,null,null,null,null,null,null,null,null,null,null,null,null,null,null,null,null,null,null,null,null,null,null,null,null,null,null,null,null,null,null,null,null,null,null,null,null,null,null,null,null,null,null,null,null,null,null,null,null,null,null,null,null,null,null,null,null,null,null,null,null,null,null,null,null,null,null,null,null,null,null,null,null,null,null,null,null,null,null,null,null,null,null,null,null,null,null,null,null,null,null,null,null,null,null,null,null,null,null,null,null,null,null,null,null,null,null,null,null,null,null,null,null,null,null,null,null,null,null,null,null,null,null,null,null,null,null,null,null,null,null,null,null,null,null,null,null,null,null,null,null,null,null,null,null,null,null,null,null,null,null,null,null,null,null,null,null,null,null,null,null,null,null,null,null,null,null,null,null,null,null,null,null,null,null,null,null,null,null,null,null,null,null,null,null,null,null,null,null,null,null,null,null,null,null,null,null,null,null,null,null,null,null,null,null,null,null,null,null,null,null,null,null,null,null,null,null,null,null,null,null,null,null,null,null,null,null,null,null,null,null,null,null,null,null,null,null,null,null,null,null,null,null,null,null,null,null,null,null,null,null,null,null,null,null,null,null,null,null,null,null,null,null,null,null,null,null,null,null,null,null,null,null,null,null,null,null,null,null,null,null,null,null,null,null,null,null,null,null,null,null,null,null,null,null,null,null,null,null,null,null,null,null,null,null,null,null,null,null,null,null,null,null,null,null,null,null,null,null,null,null,null,null,null,null,null,null,null,null,null,null,null,null,null,null,null,null,null,null,null,null,null,null,null,null,null,null,null,null,null,null,null,null,null,null,null,null,null,null,null,null,null,null,null,null,null,null,null,null,null,null,null,null,null,null,null,null,null,null,null,null,null,null,null,null,null,null,null,null,null,null,null,null,null,null,null,null,null,null,null,null,null,null,null,null,null,null,null,null,null,null,null,null,null,null,null,null,null,null,null,null,null,null,null,null,null,null,null,null,null,null,null,null,null,null,null,null,null,null,null,null,null,null,null,null,null,null,null,null,null,null,null,null,null,null,null,null,null,null,null,null,null,null,null,null,null,null,"Example Student "]
[1,"Add 2-digit number and 3-digit number",1,null,null,null,null,null,null,null,null,null,null,null,null,null,null,null,null,null,null,null,null,null,null,null,null,null,null,null,null,null,null,null,null,null,null,null,null,null,null,null,null,null,null,null,null,null,null,null,null,null,null,null,null,null,null,null,null,null,null,null,null,null,null,null,null,null,null,null,null,null,null,null,null,null,null,null,null,null,null,null,null,null,null,null,null,null,null,null,null,null,null,null,null,null,null,null,null,null,null,null,null,null,null,null,null,null,null,null,null,null,null,null,null,null,null,null,null,null,null,null,null,null,null,null,null,null,null,null,null,null,null,null,null,null,null,null,null,null,null,null,null,null,null,null,null,null,null,null,null,null,null,null,null,null,null,null,null,null,null,null,null,null,null,null,null,null,null,null,null,null,null,null,null,null,null,null,null,null,null,null,null,null,null,null,null,null,null,null,null,null,null,null,null,null,null,null,null,null,null,null,null,null,null,null,null,null,null,null,null,null,null,null,null,null,null,null,null,null,null,null,null,null,null,null,null,null,null,null,null,null,null,null,null,null,null,null,null,null,null,null,null,null,null,null,null,null,null,null,null,null,null,null,null,null,null,null,null,null,null,null,null,null,null,null,null,null,null,null,null,null,null,null,null,null,null,null,null,null,null,null,null,null,null,null,null,null,null,null,null,null,null,null,null,null,null,null,null,null,null,null,null,null,null,null,null,null,null,null,null,null,null,null,null,null,null,null,null,null,null,null,null,null,null,null,null,null,null,null,null,null,null,null,null,null,null,null,null,null,null,null,null,null,null,null,null,null,null,null,null,null,null,null,null,null,null,null,null,null,null,null,null,null,null,null,null,null,null,null,null,null,null,null,null,null,null,null,null,null,null,null,null,null,null,null,null,null,null,null,null,null,null,null,null,null,null,null,null,null,null,null,null,null,null,null,null,null,null,null,null,null,null,null,null,null,null,null,null,null,null,null,null,null,null,null,null,null,null,null,null,null,null,null,null,null,null,null,null,null,null,null,null,null,null,null,null,null,null,null,null,null,null,null,null,null,null,null,null,null,null,null,null,null,null,null,null,null,null,null,null,null,null,null,null,null,null,null,null,null,null,null,null,null,null,null,null,null,null,null,null,null,null,null,null,null,null,null,null,null,1]
[2,"Subtract proper fractions with the same denominators ",1,null,null,null,null,null,null,null,null,null,null,null,null,null,null,null,null,null,null,null,null,null,null,null,null,null,null,null,null,null,null,null,null,null,null,null,null,null,null,null,null,null,null,null,null,null,null,null,null,null,null,null,null,null,null,null,null,null,null,null,null,null,null,null,null,null,null,null,null,null,null,null,null,null,null,null,null,null,null,null,null,null,null,null,null,null,null,null,null,null,null,null,null,null,null,null,null,null,null,null,null,null,null,null,null,null,null,null,null,null,null,null,null,null,null,null,null,null,null,null,null,null,null,null,null,null,null,null,null,null,null,null,null,null,null,null,null,null,null,null,null,null,null,null,null,null,null,null,null,null,null,null,null,null,null,null,null,null,null,null,null,null,null,null,null,null,null,null,null,null,null,null,null,null,null,null,null,null,null,null,null,null,null,null,null,null,null,null,null,null,null,null,null,null,null,null,null,null,null,null,null,null,null,null,null,null,null,null,null,null,null,null,null,null,null,null,null,null,null,null,null,null,null,null,null,null,null,null,null,null,null,null,null,null,null,null,null,null,null,null,null,null,null,null,null,null,null,null,null,null,null,null,null,null,null,null,null,null,null,null,null,null,null,null,null,null,null,null,null,null,null,null,null,null,null,null,null,null,null,null,null,null,null,null,null,null,null,null,null,null,null,null,null,null,null,null,null,null,null,null,null,null,null,null,null,null,null,null,null,null,null,null,null,null,null,null,null,null,null,null,null,null,null,null,null,null,null,null,null,null,null,null,null,null,null,null,null,null,null,null,null,null,null,null,null,null,null,null,null,null,null,null,null,null,null,null,null,null,null,null,null,null,null,null,null,null,null,null,null,null,null,null,null,null,null,null,null,null,null,null,null,null,null,null,null,null,null,null,null,null,null,null,null,null,null,null,null,null,null,null,null,null,null,null,null,null,null,null,null,null,null,null,null,null,null,null,null,null,null,null,null,null,null,null,null,null,null,null,null,null,null,null,null,null,null,null,null,null,null,null,null,null,null,null,null,null,null,null,null,null,null,null,null,null,null,null,null,null,null,null,null,null,null,null,null,null,null,null,null,null,null,null,null,null,null,null,null,null,null,null,null,null,null,null,null,null,null,null,null,null,null,null,null,null,null,null,null,null,2]
[3,"Multiply 1-digit number by 2-digit number",1,null,null,null,null,null,null,null,null,null,null,null,null,null,null,null,null,null,null,null,null,null,null,null,null,null,null,null,null,null,null,null,null,null,null,null,null,null,null,null,null,null,null,null,null,null,null,null,null,null,null,null,null,null,null,null,null,null,null,null,null,null,null,null,null,null,null,null,null,null,null,null,null,null,null,null,null,null,null,null,null,null,null,null,null,null,null,null,null,null,null,null,null,null,null,null,null,null,null,null,null,null,null,null,null,null,null,null,null,null,null,null,null,null,null,null,null,null,null,null,null,null,null,null,null,null,null,null,null,null,null,null,null,null,null,null,null,null,null,null,null,null,null,null,null,null,null,null,null,null,null,null,null,null,null,null,null,null,null,null,null,null,null,null,null,null,null,null,null,null,null,null,null,null,null,null,null,null,null,null,null,null,null,null,null,null,null,null,null,null,null,null,null,null,null,null,null,null,null,null,null,null,null,null,null,null,null,null,null,null,null,null,null,null,null,null,null,null,null,null,null,null,null,null,null,null,null,null,null,null,null,null,null,null,null,null,null,null,null,null,null,null,null,null,null,null,null,null,null,null,null,null,null,null,null,null,null,null,null,null,null,null,null,null,null,null,null,null,null,null,null,null,null,null,null,null,null,null,null,null,null,null,null,null,null,null,null,null,null,null,null,null,null,null,null,null,null,null,null,null,null,null,null,null,null,null,null,null,null,null,null,null,null,null,null,null,null,null,null,null,null,null,null,null,null,null,null,null,null,null,null,null,null,null,null,null,null,null,null,null,null,null,null,null,null,null,null,null,null,null,null,null,null,null,null,null,null,null,null,null,null,null,null,null,null,null,null,null,null,null,null,null,null,null,null,null,null,null,null,null,null,null,null,null,null,null,null,null,null,null,null,null,null,null,null,null,null,null,null,null,null,null,null,null,null,null,null,null,null,null,null,null,null,null,null,null,null,null,null,null,null,null,null,null,null,null,null,null,null,null,null,null,null,null,null,null,null,null,null,null,null,null,null,null,null,null,null,null,null,null,null,null,null,null,null,null,null,null,null,null,null,null,null,null,null,null,null,null,null,null,null,null,null,null,null,null,null,null,null,null,null,null,null,null,null,null,null,null,null,null,null,null,null,null,null,null,null,null,3]
[4,"Divide 3-digit number by 1",1,null,null,null,null,null,null,null,null,null,null,null,null,null,null,null,null,null,null,null,null,null,null,null,null,null,null,null,null,null,null,null,null,null,null,null,null,null,null,null,null,null,null,null,null,null,null,null,null,null,null,null,null,null,null,null,null,null,null,null,null,null,null,null,null,null,null,null,null,null,null,null,null,null,null,null,null,null,null,null,null,null,null,null,null,null,null,null,null,null,null,null,null,null,null,null,null,null,null,null,null,null,null,null,null,null,null,null,null,null,null,null,null,null,null,null,null,null,null,null,null,null,null,null,null,null,null,null,null,null,null,null,null,null,null,null,null,null,null,null,null,null,null,null,null,null,null,null,null,null,null,null,null,null,null,null,null,null,null,null,null,null,null,null,null,null,null,null,null,null,null,null,null,null,null,null,null,null,null,null,null,null,null,null,null,null,null,null,null,null,null,null,null,null,null,null,null,null,null,null,null,null,null,null,null,null,null,null,null,null,null,null,null,null,null,null,null,null,null,null,null,null,null,null,null,null,null,null,null,null,null,null,null,null,null,null,null,null,null,null,null,null,null,null,null,null,null,null,null,null,null,null,null,null,null,null,null,null,null,null,null,null,null,null,null,null,null,null,null,null,null,null,null,null,null,null,null,null,null,null,null,null,null,null,null,null,null,null,null,null,null,null,null,null,null,null,null,null,null,null,null,null,null,null,null,null,null,null,null,null,null,null,null,null,null,null,null,null,null,null,null,null,null,null,null,null,null,null,null,null,null,null,null,null,null,null,null,null,null,null,null,null,null,null,null,null,null,null,null,null,null,null,null,null,null,null,null,null,null,null,null,null,null,null,null,null,null,null,null,null,null,null,null,null,null,null,null,null,null,null,null,null,null,null,null,null,null,null,null,null,null,null,null,null,null,null,null,null,null,null,null,null,null,null,null,null,null,null,null,null,null,null,null,null,null,null,null,null,null,null,null,null,null,null,null,null,null,null,null,null,null,null,null,null,null,null,null,null,null,null,null,null,null,null,null,null,null,null,null,null,null,null,null,null,null,null,null,null,null,null,null,null,null,null,null,null,null,null,null,null,null,null,null,null,null,null,null,null,null,null,null,null,null,null,null,null,null,null,null,null,null,null,null,null,null,null,null,null,4]
[5,"Know the 11 Times Table division facts",1,null,null,null,null,null,null,null,null,null,null,null,null,null,null,null,null,null,null,null,null,null,null,null,null,null,null,null,null,null,null,null,null,null,null,null,null,null,null,null,null,null,null,null,null,null,null,null,null,null,null,null,null,null,null,null,null,null,null,null,null,null,null,null,null,null,null,null,null,null,null,null,null,null,null,null,null,null,null,null,null,null,null,null,null,null,null,null,null,null,null,null,null,null,null,null,null,null,null,null,null,null,null,null,null,null,null,null,null,null,null,null,null,null,null,null,null,null,null,null,null,null,null,null,null,null,null,null,null,null,null,null,null,null,null,null,null,null,null,null,null,null,null,null,null,null,null,null,null,null,null,null,null,null,null,null,null,null,null,null,null,null,null,null,null,null,null,null,null,null,null,null,null,null,null,null,null,null,null,null,null,null,null,null,null,null,null,null,null,null,null,null,null,null,null,null,null,null,null,null,null,null,null,null,null,null,null,null,null,null,null,null,null,null,null,null,null,null,null,null,null,null,null,null,null,null,null,null,null,null,null,null,null,null,null,null,null,null,null,null,null,null,null,null,null,null,null,null,null,null,null,null,null,null,null,null,null,null,null,null,null,null,null,null,null,null,null,null,null,null,null,null,null,null,null,null,null,null,null,null,null,null,null,null,null,null,null,null,null,null,null,null,null,null,null,null,null,null,null,null,null,null,null,null,null,null,null,null,null,null,null,null,null,null,null,null,null,null,null,null,null,null,null,null,null,null,null,null,null,null,null,null,null,null,null,null,null,null,null,null,null,null,null,null,null,null,null,null,null,null,null,null,null,null,null,null,null,null,null,null,null,null,null,null,null,null,null,null,null,null,null,null,null,null,null,null,null,null,null,null,null,null,null,null,null,null,null,null,null,null,null,null,null,null,null,null,null,null,null,null,null,null,null,null,null,null,null,null,null,null,null,null,null,null,null,null,null,null,null,null,null,null,null,null,null,null,null,null,null,null,null,null,null,null,null,null,null,null,null,null,null,null,null,null,null,null,null,null,null,null,null,null,null,null,null,null,null,null,null,null,null,null,null,null,null,null,null,null,null,null,null,null,null,null,null,null,null,null,null,null,null,null,null,null,null,null,null,null,null,null,null,null,null,null,null,null,null,null,5]
[6,"Multiply three numbers together",1,null,null,null,null,null,null,null,null,null,null,null,null,null,null,null,null,null,null,null,null,null,null,null,null,null,null,null,null,null,null,null,null,null,null,null,null,null,null,null,null,null,null,null,null,null,null,null,null,null,null,null,null,null,null,null,null,null,null,null,null,null,null,null,null,null,null,null,null,null,null,null,null,null,null,null,null,null,null,null,null,null,null,null,null,null,null,null,null,null,null,null,null,null,null,null,null,null,null,null,null,null,null,null,null,null,null,null,null,null,null,null,null,null,null,null,null,null,null,null,null,null,null,null,null,null,null,null,null,null,null,null,null,null,null,null,null,null,null,null,null,null,null,null,null,null,null,null,null,null,null,null,null,null,null,null,null,null,null,null,null,null,null,null,null,null,null,null,null,null,null,null,null,null,null,null,null,null,null,null,null,null,null,null,null,null,null,null,null,null,null,null,null,null,null,null,null,null,null,null,null,null,null,null,null,null,null,null,null,null,null,null,null,null,null,null,null,null,null,null,null,null,null,null,null,null,null,null,null,null,null,null,null,null,null,null,null,null,null,null,null,null,null,null,null,null,null,null,null,null,null,null,null,null,null,null,null,null,null,null,null,null,null,null,null,null,null,null,null,null,null,null,null,null,null,null,null,null,null,null,null,null,null,null,null,null,null,null,null,null,null,null,null,null,null,null,null,null,null,null,null,null,null,null,null,null,null,null,null,null,null,null,null,null,null,null,null,null,null,null,null,null,null,null,null,null,null,null,null,null,null,null,null,null,null,null,null,null,null,null,null,null,null,null,null,null,null,null,null,null,null,null,null,null,null,null,null,null,null,null,null,null,null,null,null,null,null,null,null,null,null,null,null,null,null,null,null,null,null,null,null,null,null,null,null,null,null,null,null,null,null,null,null,null,null,null,null,null,null,null,null,null,null,null,null,null,null,null,null,null,null,null,null,null,null,null,null,null,null,null,null,null,null,null,null,null,null,null,null,null,null,null,null,null,null,null,null,null,null,null,null,null,null,null,null,null,null,null,null,null,null,null,null,null,null,null,null,null,null,null,null,null,null,null,null,null,null,null,null,null,null,null,null,null,null,null,null,null,null,null,null,null,null,null,null,null,null,null,null,null,null,null,null,null,null,null,null,null,6]
[7,"Subtract 3-digit number from 4-digit number ",1,null,null,null,null,null,null,null,null,null,null,null,null,null,null,null,null,null,null,null,null,null,null,null,null,null,null,null,null,null,null,null,null,null,null,null,null,null,null,null,null,null,null,null,null,null,null,null,null,null,null,null,null,null,null,null,null,null,null,null,null,null,null,null,null,null,null,null,null,null,null,null,null,null,null,null,null,null,null,null,null,null,null,null,null,null,null,null,null,null,null,null,null,null,null,null,null,null,null,null,null,null,null,null,null,null,null,null,null,null,null,null,null,null,null,null,null,null,null,null,null,null,null,null,null,null,null,null,null,null,null,null,null,null,null,null,null,null,null,null,null,null,null,null,null,null,null,null,null,null,null,null,null,null,null,null,null,null,null,null,null,null,null,null,null,null,null,null,null,null,null,null,null,null,null,null,null,null,null,null,null,null,null,null,null,null,null,null,null,null,null,null,null,null,null,null,null,null,null,null,null,null,null,null,null,null,null,null,null,null,null,null,null,null,null,null,null,null,null,null,null,null,null,null,null,null,null,null,null,null,null,null,null,null,null,null,null,null,null,null,null,null,null,null,null,null,null,null,null,null,null,null,null,null,null,null,null,null,null,null,null,null,null,null,null,null,null,null,null,null,null,null,null,null,null,null,null,null,null,null,null,null,null,null,null,null,null,null,null,null,null,null,null,null,null,null,null,null,null,null,null,null,null,null,null,null,null,null,null,null,null,null,null,null,null,null,null,null,null,null,null,null,null,null,null,null,null,null,null,null,null,null,null,null,null,null,null,null,null,null,null,null,null,null,null,null,null,null,null,null,null,null,null,null,null,null,null,null,null,null,null,null,null,null,null,null,null,null,null,null,null,null,null,null,null,null,null,null,null,null,null,null,null,null,null,null,null,null,null,null,null,null,null,null,null,null,null,null,null,null,null,null,null,null,null,null,null,null,null,null,null,null,null,null,null,null,null,null,null,null,null,null,null,null,null,null,null,null,null,null,null,null,null,null,null,null,null,null,null,null,null,null,null,null,null,null,null,null,null,null,null,null,null,null,null,null,null,null,null,null,null,null,null,null,null,null,null,null,null,null,null,null,null,null,null,null,null,null,null,null,null,null,null,null,null,null,null,null,null,null,null,null,null,null,null,null,null,null,7]
[8,"Know and use square numbers",1,null,null,null,null,null,null,null,null,null,null,null,null,null,null,null,null,null,null,null,null,null,null,null,null,null,null,null,null,null,null,null,null,null,null,null,null,null,null,null,null,null,null,null,null,null,null,null,null,null,null,null,null,null,null,null,null,null,null,null,null,null,null,null,null,null,null,null,null,null,null,null,null,null,null,null,null,null,null,null,null,null,null,null,null,null,null,null,null,null,null,null,null,null,null,null,null,null,null,null,null,null,null,null,null,null,null,null,null,null,null,null,null,null,null,null,null,null,null,null,null,null,null,null,null,null,null,null,null,null,null,null,null,null,null,null,null,null,null,null,null,null,null,null,null,null,null,null,null,null,null,null,null,null,null,null,null,null,null,null,null,null,null,null,null,null,null,null,null,null,null,null,null,null,null,null,null,null,null,null,null,null,null,null,null,null,null,null,null,null,null,null,null,null,null,null,null,null,null,null,null,null,null,null,null,null,null,null,null,null,null,null,null,null,null,null,null,null,null,null,null,null,null,null,null,null,null,null,null,null,null,null,null,null,null,null,null,null,null,null,null,null,null,null,null,null,null,null,null,null,null,null,null,null,null,null,null,null,null,null,null,null,null,null,null,null,null,null,null,null,null,null,null,null,null,null,null,null,null,null,null,null,null,null,null,null,null,null,null,null,null,null,null,null,null,null,null,null,null,null,null,null,null,null,null,null,null,null,null,null,null,null,null,null,null,null,null,null,null,null,null,null,null,null,null,null,null,null,null,null,null,null,null,null,null,null,null,null,null,null,null,null,null,null,null,null,null,null,null,null,null,null,null,null,null,null,null,null,null,null,null,null,null,null,null,null,null,null,null,null,null,null,null,null,null,null,null,null,null,null,null,null,null,null,null,null,null,null,null,null,null,null,null,null,null,null,null,null,null,null,null,null,null,null,null,null,null,null,null,null,null,null,null,null,null,null,null,null,null,null,null,null,null,null,null,null,null,null,null,null,null,null,null,null,null,null,null,null,null,null,null,null,null,null,null,null,null,null,null,null,null,null,null,null,null,null,null,null,null,null,null,null,null,null,null,null,null,null,null,null,null,null,null,null,null,null,null,null,null,null,null,null,null,null,null,null,null,null,null,null,null,null,null,null,null,null,null,null,8]
[9,"Add decimal numbers (2dp + 1dp)",1,null,null,null,null,null,null,null,null,null,null,null,null,null,null,null,null,null,null,null,null,null,null,null,null,null,null,null,null,null,null,null,null,null,null,null,null,null,null,null,null,null,null,null,null,null,null,null,null,null,null,null,null,null,null,null,null,null,null,null,null,null,null,null,null,null,null,null,null,null,null,null,null,null,null,null,null,null,null,null,null,null,null,null,null,null,null,null,null,null,null,null,null,null,null,null,null,null,null,null,null,null,null,null,null,null,null,null,null,null,null,null,null,null,null,null,null,null,null,null,null,null,null,null,null,null,null,null,null,null,null,null,null,null,null,null,null,null,null,null,null,null,null,null,null,null,null,null,null,null,null,null,null,null,null,null,null,null,null,null,null,null,null,null,null,null,null,null,null,null,null,null,null,null,null,null,null,null,null,null,null,null,null,null,null,null,null,null,null,null,null,null,null,null,null,null,null,null,null,null,null,null,null,null,null,null,null,null,null,null,null,null,null,null,null,null,null,null,null,null,null,null,null,null,null,null,null,null,null,null,null,null,null,null,null,null,null,null,null,null,null,null,null,null,null,null,null,null,null,null,null,null,null,null,null,null,null,null,null,null,null,null,null,null,null,null,null,null,null,null,null,null,null,null,null,null,null,null,null,null,null,null,null,null,null,null,null,null,null,null,null,null,null,null,null,null,null,null,null,null,null,null,null,null,null,null,null,null,null,null,null,null,null,null,null,null,null,null,null,null,null,null,null,null,null,null,null,null,null,null,null,null,null,null,null,null,null,null,null,null,null,null,null,null,null,null,null,null,null,null,null,null,null,null,null,null,null,null,null,null,null,null,null,null,null,null,null,null,null,null,null,null,null,null,null,null,null,null,null,null,null,null,null,null,null,null,null,null,null,null,null,null,null,null,null,null,null,null,null,null,null,null,null,null,null,null,null,null,null,null,null,null,null,null,null,null,null,null,null,null,null,null,null,null,null,null,null,null,null,null,null,null,null,null,null,null,null,null,null,null,null,null,null,null,null,null,null,null,null,null,null,null,null,null,null,null,null,null,null,null,null,null,null,null,null,null,null,null,null,null,null,null,null,null,null,null,null,null,null,null,null,null,null,null,null,null,null,null,null,null,null,null,null,null,null,null,null,null,9]
[10,"Find 10 less than a number",1,null,null,null,null,null,null,null,null,null,null,null,null,null,null,null,null,null,null,null,null,null,null,null,null,null,null,null,null,null,null,null,null,null,null,null,null,null,null,null,null,null,null,null,null,null,null,null,null,null,null,null,null,null,null,null,null,null,null,null,null,null,null,null,null,null,null,null,null,null,null,null,null,null,null,null,null,null,null,null,null,null,null,null,null,null,null,null,null,null,null,null,null,null,null,null,null,null,null,null,null,null,null,null,null,null,null,null,null,null,null,null,null,null,null,null,null,null,null,null,null,null,null,null,null,null,null,null,null,null,null,null,null,null,null,null,null,null,null,null,null,null,null,null,null,null,null,null,null,null,null,null,null,null,null,null,null,null,null,null,null,null,null,null,null,null,null,null,null,null,null,null,null,null,null,null,null,null,null,null,null,null,null,null,null,null,null,null,null,null,null,null,null,null,null,null,null,null,null,null,null,null,null,null,null,null,null,null,null,null,null,null,null,null,null,null,null,null,null,null,null,null,null,null,null,null,null,null,null,null,null,null,null,null,null,null,null,null,null,null,null,null,null,null,null,null,null,null,null,null,null,null,null,null,null,null,null,null,null,null,null,null,null,null,null,null,null,null,null,null,null,null,null,null,null,null,null,null,null,null,null,null,null,null,null,null,null,null,null,null,null,null,null,null,null,null,null,null,null,null,null,null,null,null,null,null,null,null,null,null,null,null,null,null,null,null,null,null,null,null,null,null,null,null,null,null,null,null,null,null,null,null,null,null,null,null,null,null,null,null,null,null,null,null,null,null,null,null,null,null,null,null,null,null,null,null,null,null,null,null,null,null,null,null,null,null,null,null,null,null,null,null,null,null,null,null,null,null,null,null,null,null,null,null,null,null,null,null,null,null,null,null,null,null,null,null,null,null,null,null,null,null,null,null,null,null,null,null,null,null,null,null,null,null,null,null,null,null,null,null,null,null,null,null,null,null,null,null,null,null,null,null,null,null,null,null,null,null,null,null,null,null,null,null,null,null,null,null,null,null,null,null,null,null,null,null,null,null,null,null,null,null,null,null,null,null,null,null,null,null,null,null,null,null,null,null,null,null,null,null,null,null,null,null,null,null,null,null,null,null,null,null,null,null,null,null,null,null,10]
[11,"Use 3 Times Tables to find related facts",1,null,null,null,null,null,null,null,null,null,null,null,null,null,null,null,null,null,null,null,null,null,null,null,null,null,null,null,null,null,null,null,null,null,null,null,null,null,null,null,null,null,null,null,null,null,null,null,null,null,null,null,null,null,null,null,null,null,null,null,null,null,null,null,null,null,null,null,null,null,null,null,null,null,null,null,null,null,null,null,null,null,null,null,null,null,null,null,null,null,null,null,null,null,null,null,null,null,null,null,null,null,null,null,null,null,null,null,null,null,null,null,null,null,null,null,null,null,null,null,null,null,null,null,null,null,null,null,null,null,null,null,null,null,null,null,null,null,null,null,null,null,null,null,null,null,null,null,null,null,null,null,null,null,null,null,null,null,null,null,null,null,null,null,null,null,null,null,null,null,null,null,null,null,null,null,null,null,null,null,null,null,null,null,null,null,null,null,null,null,null,null,null,null,null,null,null,null,null,null,null,null,null,null,null,null,null,null,null,null,null,null,null,null,null,null,null,null,null,null,null,null,null,null,null,null,null,null,null,null,null,null,null,null,null,null,null,null,null,null,null,null,null,null,null,null,null,null,null,null,null,null,null,null,null,null,null,null,null,null,null,null,null,null,null,null,null,null,null,null,null,null,null,null,null,null,null,null,null,null,null,null,null,null,null,null,null,null,null,null,null,null,null,null,null,null,null,null,null,null,null,null,null,null,null,null,null,null,null,null,null,null,null,null,null,null,null,null,null,null,null,null,null,null,null,null,null,null,null,null,null,null,null,null,null,null,null,null,null,null,null,null,null,null,null,null,null,null,null,null,null,null,null,null,null,null,null,null,null,null,null,null,null,null,null,null,null,null,null,null,null,null,null,null,null,null,null,null,null,null,null,null,null,null,null,null,null,null,null,null,null,null,null,null,null,null,null,null,null,null,null,null,null,null,null,null,null,null,null,null,null,null,null,null,null,null,null,null,null,null,null,null,null,null,null,null,null,null,null,null,null,null,null,null,null,null,null,null,null,null,null,null,null,null,null,null,null,null,null,null,null,null,null,null,null,null,null,null,null,null,null,null,null,null,null,null,null,null,null,null,null,null,null,null,null,null,null,null,null,null,null,null,null,null,null,null,null,null,null,null,null,null,null,null,null,null,null,null,11]
[12,"Use 9 Times Tables to find related facts",1,null,null,null,null,null,null,null,null,null,null,null,null,null,null,null,null,null,null,null,null,null,null,null,null,null,null,null,null,null,null,null,null,null,null,null,null,null,null,null,null,null,null,null,null,null,null,null,null,null,null,null,null,null,null,null,null,null,null,null,null,null,null,null,null,null,null,null,null,null,null,null,null,null,null,null,null,null,null,null,null,null,null,null,null,null,null,null,null,null,null,null,null,null,null,null,null,null,null,null,null,null,null,null,null,null,null,null,null,null,null,null,null,null,null,null,null,null,null,null,null,null,null,null,null,null,null,null,null,null,null,null,null,null,null,null,null,null,null,null,null,null,null,null,null,null,null,null,null,null,null,null,null,null,null,null,null,null,null,null,null,null,null,null,null,null,null,null,null,null,null,null,null,null,null,null,null,null,null,null,null,null,null,null,null,null,null,null,null,null,null,null,null,null,null,null,null,null,null,null,null,null,null,null,null,null,null,null,null,null,null,null,null,null,null,null,null,null,null,null,null,null,null,null,null,null,null,null,null,null,null,null,null,null,null,null,null,null,null,null,null,null,null,null,null,null,null,null,null,null,null,null,null,null,null,null,null,null,null,null,null,null,null,null,null,null,null,null,null,null,null,null,null,null,null,null,null,null,null,null,null,null,null,null,null,null,null,null,null,null,null,null,null,null,null,null,null,null,null,null,null,null,null,null,null,null,null,null,null,null,null,null,null,null,null,null,null,null,null,null,null,null,null,null,null,null,null,null,null,null,null,null,null,null,null,null,null,null,null,null,null,null,null,null,null,null,null,null,null,null,null,null,null,null,null,null,null,null,null,null,null,null,null,null,null,null,null,null,null,null,null,null,null,null,null,null,null,null,null,null,null,null,null,null,null,null,null,null,null,null,null,null,null,null,null,null,null,null,null,null,null,null,null,null,null,null,null,null,null,null,null,null,null,null,null,null,null,null,null,null,null,null,null,null,null,null,null,null,null,null,null,null,null,null,null,null,null,null,null,null,null,null,null,null,null,null,null,null,null,null,null,null,null,null,null,null,null,null,null,null,null,null,null,null,null,null,null,null,null,null,null,null,null,null,null,null,null,null,null,null,null,null,null,null,null,null,null,null,null,null,null,null,null,null,null,null,null,null,12]
[13,"Use known facts to divide",1,null,null,null,null,null,null,null,null,null,null,null,null,null,null,null,null,null,null,null,null,null,null,null,null,null,null,null,null,null,null,null,null,null,null,null,null,null,null,null,null,null,null,null,null,null,null,null,null,null,null,null,null,null,null,null,null,null,null,null,null,null,null,null,null,null,null,null,null,null,null,null,null,null,null,null,null,null,null,null,null,null,null,null,null,null,null,null,null,null,null,null,null,null,null,null,null,null,null,null,null,null,null,null,null,null,null,null,null,null,null,null,null,null,null,null,null,null,null,null,null,null,null,null,null,null,null,null,null,null,null,null,null,null,null,null,null,null,null,null,null,null,null,null,null,null,null,null,null,null,null,null,null,null,null,null,null,null,null,null,null,null,null,null,null,null,null,null,null,null,null,null,null,null,null,null,null,null,null,null,null,null,null,null,null,null,null,null,null,null,null,null,null,null,null,null,null,null,null,null,null,null,null,null,null,null,null,null,null,null,null,null,null,null,null,null,null,null,null,null,null,null,null,null,null,null,null,null,null,null,null,null,null,null,null,null,null,null,null,null,null,null,null,null,null,null,null,null,null,null,null,null,null,null,null,null,null,null,null,null,null,null,null,null,null,null,null,null,null,null,null,null,null,null,null,null,null,null,null,null,null,null,null,null,null,null,null,null,null,null,null,null,null,null,null,null,null,null,null,null,null,null,null,null,null,null,null,null,null,null,null,null,null,null,null,null,null,null,null,null,null,null,null,null,null,null,null,null,null,null,null,null,null,null,null,null,null,null,null,null,null,null,null,null,null,null,null,null,null,null,null,null,null,null,null,null,null,null,null,null,null,null,null,null,null,null,null,null,null,null,null,null,null,null,null,null,null,null,null,null,null,null,null,null,null,null,null,null,null,null,null,null,null,null,null,null,null,null,null,null,null,null,null,null,null,null,null,null,null,null,null,null,null,null,null,null,null,null,null,null,null,null,null,null,null,null,null,null,null,null,null,null,null,null,null,null,null,null,null,null,null,null,null,null,null,null,null,null,null,null,null,null,null,null,null,null,null,null,null,null,null,null,null,null,null,null,null,null,null,null,null,null,null,null,null,null,null,null,null,null,null,null,null,null,null,null,null,null,null,null,null,null,null,null,null,null,null,null,13]
[14,"Subtract 3-digit number from 4-digit number",1,null,null,null,null,null,null,null,null,null,null,null,null,null,null,null,null,null,null,null,null,null,null,null,null,null,null,null,null,null,null,null,null,null,null,null,null,null,null,null,null,null,null,null,null,null,null,null,null,null,null,null,null,null,null,null,null,null,null,null,null,null,null,null,null,null,null,null,null,null,null,null,null,null,null,null,null,null,null,null,null,null,null,null,null,null,null,null,null,null,null,null,null,null,null,null,null,null,null,null,null,null,null,null,null,null,null,null,null,null,null,null,null,null,null,null,null,null,null,null,null,null,null,null,null,null,null,null,null,null,null,null,null,null,null,null,null,null,null,null,null,null,null,null,null,null,null,null,null,null,null,null,null,null,null,null,null,null,null,null,null,null,null,null,null,null,null,null,null,null,null,null,null,null,null,null,null,null,null,null,null,null,null,null,null,null,null,null,null,null,null,null,null,null,null,null,null,null,null,null,null,null,null,null,null,null,null,null,null,null,null,null,null,null,null,null,null,null,null,null,null,null,null,null,null,null,null,null,null,null,null,null,null,null,null,null,null,null,null,null,null,null,null,null,null,null,null,null,null,null,null,null,null,null,null,null,null,null,null,null,null,null,null,null,null,null,null,null,null,null,null,null,null,null,null,null,null,null,null,null,null,null,null,null,null,null,null,null,null,null,null,null,null,null,null,null,null,null,null,null,null,null,null,null,null,null,null,null,null,null,null,null,null,null,null,null,null,null,null,null,null,null,null,null,null,null,null,null,null,null,null,null,null,null,null,null,null,null,null,null,null,null,null,null,null,null,null,null,null,null,null,null,null,null,null,null,null,null,null,null,null,null,null,null,null,null,null,null,null,null,null,null,null,null,null,null,null,null,null,null,null,null,null,null,null,null,null,null,null,null,null,null,null,null,null,null,null,null,null,null,null,null,null,null,null,null,null,null,null,null,null,null,null,null,null,null,null,null,null,null,null,null,null,null,null,null,null,null,null,null,null,null,null,null,null,null,null,null,null,null,null,null,null,null,null,null,null,null,null,null,null,null,null,null,null,null,null,null,null,null,null,null,null,null,null,null,null,null,null,null,null,null,null,null,null,null,null,null,null,null,null,null,null,null,null,null,null,null,null,null,null,null,null,null,null,null,null,null,14]
[15,"Partition numbers up to 10 million",1,null,null,null,null,null,null,null,null,null,null,null,null,null,null,null,null,null,null,null,null,null,null,null,null,null,null,null,null,null,null,null,null,null,null,null,null,null,null,null,null,null,null,null,null,null,null,null,null,null,null,null,null,null,null,null,null,null,null,null,null,null,null,null,null,null,null,null,null,null,null,null,null,null,null,null,null,null,null,null,null,null,null,null,null,null,null,null,null,null,null,null,null,null,null,null,null,null,null,null,null,null,null,null,null,null,null,null,null,null,null,null,null,null,null,null,null,null,null,null,null,null,null,null,null,null,null,null,null,null,null,null,null,null,null,null,null,null,null,null,null,null,null,null,null,null,null,null,null,null,null,null,null,null,null,null,null,null,null,null,null,null,null,null,null,null,null,null,null,null,null,null,null,null,null,null,null,null,null,null,null,null,null,null,null,null,null,null,null,null,null,null,null,null,null,null,null,null,null,null,null,null,null,null,null,null,null,null,null,null,null,null,null,null,null,null,null,null,null,null,null,null,null,null,null,null,null,null,null,null,null,null,null,null,null,null,null,null,null,null,null,null,null,null,null,null,null,null,null,null,null,null,null,null,null,null,null,null,null,null,null,null,null,null,null,null,null,null,null,null,null,null,null,null,null,null,null,null,null,null,null,null,null,null,null,null,null,null,null,null,null,null,null,null,null,null,null,null,null,null,null,null,null,null,null,null,null,null,null,null,null,null,null,null,null,null,null,null,null,null,null,null,null,null,null,null,null,null,null,null,null,null,null,null,null,null,null,null,null,null,null,null,null,null,null,null,null,null,null,null,null,null,null,null,null,null,null,null,null,null,null,null,null,null,null,null,null,null,null,null,null,null,null,null,null,null,null,null,null,null,null,null,null,null,null,null,null,null,null,null,null,null,null,null,null,null,null,null,null,null,null,null,null,null,null,null,null,null,null,null,null,null,null,null,null,null,null,null,null,null,null,null,null,null,null,null,null,null,null,null,null,null,null,null,null,null,null,null,null,null,null,null,null,null,null,null,null,null,null,null,null,null,null,null,null,null,null,null,null,null,null,null,null,null,null,null,null,null,null,null,null,null,null,null,null,null,null,null,null,null,null,null,null,null,null,null,null,null,null,null,null,null,null,null,null,null,null,null,15]
[16,"Subtract decimal (1dp) from a whole number",1,null,null,null,null,null,null,null,null,null,null,null,null,null,null,null,null,null,null,null,null,null,null,null,null,null,null,null,null,null,null,null,null,null,null,null,null,null,null,null,null,null,null,null,null,null,null,null,null,null,null,null,null,null,null,null,null,null,null,null,null,null,null,null,null,null,null,null,null,null,null,null,null,null,null,null,null,null,null,null,null,null,null,null,null,null,null,null,null,null,null,null,null,null,null,null,null,null,null,null,null,null,null,null,null,null,null,null,null,null,null,null,null,null,null,null,null,null,null,null,null,null,null,null,null,null,null,null,null,null,null,null,null,null,null,null,null,null,null,null,null,null,null,null,null,null,null,null,null,null,null,null,null,null,null,null,null,null,null,null,null,null,null,null,null,null,null,null,null,null,null,null,null,null,null,null,null,null,null,null,null,null,null,null,null,null,null,null,null,null,null,null,null,null,null,null,null,null,null,null,null,null,null,null,null,null,null,null,null,null,null,null,null,null,null,null,null,null,null,null,null,null,null,null,null,null,null,null,null,null,null,null,null,null,null,null,null,null,null,null,null,null,null,null,null,null,null,null,null,null,null,null,null,null,null,null,null,null,null,null,null,null,null,null,null,null,null,null,null,null,null,null,null,null,null,null,null,null,null,null,null,null,null,null,null,null,null,null,null,null,null,null,null,null,null,null,null,null,null,null,null,null,null,null,null,null,null,null,null,null,null,null,null,null,null,null,null,null,null,null,null,null,null,null,null,null,null,null,null,null,null,null,null,null,null,null,null,null,null,null,null,null,null,null,null,null,null,null,null,null,null,null,null,null,null,null,null,null,null,null,null,null,null,null,null,null,null,null,null,null,null,null,null,null,null,null,null,null,null,null,null,null,null,null,null,null,null,null,null,null,null,null,null,null,null,null,null,null,null,null,null,null,null,null,null,null,null,null,null,null,null,null,null,null,null,null,null,null,null,null,null,null,null,null,null,null,null,null,null,null,null,null,null,null,null,null,null,null,null,null,null,null,null,null,null,null,null,null,null,null,null,null,null,null,null,null,null,null,null,null,null,null,null,null,null,null,null,null,null,null,null,null,null,null,null,null,null,null,null,null,null,null,null,null,null,null,null,null,null,null,null,null,null,null,null,null,null,null,16]
[17,"Add proper fractions with denominators that are multiples",1,null,null,null,null,null,null,null,null,null,null,null,null,null,null,null,null,null,null,null,null,null,null,null,null,null,null,null,null,null,null,null,null,null,null,null,null,null,null,null,null,null,null,null,null,null,null,null,null,null,null,null,null,null,null,null,null,null,null,null,null,null,null,null,null,null,null,null,null,null,null,null,null,null,null,null,null,null,null,null,null,null,null,null,null,null,null,null,null,null,null,null,null,null,null,null,null,null,null,null,null,null,null,null,null,null,null,null,null,null,null,null,null,null,null,null,null,null,null,null,null,null,null,null,null,null,null,null,null,null,null,null,null,null,null,null,null,null,null,null,null,null,null,null,null,null,null,null,null,null,null,null,null,null,null,null,null,null,null,null,null,null,null,null,null,null,null,null,null,null,null,null,null,null,null,null,null,null,null,null,null,null,null,null,null,null,null,null,null,null,null,null,null,null,null,null,null,null,null,null,null,null,null,null,null,null,null,null,null,null,null,null,null,null,null,null,null,null,null,null,null,null,null,null,null,null,null,null,null,null,null,null,null,null,null,null,null,null,null,null,null,null,null,null,null,null,null,null,null,null,null,null,null,null,null,null,null,null,null,null,null,null,null,null,null,null,null,null,null,null,null,null,null,null,null,null,null,null,null,null,null,null,null,null,null,null,null,null,null,null,null,null,null,null,null,null,null,null,null,null,null,null,null,null,null,null,null,null,null,null,null,null,null,null,null,null,null,null,null,null,null,null,null,null,null,null,null,null,null,null,null,null,null,null,null,null,null,null,null,null,null,null,null,null,null,null,null,null,null,null,null,null,null,null,null,null,null,null,null,null,null,null,null,null,null,null,null,null,null,null,null,null,null,null,null,null,null,null,null,null,null,null,null,null,null,null,null,null,null,null,null,null,null,null,null,null,null,null,null,null,null,null,null,null,null,null,null,null,null,null,null,null,null,null,null,null,null,null,null,null,null,null,null,null,null,null,null,null,null,null,null,null,null,null,null,null,null,null,null,null,null,null,null,null,null,null,null,null,null,null,null,null,null,null,null,null,null,null,null,null,null,null,null,null,null,null,null,null,null,null,null,null,null,null,null,null,null,null,null,null,null,null,null,null,null,null,null,null,null,null,null,null,null,null,null,null,null,null,17]
[18,"Divide decimal (1dp) by 100",1,null,null,null,null,null,null,null,null,null,null,null,null,null,null,null,null,null,null,null,null,null,null,null,null,null,null,null,null,null,null,null,null,null,null,null,null,null,null,null,null,null,null,null,null,null,null,null,null,null,null,null,null,null,null,null,null,null,null,null,null,null,null,null,null,null,null,null,null,null,null,null,null,null,null,null,null,null,null,null,null,null,null,null,null,null,null,null,null,null,null,null,null,null,null,null,null,null,null,null,null,null,null,null,null,null,null,null,null,null,null,null,null,null,null,null,null,null,null,null,null,null,null,null,null,null,null,null,null,null,null,null,null,null,null,null,null,null,null,null,null,null,null,null,null,null,null,null,null,null,null,null,null,null,null,null,null,null,null,null,null,null,null,null,null,null,null,null,null,null,null,null,null,null,null,null,null,null,null,null,null,null,null,null,null,null,null,null,null,null,null,null,null,null,null,null,null,null,null,null,null,null,null,null,null,null,null,null,null,null,null,null,null,null,null,null,null,null,null,null,null,null,null,null,null,null,null,null,null,null,null,null,null,null,null,null,null,null,null,null,null,null,null,null,null,null,null,null,null,null,null,null,null,null,null,null,null,null,null,null,null,null,null,null,null,null,null,null,null,null,null,null,null,null,null,null,null,null,null,null,null,null,null,null,null,null,null,null,null,null,null,null,null,null,null,null,null,null,null,null,null,null,null,null,null,null,null,null,null,null,null,null,null,null,null,null,null,null,null,null,null,null,null,null,null,null,null,null,null,null,null,null,null,null,null,null,null,null,null,null,null,null,null,null,null,null,null,null,null,null,null,null,null,null,null,null,null,null,null,null,null,null,null,null,null,null,null,null,null,null,null,null,null,null,null,null,null,null,null,null,null,null,null,null,null,null,null,null,null,null,null,null,null,null,null,null,null,null,null,null,null,null,null,null,null,null,null,null,null,null,null,null,null,null,null,null,null,null,null,null,null,null,null,null,null,null,null,null,null,null,null,null,null,null,null,null,null,null,null,null,null,null,null,null,null,null,null,null,null,null,null,null,null,null,null,null,null,null,null,null,null,null,null,null,null,null,null,null,null,null,null,null,null,null,null,null,null,null,null,null,null,null,null,null,null,null,null,null,null,null,null,null,null,null,null,null,null,null,18]
[19,"Find fraction of a quantity",1,null,null,null,null,null,null,null,null,null,null,null,null,null,null,null,null,null,null,null,null,null,null,null,null,null,null,null,null,null,null,null,null,null,null,null,null,null,null,null,null,null,null,null,null,null,null,null,null,null,null,null,null,null,null,null,null,null,null,null,null,null,null,null,null,null,null,null,null,null,null,null,null,null,null,null,null,null,null,null,null,null,null,null,null,null,null,null,null,null,null,null,null,null,null,null,null,null,null,null,null,null,null,null,null,null,null,null,null,null,null,null,null,null,null,null,null,null,null,null,null,null,null,null,null,null,null,null,null,null,null,null,null,null,null,null,null,null,null,null,null,null,null,null,null,null,null,null,null,null,null,null,null,null,null,null,null,null,null,null,null,null,null,null,null,null,null,null,null,null,null,null,null,null,null,null,null,null,null,null,null,null,null,null,null,null,null,null,null,null,null,null,null,null,null,null,null,null,null,null,null,null,null,null,null,null,null,null,null,null,null,null,null,null,null,null,null,null,null,null,null,null,null,null,null,null,null,null,null,null,null,null,null,null,null,null,null,null,null,null,null,null,null,null,null,null,null,null,null,null,null,null,null,null,null,null,null,null,null,null,null,null,null,null,null,null,null,null,null,null,null,null,null,null,null,null,null,null,null,null,null,null,null,null,null,null,null,null,null,null,null,null,null,null,null,null,null,null,null,null,null,null,null,null,null,null,null,null,null,null,null,null,null,null,null,null,null,null,null,null,null,null,null,null,null,null,null,null,null,null,null,null,null,null,null,null,null,null,null,null,null,null,null,null,null,null,null,null,null,null,null,null,null,null,null,null,null,null,null,null,null,null,null,null,null,null,null,null,null,null,null,null,null,null,null,null,null,null,null,null,null,null,null,null,null,null,null,null,null,null,null,null,null,null,null,null,null,null,null,null,null,null,null,null,null,null,null,null,null,null,null,null,null,null,null,null,null,null,null,null,null,null,null,null,null,null,null,null,null,null,null,null,null,null,null,null,null,null,null,null,null,null,null,null,null,null,null,null,null,null,null,null,null,null,null,null,null,null,null,null,null,null,null,null,null,null,null,null,null,null,null,null,null,null,null,null,null,null,null,null,null,null,null,null,null,null,null,null,null,null,null,null,null,null,null,null,null,null,19]
[20,"Multiply 3-digit number by 2-digit number",2,null,null,null,null,null,null,null,null,null,null,null,null,null,null,null,null,null,null,null,null,null,null,null,null,null,null,null,null,null,null,null,null,null,null,null,null,null,null,null,null,null,null,null,null,null,null,null,null,null,null,null,null,null,null,null,null,null,null,null,null,null,null,null,null,null,null,null,null,null,null,null,null,null,null,null,null,null,null,null,null,null,null,null,null,null,null,null,null,null,null,null,null,null,null,null,null,null,null,null,null,null,null,null,null,null,null,null,null,null,null,null,null,null,null,null,null,null,null,null,null,null,null,null,null,null,null,null,null,null,null,null,null,null,null,null,null,null,null,null,null,null,null,null,null,null,null,null,null,null,null,null,null,null,null,null,null,null,null,null,null,null,null,null,null,null,null,null,null,null,null,null,null,null,null,null,null,null,null,null,null,null,null,null,null,null,null,null,null,null,null,null,null,null,null,null,null,null,null,null,null,null,null,null,null,null,null,null,null,null,null,null,null,null,null,null,null,null,null,null,null,null,null,null,null,null,null,null,null,null,null,null,null,null,null,null,null,null,null,null,null,null,null,null,null,null,null,null,null,null,null,null,null,null,null,null,null,null,null,null,null,null,null,null,null,null,null,null,null,null,null,null,null,null,null,null,null,null,null,null,null,null,null,null,null,null,null,null,null,null,null,null,null,null,null,null,null,null,null,null,null,null,null,null,null,null,null,null,null,null,null,null,null,null,null,null,null,null,null,null,null,null,null,null,null,null,null,null,null,null,null,null,null,null,null,null,null,null,null,null,null,null,null,null,null,null,null,null,null,null,null,null,null,null,null,null,null,null,null,null,null,null,null,null,null,null,null,null,null,null,null,null,null,null,null,null,null,null,null,null,null,null,null,null,null,null,null,null,null,null,null,null,null,null,null,null,null,null,null,null,null,null,null,null,null,null,null,null,null,null,null,null,null,null,null,null,null,null,null,null,null,null,null,null,null,null,null,null,null,null,null,null,null,null,null,null,null,null,null,null,null,null,null,null,null,null,null,null,null,null,null,null,null,null,null,null,null,null,null,null,null,null,null,null,null,null,null,null,null,null,null,null,null,null,null,null,null,null,null,null,null,null,null,null,null,null,null,null,null,null,null,null,null,null,null,null,null,null,20]
[21,"Find simple percentage (multiple of 10) of a quantity",1,null,null,null,null,null,null,null,null,null,null,null,null,null,null,null,null,null,null,null,null,null,null,null,null,null,null,null,null,null,null,null,null,null,null,null,null,null,null,null,null,null,null,null,null,null,null,null,null,null,null,null,null,null,null,null,null,null,null,null,null,null,null,null,null,null,null,null,null,null,null,null,null,null,null,null,null,null,null,null,null,null,null,null,null,null,null,null,null,null,null,null,null,null,null,null,null,null,null,null,null,null,null,null,null,null,null,null,null,null,null,null,null,null,null,null,null,null,null,null,null,null,null,null,null,null,null,null,null,null,null,null,null,null,null,null,null,null,null,null,null,null,null,null,null,null,null,null,null,null,null,null,null,null,null,null,null,null,null,null,null,null,null,null,null,null,null,null,null,null,null,null,null,null,null,null,null,null,null,null,null,null,null,null,null,null,null,null,null,null,null,null,null,null,null,null,null,null,null,null,null,null,null,null,null,null,null,null,null,null,null,null,null,null,null,null,null,null,null,null,null,null,null,null,null,null,null,null,null,null,null,null,null,null,null,null,null,null,null,null,null,null,null,null,null,null,null,null,null,null,null,null,null,null,null,null,null,null,null,null,null,null,null,null,null,null,null,null,null,null,null,null,null,null,null,null,null,null,null,null,null,null,null,null,null,null,null,null,null,null,null,null,null,null,null,null,null,null,null,null,null,null,null,null,null,null,null,null,null,null,null,null,null,null,null,null,null,null,null,null,null,null,null,null,null,null,null,null,null,null,null,null,null,null,null,null,null,null,null,null,null,null,null,null,null,null,null,null,null,null,null,null,null,null,null,null,null,null,null,null,null,null,null,null,null,null,null,null,null,null,null,null,null,null,null,null,null,null,null,null,null,null,null,null,null,null,null,null,null,null,null,null,null,null,null,null,null,null,null,null,null,null,null,null,null,null,null,null,null,null,null,null,null,null,null,null,null,null,null,null,null,null,null,null,null,null,null,null,null,null,null,null,null,null,null,null,null,null,null,null,null,null,null,null,null,null,null,null,null,null,null,null,null,null,null,null,null,null,null,null,null,null,null,null,null,null,null,null,null,null,null,null,null,null,null,null,null,null,null,null,null,null,null,null,null,null,null,null,null,null,null,null,null,null,null,null,null,null,21]
[22,"Divide 3-digit number by 2-digit number",2,null,null,null,null,null,null,null,null,null,null,null,null,null,null,null,null,null,null,null,null,null,null,null,null,null,null,null,null,null,null,null,null,null,null,null,null,null,null,null,null,null,null,null,null,null,null,null,null,null,null,null,null,null,null,null,null,null,null,null,null,null,null,null,null,null,null,null,null,null,null,null,null,null,null,null,null,null,null,null,null,null,null,null,null,null,null,null,null,null,null,null,null,null,null,null,null,null,null,null,null,null,null,null,null,null,null,null,null,null,null,null,null,null,null,null,null,null,null,null,null,null,null,null,null,null,null,null,null,null,null,null,null,null,null,null,null,null,null,null,null,null,null,null,null,null,null,null,null,null,null,null,null,null,null,null,null,null,null,null,null,null,null,null,null,null,null,null,null,null,null,null,null,null,null,null,null,null,null,null,null,null,null,null,null,null,null,null,null,null,null,null,null,null,null,null,null,null,null,null,null,null,null,null,null,null,null,null,null,null,null,null,null,null,null,null,null,null,null,null,null,null,null,null,null,null,null,null,null,null,null,null,null,null,null,null,null,null,null,null,null,null,null,null,null,null,null,null,null,null,null,null,null,null,null,null,null,null,null,null,null,null,null,null,null,null,null,null,null,null,null,null,null,null,null,null,null,null,null,null,null,null,null,null,null,null,null,null,null,null,null,null,null,null,null,null,null,null,null,null,null,null,null,null,null,null,null,null,null,null,null,null,null,null,null,null,null,null,null,null,null,null,null,null,null,null,null,null,null,null,null,null,null,null,null,null,null,null,null,null,null,null,null,null,null,null,null,null,null,null,null,null,null,null,null,null,null,null,null,null,null,null,null,null,null,null,null,null,null,null,null,null,null,null,null,null,null,null,null,null,null,null,null,null,null,null,null,null,null,null,null,null,null,null,null,null,null,null,null,null,null,null,null,null,null,null,null,null,null,null,null,null,null,null,null,null,null,null,null,null,null,null,null,null,null,null,null,null,null,null,null,null,null,null,null,null,null,null,null,null,null,null,null,null,null,null,null,null,null,null,null,null,null,null,null,null,null,null,null,null,null,null,null,null,null,null,null,null,null,null,null,null,null,null,null,null,null,null,null,null,null,null,null,null,null,null,null,null,null,null,null,null,null,null,null,null,null,null,22]
[23,"Multiply whole number by decimal (1dp and <1)",1,null,null,null,null,null,null,null,null,null,null,null,null,null,null,null,null,null,null,null,null,null,null,null,null,null,null,null,null,null,null,null,null,null,null,null,null,null,null,null,null,null,null,null,null,null,null,null,null,null,null,null,null,null,null,null,null,null,null,null,null,null,null,null,null,null,null,null,null,null,null,null,null,null,null,null,null,null,null,null,null,null,null,null,null,null,null,null,null,null,null,null,null,null,null,null,null,null,null,null,null,null,null,null,null,null,null,null,null,null,null,null,null,null,null,null,null,null,null,null,null,null,null,null,null,null,null,null,null,null,null,null,null,null,null,null,null,null,null,null,null,null,null,null,null,null,null,null,null,null,null,null,null,null,null,null,null,null,null,null,null,null,null,null,null,null,null,null,null,null,null,null,null,null,null,null,null,null,null,null,null,null,null,null,null,null,null,null,null,null,null,null,null,null,null,null,null,null,null,null,null,null,null,null,null,null,null,null,null,null,null,null,null,null,null,null,null,null,null,null,null,null,null,null,null,null,null,null,null,null,null,null,null,null,null,null,null,null,null,null,null,null,null,null,null,null,null,null,null,null,null,null,null,null,null,null,null,null,null,null,null,null,null,null,null,null,null,null,null,null,null,null,null,null,null,null,null,null,null,null,null,null,null,null,null,null,null,null,null,null,null,null,null,null,null,null,null,null,null,null,null,null,null,null,null,null,null,null,null,null,null,null,null,null,null,null,null,null,null,null,null,null,null,null,null,null,null,null,null,null,null,null,null,null,null,null,null,null,null,null,null,null,null,null,null,null,null,null,null,null,null,null,null,null,null,null,null,null,null,null,null,null,null,null,null,null,null,null,null,null,null,null,null,null,null,null,null,null,null,null,null,null,null,null,null,null,null,null,null,null,null,null,null,null,null,null,null,null,null,null,null,null,null,null,null,null,null,null,null,null,null,null,null,null,null,null,null,null,null,null,null,null,null,null,null,null,null,null,null,null,null,null,null,null,null,null,null,null,null,null,null,null,null,null,null,null,null,null,null,null,null,null,null,null,null,null,null,null,null,null,null,null,null,null,null,null,null,null,null,null,null,null,null,null,null,null,null,null,null,null,null,null,null,null,null,null,null,null,null,null,null,null,null,null,null,null,null,null,23]
[24,"Add proper fractions with different denominators ",1,null,null,null,null,null,null,null,null,null,null,null,null,null,null,null,null,null,null,null,null,null,null,null,null,null,null,null,null,null,null,null,null,null,null,null,null,null,null,null,null,null,null,null,null,null,null,null,null,null,null,null,null,null,null,null,null,null,null,null,null,null,null,null,null,null,null,null,null,null,null,null,null,null,null,null,null,null,null,null,null,null,null,null,null,null,null,null,null,null,null,null,null,null,null,null,null,null,null,null,null,null,null,null,null,null,null,null,null,null,null,null,null,null,null,null,null,null,null,null,null,null,null,null,null,null,null,null,null,null,null,null,null,null,null,null,null,null,null,null,null,null,null,null,null,null,null,null,null,null,null,null,null,null,null,null,null,null,null,null,null,null,null,null,null,null,null,null,null,null,null,null,null,null,null,null,null,null,null,null,null,null,null,null,null,null,null,null,null,null,null,null,null,null,null,null,null,null,null,null,null,null,null,null,null,null,null,null,null,null,null,null,null,null,null,null,null,null,null,null,null,null,null,null,null,null,null,null,null,null,null,null,null,null,null,null,null,null,null,null,null,null,null,null,null,null,null,null,null,null,null,null,null,null,null,null,null,null,null,null,null,null,null,null,null,null,null,null,null,null,null,null,null,null,null,null,null,null,null,null,null,null,null,null,null,null,null,null,null,null,null,null,null,null,null,null,null,null,null,null,null,null,null,null,null,null,null,null,null,null,null,null,null,null,null,null,null,null,null,null,null,null,null,null,null,null,null,null,null,null,null,null,null,null,null,null,null,null,null,null,null,null,null,null,null,null,null,null,null,null,null,null,null,null,null,null,null,null,null,null,null,null,null,null,null,null,null,null,null,null,null,null,null,null,null,null,null,null,null,null,null,null,null,null,null,null,null,null,null,null,null,null,null,null,null,null,null,null,null,null,null,null,null,null,null,null,null,null,null,null,null,null,null,null,null,null,null,null,null,null,null,null,null,null,null,null,null,null,null,null,null,null,null,null,null,null,null,null,null,null,null,null,null,null,null,null,null,null,null,null,null,null,null,null,null,null,null,null,null,null,null,null,null,null,null,null,null,null,null,null,null,null,null,null,null,null,null,null,null,null,null,null,null,null,null,null,null,null,null,null,null,null,null,null,null,null,null,null,24]
[25,"Add mixed number and a proper fraction with the same denominators ",1,null,null,null,null,null,null,null,null,null,null,null,null,null,null,null,null,null,null,null,null,null,null,null,null,null,null,null,null,null,null,null,null,null,null,null,null,null,null,null,null,null,null,null,null,null,null,null,null,null,null,null,null,null,null,null,null,null,null,null,null,null,null,null,null,null,null,null,null,null,null,null,null,null,null,null,null,null,null,null,null,null,null,null,null,null,null,null,null,null,null,null,null,null,null,null,null,null,null,null,null,null,null,null,null,null,null,null,null,null,null,null,null,null,null,null,null,null,null,null,null,null,null,null,null,null,null,null,null,null,null,null,null,null,null,null,null,null,null,null,null,null,null,null,null,null,null,null,null,null,null,null,null,null,null,null,null,null,null,null,null,null,null,null,null,null,null,null,null,null,null,null,null,null,null,null,null,null,null,null,null,null,null,null,null,null,null,null,null,null,null,null,null,null,null,null,null,null,null,null,null,null,null,null,null,null,null,null,null,null,null,null,null,null,null,null,null,null,null,null,null,null,null,null,null,null,null,null,null,null,null,null,null,null,null,null,null,null,null,null,null,null,null,null,null,null,null,null,null,null,null,null,null,null,null,null,null,null,null,null,null,null,null,null,null,null,null,null,null,null,null,null,null,null,null,null,null,null,null,null,null,null,null,null,null,null,null,null,null,null,null,null,null,null,null,null,null,null,null,null,null,null,null,null,null,null,null,null,null,null,null,null,null,null,null,null,null,null,null,null,null,null,null,null,null,null,null,null,null,null,null,null,null,null,null,null,null,null,null,null,null,null,null,null,null,null,null,null,null,null,null,null,null,null,null,null,null,null,null,null,null,null,null,null,null,null,null,null,null,null,null,null,null,null,null,null,null,null,null,null,null,null,null,null,null,null,null,null,null,null,null,null,null,null,null,null,null,null,null,null,null,null,null,null,null,null,null,null,null,null,null,null,null,null,null,null,null,null,null,null,null,null,null,null,null,null,null,null,null,null,null,null,null,null,null,null,null,null,null,null,null,null,null,null,null,null,null,null,null,null,null,null,null,null,null,null,null,null,null,null,null,null,null,null,null,null,null,null,null,null,null,null,null,null,null,null,null,null,null,null,null,null,null,null,null,null,null,null,null,null,null,null,null,null,null,null,null,null,25]
[26,"Subtract decimal (3dp) from a whole number",1,null,null,null,null,null,null,null,null,null,null,null,null,null,null,null,null,null,null,null,null,null,null,null,null,null,null,null,null,null,null,null,null,null,null,null,null,null,null,null,null,null,null,null,null,null,null,null,null,null,null,null,null,null,null,null,null,null,null,null,null,null,null,null,null,null,null,null,null,null,null,null,null,null,null,null,null,null,null,null,null,null,null,null,null,null,null,null,null,null,null,null,null,null,null,null,null,null,null,null,null,null,null,null,null,null,null,null,null,null,null,null,null,null,null,null,null,null,null,null,null,null,null,null,null,null,null,null,null,null,null,null,null,null,null,null,null,null,null,null,null,null,null,null,null,null,null,null,null,null,null,null,null,null,null,null,null,null,null,null,null,null,null,null,null,null,null,null,null,null,null,null,null,null,null,null,null,null,null,null,null,null,null,null,null,null,null,null,null,null,null,null,null,null,null,null,null,null,null,null,null,null,null,null,null,null,null,null,null,null,null,null,null,null,null,null,null,null,null,null,null,null,null,null,null,null,null,null,null,null,null,null,null,null,null,null,null,null,null,null,null,null,null,null,null,null,null,null,null,null,null,null,null,null,null,null,null,null,null,null,null,null,null,null,null,null,null,null,null,null,null,null,null,null,null,null,null,null,null,null,null,null,null,null,null,null,null,null,null,null,null,null,null,null,null,null,null,null,null,null,null,null,null,null,null,null,null,null,null,null,null,null,null,null,null,null,null,null,null,null,null,null,null,null,null,null,null,null,null,null,null,null,null,null,null,null,null,null,null,null,null,null,null,null,null,null,null,null,null,null,null,null,null,null,null,null,null,null,null,null,null,null,null,null,null,null,null,null,null,null,null,null,null,null,null,null,null,null,null,null,null,null,null,null,null,null,null,null,null,null,null,null,null,null,null,null,null,null,null,null,null,null,null,null,null,null,null,null,null,null,null,null,null,null,null,null,null,null,null,null,null,null,null,null,null,null,null,null,null,null,null,null,null,null,null,null,null,null,null,null,null,null,null,null,null,null,null,null,null,null,null,null,null,null,null,null,null,null,null,null,null,null,null,null,null,null,null,null,null,null,null,null,null,null,null,null,null,null,null,null,null,null,null,null,null,null,null,null,null,null,null,null,null,null,null,null,null,null,26]
[27,"Multiply whole number by decimal (1dp and >1)",1,null,null,null,null,null,null,null,null,null,null,null,null,null,null,null,null,null,null,null,null,null,null,null,null,null,null,null,null,null,null,null,null,null,null,null,null,null,null,null,null,null,null,null,null,null,null,null,null,null,null,null,null,null,null,null,null,null,null,null,null,null,null,null,null,null,null,null,null,null,null,null,null,null,null,null,null,null,null,null,null,null,null,null,null,null,null,null,null,null,null,null,null,null,null,null,null,null,null,null,null,null,null,null,null,null,null,null,null,null,null,null,null,null,null,null,null,null,null,null,null,null,null,null,null,null,null,null,null,null,null,null,null,null,null,null,null,null,null,null,null,null,null,null,null,null,null,null,null,null,null,null,null,null,null,null,null,null,null,null,null,null,null,null,null,null,null,null,null,null,null,null,null,null,null,null,null,null,null,null,null,null,null,null,null,null,null,null,null,null,null,null,null,null,null,null,null,null,null,null,null,null,null,null,null,null,null,null,null,null,null,null,null,null,null,null,null,null,null,null,null,null,null,null,null,null,null,null,null,null,null,null,null,null,null,null,null,null,null,null,null,null,null,null,null,null,null,null,null,null,null,null,null,null,null,null,null,null,null,null,null,null,null,null,null,null,null,null,null,null,null,null,null,null,null,null,null,null,null,null,null,null,null,null,null,null,null,null,null,null,null,null,null,null,null,null,null,null,null,null,null,null,null,null,null,null,null,null,null,null,null,null,null,null,null,null,null,null,null,null,null,null,null,null,null,null,null,null,null,null,null,null,null,null,null,null,null,null,null,null,null,null,null,null,null,null,null,null,null,null,null,null,null,null,null,null,null,null,null,null,null,null,null,null,null,null,null,null,null,null,null,null,null,null,null,null,null,null,null,null,null,null,null,null,null,null,null,null,null,null,null,null,null,null,null,null,null,null,null,null,null,null,null,null,null,null,null,null,null,null,null,null,null,null,null,null,null,null,null,null,null,null,null,null,null,null,null,null,null,null,null,null,null,null,null,null,null,null,null,null,null,null,null,null,null,null,null,null,null,null,null,null,null,null,null,null,null,null,null,null,null,null,null,null,null,null,null,null,null,null,null,null,null,null,null,null,null,null,null,null,null,null,null,null,null,null,null,null,null,null,null,null,null,null,null,null,null,null,27]
[28,"Subtract proper fraction from mixed number with denominators that are multiples",1,null,null,null,null,null,null,null,null,null,null,null,null,null,null,null,null,null,null,null,null,null,null,null,null,null,null,null,null,null,null,null,null,null,null,null,null,null,null,null,null,null,null,null,null,null,null,null,null,null,null,null,null,null,null,null,null,null,null,null,null,null,null,null,null,null,null,null,null,null,null,null,null,null,null,null,null,null,null,null,null,null,null,null,null,null,null,null,null,null,null,null,null,null,null,null,null,null,null,null,null,null,null,null,null,null,null,null,null,null,null,null,null,null,null,null,null,null,null,null,null,null,null,null,null,null,null,null,null,null,null,null,null,null,null,null,null,null,null,null,null,null,null,null,null,null,null,null,null,null,null,null,null,null,null,null,null,null,null,null,null,null,null,null,null,null,null,null,null,null,null,null,null,null,null,null,null,null,null,null,null,null,null,null,null,null,null,null,null,null,null,null,null,null,null,null,null,null,null,null,null,null,null,null,null,null,null,null,null,null,null,null,null,null,null,null,null,null,null,null,null,null,null,null,null,null,null,null,null,null,null,null,null,null,null,null,null,null,null,null,null,null,null,null,null,null,null,null,null,null,null,null,null,null,null,null,null,null,null,null,null,null,null,null,null,null,null,null,null,null,null,null,null,null,null,null,null,null,null,null,null,null,null,null,null,null,null,null,null,null,null,null,null,null,null,null,null,null,null,null,null,null,null,null,null,null,null,null,null,null,null,null,null,null,null,null,null,null,null,null,null,null,null,null,null,null,null,null,null,null,null,null,null,null,null,null,null,null,null,null,null,null,null,null,null,null,null,null,null,null,null,null,null,null,null,null,null,null,null,null,null,null,null,null,null,null,null,null,null,null,null,null,null,null,null,null,null,null,null,null,null,null,null,null,null,null,null,null,null,null,null,null,null,null,null,null,null,null,null,null,null,null,null,null,null,null,null,null,null,null,null,null,null,null,null,null,null,null,null,null,null,null,null,null,null,null,null,null,null,null,null,null,null,null,null,null,null,null,null,null,null,null,null,null,null,null,null,null,null,null,null,null,null,null,null,null,null,null,null,null,null,null,null,null,null,null,null,null,null,null,null,null,null,null,null,null,null,null,null,null,null,null,null,null,null,null,null,null,null,null,null,null,null,null,null,null,null,null,28]
[29,"Multiply 4-digit number by 2-digit number",2,null,null,null,null,null,null,null,null,null,null,null,null,null,null,null,null,null,null,null,null,null,null,null,null,null,null,null,null,null,null,null,null,null,null,null,null,null,null,null,null,null,null,null,null,null,null,null,null,null,null,null,null,null,null,null,null,null,null,null,null,null,null,null,null,null,null,null,null,null,null,null,null,null,null,null,null,null,null,null,null,null,null,null,null,null,null,null,null,null,null,null,null,null,null,null,null,null,null,null,null,null,null,null,null,null,null,null,null,null,null,null,null,null,null,null,null,null,null,null,null,null,null,null,null,null,null,null,null,null,null,null,null,null,null,null,null,null,null,null,null,null,null,null,null,null,null,null,null,null,null,null,null,null,null,null,null,null,null,null,null,null,null,null,null,null,null,null,null,null,null,null,null,null,null,null,null,null,null,null,null,null,null,null,null,null,null,null,null,null,null,null,null,null,null,null,null,null,null,null,null,null,null,null,null,null,null,null,null,null,null,null,null,null,null,null,null,null,null,null,null,null,null,null,null,null,null,null,null,null,null,null,null,null,null,null,null,null,null,null,null,null,null,null,null,null,null,null,null,null,null,null,null,null,null,null,null,null,null,null,null,null,null,null,null,null,null,null,null,null,null,null,null,null,null,null,null,null,null,null,null,null,null,null,null,null,null,null,null,null,null,null,null,null,null,null,null,null,null,null,null,null,null,null,null,null,null,null,null,null,null,null,null,null,null,null,null,null,null,null,null,null,null,null,null,null,null,null,null,null,null,null,null,null,null,null,null,null,null,null,null,null,null,null,null,null,null,null,null,null,null,null,null,null,null,null,null,null,null,null,null,null,null,null,null,null,null,null,null,null,null,null,null,null,null,null,null,null,null,null,null,null,null,null,null,null,null,null,null,null,null,null,null,null,null,null,null,null,null,null,null,null,null,null,null,null,null,null,null,null,null,null,null,null,null,null,null,null,null,null,null,null,null,null,null,null,null,null,null,null,null,null,null,null,null,null,null,null,null,null,null,null,null,null,null,null,null,null,null,null,null,null,null,null,null,null,null,null,null,null,null,null,null,null,null,null,null,null,null,null,null,null,null,null,null,null,null,null,null,null,null,null,null,null,null,null,null,null,null,null,null,null,null,null,null,null,null,null,29]
[30," Find 99% of a quantity",1,null,null,null,null,null,null,null,null,null,null,null,null,null,null,null,null,null,null,null,null,null,null,null,null,null,null,null,null,null,null,null,null,null,null,null,null,null,null,null,null,null,null,null,null,null,null,null,null,null,null,null,null,null,null,null,null,null,null,null,null,null,null,null,null,null,null,null,null,null,null,null,null,null,null,null,null,null,null,null,null,null,null,null,null,null,null,null,null,null,null,null,null,null,null,null,null,null,null,null,null,null,null,null,null,null,null,null,null,null,null,null,null,null,null,null,null,null,null,null,null,null,null,null,null,null,null,null,null,null,null,null,null,null,null,null,null,null,null,null,null,null,null,null,null,null,null,null,null,null,null,null,null,null,null,null,null,null,null,null,null,null,null,null,null,null,null,null,null,null,null,null,null,null,null,null,null,null,null,null,null,null,null,null,null,null,null,null,null,null,null,null,null,null,null,null,null,null,null,null,null,null,null,null,null,null,null,null,null,null,null,null,null,null,null,null,null,null,null,null,null,null,null,null,null,null,null,null,null,null,null,null,null,null,null,null,null,null,null,null,null,null,null,null,null,null,null,null,null,null,null,null,null,null,null,null,null,null,null,null,null,null,null,null,null,null,null,null,null,null,null,null,null,null,null,null,null,null,null,null,null,null,null,null,null,null,null,null,null,null,null,null,null,null,null,null,null,null,null,null,null,null,null,null,null,null,null,null,null,null,null,null,null,null,null,null,null,null,null,null,null,null,null,null,null,null,null,null,null,null,null,null,null,null,null,null,null,null,null,null,null,null,null,null,null,null,null,null,null,null,null,null,null,null,null,null,null,null,null,null,null,null,null,null,null,null,null,null,null,null,null,null,null,null,null,null,null,null,null,null,null,null,null,null,null,null,null,null,null,null,null,null,null,null,null,null,null,null,null,null,null,null,null,null,null,null,null,null,null,null,null,null,null,null,null,null,null,null,null,null,null,null,null,null,null,null,null,null,null,null,null,null,null,null,null,null,null,null,null,null,null,null,null,null,null,null,null,null,null,null,null,null,null,null,null,null,null,null,null,null,null,null,null,null,null,null,null,null,null,null,null,null,null,null,null,null,null,null,null,null,null,null,null,null,null,null,null,null,null,null,null,null,null,null,null,null,null,null,30]
[31,"Divide unit fraction by 1-digit number",1,null,null,null,null,null,null,null,null,null,null,null,null,null,null,null,null,null,null,null,null,null,null,null,null,null,null,null,null,null,null,null,null,null,null,null,null,null,null,null,null,null,null,null,null,null,null,null,null,null,null,null,null,null,null,null,null,null,null,null,null,null,null,null,null,null,null,null,null,null,null,null,null,null,null,null,null,null,null,null,null,null,null,null,null,null,null,null,null,null,null,null,null,null,null,null,null,null,null,null,null,null,null,null,null,null,null,null,null,null,null,null,null,null,null,null,null,null,null,null,null,null,null,null,null,null,null,null,null,null,null,null,null,null,null,null,null,null,null,null,null,null,null,null,null,null,null,null,null,null,null,null,null,null,null,null,null,null,null,null,null,null,null,null,null,null,null,null,null,null,null,null,null,null,null,null,null,null,null,null,null,null,null,null,null,null,null,null,null,null,null,null,null,null,null,null,null,null,null,null,null,null,null,null,null,null,null,null,null,null,null,null,null,null,null,null,null,null,null,null,null,null,null,null,null,null,null,null,null,null,null,null,null,null,null,null,null,null,null,null,null,null,null,null,null,null,null,null,null,null,null,null,null,null,null,null,null,null,null,null,null,null,null,null,null,null,null,null,null,null,null,null,null,null,null,null,null,null,null,null,null,null,null,null,null,null,null,null,null,null,null,null,null,null,null,null,null,null,null,null,null,null,null,null,null,null,null,null,null,null,null,null,null,null,null,null,null,null,null,null,null,null,null,null,null,null,null,null,null,null,null,null,null,null,null,null,null,null,null,null,null,null,null,null,null,null,null,null,null,null,null,null,null,null,null,null,null,null,null,null,null,null,null,null,null,null,null,null,null,null,null,null,null,null,null,null,null,null,null,null,null,null,null,null,null,null,null,null,null,null,null,null,null,null,null,null,null,null,null,null,null,null,null,null,null,null,null,null,null,null,null,null,null,null,null,null,null,null,null,null,null,null,null,null,null,null,null,null,null,null,null,null,null,null,null,null,null,null,null,null,null,null,null,null,null,null,null,null,null,null,null,null,null,null,null,null,null,null,null,null,null,null,null,null,null,null,null,null,null,null,null,null,null,null,null,null,null,null,null,null,null,null,null,null,null,null,null,null,null,null,null,null,null,null,null,null,null,null,31]
[32,"Use the order of operations",1,null,null,null,null,null,null,null,null,null,null,null,null,null,null,null,null,null,null,null,null,null,null,null,null,null,null,null,null,null,null,null,null,null,null,null,null,null,null,null,null,null,null,null,null,null,null,null,null,null,null,null,null,null,null,null,null,null,null,null,null,null,null,null,null,null,null,null,null,null,null,null,null,null,null,null,null,null,null,null,null,null,null,null,null,null,null,null,null,null,null,null,null,null,null,null,null,null,null,null,null,null,null,null,null,null,null,null,null,null,null,null,null,null,null,null,null,null,null,null,null,null,null,null,null,null,null,null,null,null,null,null,null,null,null,null,null,null,null,null,null,null,null,null,null,null,null,null,null,null,null,null,null,null,null,null,null,null,null,null,null,null,null,null,null,null,null,null,null,null,null,null,null,null,null,null,null,null,null,null,null,null,null,null,null,null,null,null,null,null,null,null,null,null,null,null,null,null,null,null,null,null,null,null,null,null,null,null,null,null,null,null,null,null,null,null,null,null,null,null,null,null,null,null,null,null,null,null,null,null,null,null,null,null,null,null,null,null,null,null,null,null,null,null,null,null,null,null,null,null,null,null,null,null,null,null,null,null,null,null,null,null,null,null,null,null,null,null,null,null,null,null,null,null,null,null,null,null,null,null,null,null,null,null,null,null,null,null,null,null,null,null,null,null,null,null,null,null,null,null,null,null,null,null,null,null,null,null,null,null,null,null,null,null,null,null,null,null,null,null,null,null,null,null,null,null,null,null,null,null,null,null,null,null,null,null,null,null,null,null,null,null,null,null,null,null,null,null,null,null,null,null,null,null,null,null,null,null,null,null,null,null,null,null,null,null,null,null,null,null,null,null,null,null,null,null,null,null,null,null,null,null,null,null,null,null,null,null,null,null,null,null,null,null,null,null,null,null,null,null,null,null,null,null,null,null,null,null,null,null,null,null,null,null,null,null,null,null,null,null,null,null,null,null,null,null,null,null,null,null,null,null,null,null,null,null,null,null,null,null,null,null,null,null,null,null,null,null,null,null,null,null,null,null,null,null,null,null,null,null,null,null,null,null,null,null,null,null,null,null,null,null,null,null,null,null,null,null,null,null,null,null,null,null,null,null,null,null,null,null,null,null,null,null,null,null,null,null,32]
[33,"Multiply mixed number by whole number",1,null,null,null,null,null,null,null,null,null,null,null,null,null,null,null,null,null,null,null,null,null,null,null,null,null,null,null,null,null,null,null,null,null,null,null,null,null,null,null,null,null,null,null,null,null,null,null,null,null,null,null,null,null,null,null,null,null,null,null,null,null,null,null,null,null,null,null,null,null,null,null,null,null,null,null,null,null,null,null,null,null,null,null,null,null,null,null,null,null,null,null,null,null,null,null,null,null,null,null,null,null,null,null,null,null,null,null,null,null,null,null,null,null,null,null,null,null,null,null,null,null,null,null,null,null,null,null,null,null,null,null,null,null,null,null,null,null,null,null,null,null,null,null,null,null,null,null,null,null,null,null,null,null,null,null,null,null,null,null,null,null,null,null,null,null,null,null,null,null,null,null,null,null,null,null,null,null,null,null,null,null,null,null,null,null,null,null,null,null,null,null,null,null,null,null,null,null,null,null,null,null,null,null,null,null,null,null,null,null,null,null,null,null,null,null,null,null,null,null,null,null,null,null,null,null,null,null,null,null,null,null,null,null,null,null,null,null,null,null,null,null,null,null,null,null,null,null,null,null,null,null,null,null,null,null,null,null,null,null,null,null,null,null,null,null,null,null,null,null,null,null,null,null,null,null,null,null,null,null,null,null,null,null,null,null,null,null,null,null,null,null,null,null,null,null,null,null,null,null,null,null,null,null,null,null,null,null,null,null,null,null,null,null,null,null,null,null,null,null,null,null,null,null,null,null,null,null,null,null,null,null,null,null,null,null,null,null,null,null,null,null,null,null,null,null,null,null,null,null,null,null,null,null,null,null,null,null,null,null,null,null,null,null,null,null,null,null,null,null,null,null,null,null,null,null,null,null,null,null,null,null,null,null,null,null,null,null,null,null,null,null,null,null,null,null,null,null,null,null,null,null,null,null,null,null,null,null,null,null,null,null,null,null,null,null,null,null,null,null,null,null,null,null,null,null,null,null,null,null,null,null,null,null,null,null,null,null,null,null,null,null,null,null,null,null,null,null,null,null,null,null,null,null,null,null,null,null,null,null,null,null,null,null,null,null,null,null,null,null,null,null,null,null,null,null,null,null,null,null,null,null,null,null,null,null,null,null,null,null,null,null,null,null,null,null,null,null,33]
[34,"Find a complex percentage (not multiple of 5 or 10)  of a quantity",1,null,null,null,null,null,null,null,null,null,null,null,null,null,null,null,null,null,null,null,null,null,null,null,null,null,null,null,null,null,null,null,null,null,null,null,null,null,null,null,null,null,null,null,null,null,null,null,null,null,null,null,null,null,null,null,null,null,null,null,null,null,null,null,null,null,null,null,null,null,null,null,null,null,null,null,null,null,null,null,null,null,null,null,null,null,null,null,null,null,null,null,null,null,null,null,null,null,null,null,null,null,null,null,null,null,null,null,null,null,null,null,null,null,null,null,null,null,null,null,null,null,null,null,null,null,null,null,null,null,null,null,null,null,null,null,null,null,null,null,null,null,null,null,null,null,null,null,null,null,null,null,null,null,null,null,null,null,null,null,null,null,null,null,null,null,null,null,null,null,null,null,null,null,null,null,null,null,null,null,null,null,null,null,null,null,null,null,null,null,null,null,null,null,null,null,null,null,null,null,null,null,null,null,null,null,null,null,null,null,null,null,null,null,null,null,null,null,null,null,null,null,null,null,null,null,null,null,null,null,null,null,null,null,null,null,null,null,null,null,null,null,null,null,null,null,null,null,null,null,null,null,null,null,null,null,null,null,null,null,null,null,null,null,null,null,null,null,null,null,null,null,null,null,null,null,null,null,null,null,null,null,null,null,null,null,null,null,null,null,null,null,null,null,null,null,null,null,null,null,null,null,null,null,null,null,null,null,null,null,null,null,null,null,null,null,null,null,null,null,null,null,null,null,null,null,null,null,null,null,null,null,null,null,null,null,null,null,null,null,null,null,null,null,null,null,null,null,null,null,null,null,null,null,null,null,null,null,null,null,null,null,null,null,null,null,null,null,null,null,null,null,null,null,null,null,null,null,null,null,null,null,null,null,null,null,null,null,null,null,null,null,null,null,null,null,null,null,null,null,null,null,null,null,null,null,null,null,null,null,null,null,null,null,null,null,null,null,null,null,null,null,null,null,null,null,null,null,null,null,null,null,null,null,null,null,null,null,null,null,null,null,null,null,null,null,null,null,null,null,null,null,null,null,null,null,null,null,null,null,null,null,null,null,null,null,null,null,null,null,null,null,null,null,null,null,null,null,null,null,null,null,null,null,null,null,null,null,null,null,null,null,null,null,null,null,null,null,34]
[35,"Subtract mixed numbers with different denominators ",1,null,null,null,null,null,null,null,null,null,null,null,null,null,null,null,null,null,null,null,null,null,null,null,null,null,null,null,null,null,null,null,null,null,null,null,null,null,null,null,null,null,null,null,null,null,null,null,null,null,null,null,null,null,null,null,null,null,null,null,null,null,null,null,null,null,null,null,null,null,null,null,null,null,null,null,null,null,null,null,null,null,null,null,null,null,null,null,null,null,null,null,null,null,null,null,null,null,null,null,null,null,null,null,null,null,null,null,null,null,null,null,null,null,null,null,null,null,null,null,null,null,null,null,null,null,null,null,null,null,null,null,null,null,null,null,null,null,null,null,null,null,null,null,null,null,null,null,null,null,null,null,null,null,null,null,null,null,null,null,null,null,null,null,null,null,null,null,null,null,null,null,null,null,null,null,null,null,null,null,null,null,null,null,null,null,null,null,null,null,null,null,null,null,null,null,null,null,null,null,null,null,null,null,null,null,null,null,null,null,null,null,null,null,null,null,null,null,null,null,null,null,null,null,null,null,null,null,null,null,null,null,null,null,null,null,null,null,null,null,null,null,null,null,null,null,null,null,null,null,null,null,null,null,null,null,null,null,null,null,null,null,null,null,null,null,null,null,null,null,null,null,null,null,null,null,null,null,null,null,null,null,null,null,null,null,null,null,null,null,null,null,null,null,null,null,null,null,null,null,null,null,null,null,null,null,null,null,null,null,null,null,null,null,null,null,null,null,null,null,null,null,null,null,null,null,null,null,null,null,null,null,null,null,null,null,null,null,null,null,null,null,null,null,null,null,null,null,null,null,null,null,null,null,null,null,null,null,null,null,null,null,null,null,null,null,null,null,null,null,null,null,null,null,null,null,null,null,null,null,null,null,null,null,null,null,null,null,null,null,null,null,null,null,null,null,null,null,null,null,null,null,null,null,null,null,null,null,null,null,null,null,null,null,null,null,null,null,null,null,null,null,null,null,null,null,null,null,null,null,null,null,null,null,null,null,null,null,null,null,null,null,null,null,null,null,null,null,null,null,null,null,null,null,null,null,null,null,null,null,null,null,null,null,null,null,null,null,null,null,null,null,null,null,null,null,null,null,null,null,null,null,null,null,null,null,null,null,null,null,null,null,null,null,null,null,null,null,35]
[36,"Divide 4-digit number by 2-digit number",2,null,null,null,null,null,null,null,null,null,null,null,null,null,null,null,null,null,null,null,null,null,null,null,null,null,null,null,null,null,null,null,null,null,null,null,null,null,null,null,null,null,null,null,null,null,null,null,null,null,null,null,null,null,null,null,null,null,null,null,null,null,null,null,null,null,null,null,null,null,null,null,null,null,null,null,null,null,null,null,null,null,null,null,null,null,null,null,null,null,null,null,null,null,null,null,null,null,null,null,null,null,null,null,null,null,null,null,null,null,null,null,null,null,null,null,null,null,null,null,null,null,null,null,null,null,null,null,null,null,null,null,null,null,null,null,null,null,null,null,null,null,null,null,null,null,null,null,null,null,null,null,null,null,null,null,null,null,null,null,null,null,null,null,null,null,null,null,null,null,null,null,null,null,null,null,null,null,null,null,null,null,null,null,null,null,null,null,null,null,null,null,null,null,null,null,null,null,null,null,null,null,null,null,null,null,null,null,null,null,null,null,null,null,null,null,null,null,null,null,null,null,null,null,null,null,null,null,null,null,null,null,null,null,null,null,null,null,null,null,null,null,null,null,null,null,null,null,null,null,null,null,null,null,null,null,null,null,null,null,null,null,null,null,null,null,null,null,null,null,null,null,null,null,null,null,null,null,null,null,null,null,null,null,null,null,null,null,null,null,null,null,null,null,null,null,null,null,null,null,null,null,null,null,null,null,null,null,null,null,null,null,null,null,null,null,null,null,null,null,null,null,null,null,null,null,null,null,null,null,null,null,null,null,null,null,null,null,null,null,null,null,null,null,null,null,null,null,null,null,null,null,null,null,null,null,null,null,null,null,null,null,null,null,null,null,null,null,null,null,null,null,null,null,null,null,null,null,null,null,null,null,null,null,null,null,null,null,null,null,null,null,null,null,null,null,null,null,null,null,null,null,null,null,null,null,null,null,null,null,null,null,null,null,null,null,null,null,null,null,null,null,null,null,null,null,null,null,null,null,null,null,null,null,null,null,null,null,null,null,null,null,null,null,null,null,null,null,null,null,null,null,null,null,null,null,null,null,null,null,null,null,null,null,null,null,null,null,null,null,null,null,null,null,null,null,null,null,null,null,null,null,null,null,null,null,null,null,null,null,null,null,null,null,null,null,null,null,36]
[]
[]
[]
[]
[]
["Total Marks",null,{"$f":"SUM(C3:C43)","v":40},{"$f":"SUM(D3:D43)","v":0},0,0,0,0,0,0,0,0,0,0,0,0,0,0,0,0,0,0,0,0,0,0,0,0,0,0,0,0,0,0,0,0,0,0,0,0,0,0,0,0,0,0,0,0,0,0,0,0,0,0,0,0,0,0,0,0,0,0,0,0,0,0,0,{"$f":"SUM(BP3:BP43)","v":0},0,0,0,0,0,0,0,0,0,0,0,0,0,0,0,0,0,0,0,0,0,0,0,0,0,0,0,0,0,0,0,0,0,0,0,0,0,0,0,0,0,0,0,0,0,0,0,0,0,0,0,0,0,0,0,0,0,0,0,0,0,0,0,{"$f":"SUM(EB3:EB43)","v":0},0,0,0,0,0,0,0,0,0,0,0,{"$f":"SUM(EN3:EN43)","v":0},0,0,0,0,0,0,0,0,0,0,0,0,0,0,0,0,0,0,0,0,0,0,0,0,0,0,0,0,0,0,0,0,0,0,0,0,0,0,0,0,0,0,0,0,0,0,0,0,0,{"$f":"SUM(GL3:GL43)","v":0},0,0,0,0,0,0,0,0,0,0,0,0,0,0,0,0,0,0,0,0,0,0,0,0,0,0,0,0,0,0,0,0,0,0,0,0,0,0,0,0,0,0,0,0,0,0,0,0,0,0,0,0,0,0,0,0,0,0,0,0,0,0,0,{"$f":"SUM(IX3:IX43)","v":0},0,0,0,0,0,0,0,0,0,0,0,0,0,0,0,0,0,0,0,0,0,0,0,0,0,0,0,0,0,0,0,0,0,0,0,0,0,0,0,0,0,0,0,0,0,0,0,0,0,0,0,0,0,0,0,0,0,0,0,0,0,0,0,{"$f":"SUM(LJ3:LJ43)","v":0},0,0,0,0,0,0,0,0,0,0,0,0,0,0,0,0,0,0,0,0,0,0,0,0,0,0,0,0,0,0,0,0,0,0,0,0,0,0,0,0,0,0,0,0,0,0,0,0,0,0,0,0,0,0,0,0,0,0,0,0,0,0,0,{"$f":"SUM(NV3:NV43)","v":0},0,0,0,0,0,0,0,0,0,0,0,0,0,0,0,0,0,0,0,0,0,0,0,0,0,0,0,0,0,0,0,0,0,0,0,0,0,0,0,0,0,0,0,0,0,0,0,0,0,0,0,0,0,0,0,0,0,0,0,0,0,0,0,{"$f":"SUM(QH3:QH43)","v":0},0,0,0,0,0,0,0,0,0,0,0,0,0,0,0,0,0,0,0,0,0,0,{"$f":"SUM(RE3:RE43)","v":0},0,0,0,0,0,0,0,0,0,0,0,0,0,0,0,0,0,0,0,0,0,0,0,0,0,0,0,666]

{"sheet":"Paper 2","index":2,"n_rows":31,"n_cols":501,"rows_kept":31,"cut":false,"hidden":false,"merged":[[30,0,30,1],[0,1,0,2]]}
["PAPER 1","Enter student names UNDER each number i.e. cells E2, F2, G2, etc",null,1,2,3,4,5,6,7,8,9,10,11,12,13,14,15,16,17,18,19,20,21,22,23,24,25,26,27,28,29,30,31,32,33,34,35,36,37,38,39,40,41,42,43,44,45,46,47,48,49,50,51,52,53,54,55,56,57,58,59,60,61,62,63,64,65,66,67,68,69,70,71,72,73,74,75,76,77,78,79,80,81,82,83,84,85,86,87,88,89,90,91,92,93,94,95,96,97,98,99,100,101,102,103,104,105,106,107,108,109,110,111,112,113,114,115,116,117,118,119,120,121,122,123,124,125,126,127,128,129,130,131,132,133,134,135,136,137,138,139,140,141,142,143,144,145,146,147,148,149,150,151,152,153,154,155,156,157,158,159,160,161,162,163,164,165,166,167,168,169,170,171,172,173,174,175,176,177,178,179,180,181,182,183,184,185,186,187,188,189,190,191,192,193,194,195,196,197,198,199,200,201,202,203,204,205,206,207,208,209,210,211,212,213,214,215,216,217,218,219,220,221,222,223,224,225,226,227,228,229,230,231,232,233,234,235,236,237,238,239,240,241,242,243,244,245,246,247,248,249,250,251,252,253,254,255,256,257,258,259,260,261,262,263,264,265,266,267,268,269,270,271,272,273,274,275,276,277,278,279,280,281,282,283,284,285,286,287,288,289,290,291,292,293,294,295,296,297,298,299,300,301,302,303,304,305,306,307,308,309,310,311,312,313,314,315,316,317,318,319,320,321,322,323,324,325,326,327,328,329,330,331,332,333,334,335,336,337,338,339,340,341,342,343,344,345,346,347,348,349,350,351,352,353,354,355,356,357,358,359,360,361,362,363,364,365,366,367,368,369,370,371,372,373,374,375,376,377,378,379,380,381,382,383,384,385,386,387,388,389,390,391,392,393,394,395,396,397,398,399,400,401,402,403,404,405,406,407,408,409,410,411,412,413,414,415,416,417,418,419,420,421,422,423,424,425,426,427,428,429,430,431,432,433,434,435,436,437,438,439,440,441,442,443,444,445,446,447,448,449,450,451,452,453,454,455,456,457,458,459,460,461,462,463,464,465,466,467,468,469,470,471,472,473,474,475,476,477,478,479,480,481,482,483,484,485,486,487,488,489,490,491,492,493,494,495,496,497,500]
["Questions /","Topic","MAX",null,null,null,null,null,null,null,null,null,null,null,null,null,null,null,null,null,null,null,null,null,null,null,null,null,null,null,null,null,null,null,null,null,null,null,null,null,null,null,null,null,null,null,null,null,null,null,null,null,null,null,null,null,null,null,null,null,null,null,null,null,null,null,null,null,null,null,null,null,null,null,null,null,null,null,null,null,null,null,null,null,null,null,null,null,null,null,null,null,null,null,null,null,null,null,null,null,null,null,null,null,null,null,null,null,null,null,null,null,null,null,null,null,null,null,null,null,null,null,null,null,null,null,null,null,null,null,null,null,null,null,null,null,null,null,null,null,null,null,null,null,null,null,null,null,null,null,null,null,null,null,null,null,null,null,null,null,null,null,null,null,null,null,null,null,null,null,null,null,null,null,null,null,null,null,null,null,null,null,null,null,null,null,null,null,null,null,null,null,null,null,null,null,null,null,null,null,null,null,null,null,null,null,null,null,null,null,null,null,null,null,null,null,null,null,null,null,null,null,null,null,null,null,null,null,null,null,null,null,null,null,null,null,null,null,null,null,null,null,null,null,null,null,null,null,null,null,null,null,null,null,null,null,null,null,null,null,null,null,null,null,null,null,null,null,null,null,null,null,null,null,null,null,null,null,null,null,null,null,null,null,null,null,null,null,null,null,null,null,null,null,null,null,null,null,null,null,null,null,null,null,null,null,null,null,null,null,null,null,null,null,null,null,null,null,null,null,null,null,null,null,null,null,null,null,null,null,null,null,null,null,null,null,null,null,null,null,null,null,null,null,null,null,null,null,null,null,null,null,null,null,null,null,null,null,null,null,null,null,null,null,null,null,null,null,null,null,null,null,null,null,null,null,null,null,null,null,null,null,null,null,null,null,null,null,null,null,null,null,null,null,null,null,null,null,null,null,null,null,null,null,null,null,null,null,null,null,null,null,null,null,null,null,null,null,null,null,null,null,null,null,null,null,null,null,null,null,null,null,null,null,null,null,null,null,null,null,null,null,null,null,null,null,null,null,null,null,null,null,null,null,null,null,null,null,null,null,null,null,null,null,null,null,null,null,null,null,null,null,null,null,null,null,null,null,null,null,null,null,null,null,null,null,null,null,null,null,null,null,null,null,null,null,null,null,null,null,"Example Student "]
[1,"Use lines of symmetry ",1,null,null,null,null,null,null,null,null,null,null,null,null,null,null,null,null,null,null,null,null,null,null,null,null,null,null,null,null,null,null,null,null,null,null,null,null,null,null,null,null,null,null,null,null,null,null,null,null,null,null,null,null,null,null,null,null,null,null,null,null,null,null,null,null,null,null,null,null,null,null,null,null,null,null,null,null,null,null,null,null,null,null,null,null,null,null,null,null,null,null,null,null,null,null,null,null,null,null,null,null,null,null,null,null,null,null,null,null,null,null,null,null,null,null,null,null,null,null,null,null,null,null,null,null,null,null,null,null,null,null,null,null,null,null,null,null,null,null,null,null,null,null,null,null,null,null,null,null,null,null,null,null,null,null,null,null,null,null,null,null,null,null,null,null,null,null,null,null,null,null,null,null,null,null,null,null,null,null,null,null,null,null,null,null,null,null,null,null,null,null,null,null,null,null,null,null,null,null,null,null,null,null,null,null,null,null,null,null,null,null,null,null,null,null,null,null,null,null,null,null,null,null,null,null,null,null,null,null,null,null,null,null,null,null,null,null,null,null,null,null,null,null,null,null,null,null,null,null,null,null,null,null,null,null,null,null,null,null,null,null,null,null,null,null,null,null,null,null,null,null,null,null,null,null,null,null,null,null,null,null,null,null,null,null,null,null,null,null,null,null,null,null,null,null,null,null,null,null,null,null,null,null,null,null,null,null,null,null,null,null,null,null,null,null,null,null,null,null,null,null,null,null,null,null,null,null,null,null,null,null,null,null,null,null,null,null,null,null,null,null,null,null,null,null,null,null,null,null,null,null,null,null,null,null,null,null,null,null,null,null,null,null,null,null,null,null,null,null,null,null,null,null,null,null,null,null,null,null,null,null,null,null,null,null,null,null,null,null,null,null,null,null,null,null,null,null,null,null,null,null,null,null,null,null,null,null,null,null,null,null,null,null,null,null,null,null,null,null,null,null,null,null,null,null,null,null,null,null,null,null,null,null,null,null,null,null,null,null,null,null,null,null,null,null,null,null,null,null,null,null,null,null,null,null,null,null,null,null,null,null,null,null,null,null,null,null,null,null,null,null,null,null,null,null,null,null,null,null,null,null,null,null,null,null,null,null,null,null,null,null,null,null,null,null,null,null,null,1]
[2,"Use inverse operations to check answers",1,null,null,null,null,null,null,null,null,null,null,null,null,null,null,null,null,null,null,null,null,null,null,null,null,null,null,null,null,null,null,null,null,null,null,null,null,null,null,null,null,null,null,null,null,null,null,null,null,null,null,null,null,null,null,null,null,null,null,null,null,null,null,null,null,null,null,null,null,null,null,null,null,null,null,null,null,null,null,null,null,null,null,null,null,null,null,null,null,null,null,null,null,null,null,null,null,null,null,null,null,null,null,null,null,null,null,null,null,null,null,null,null,null,null,null,null,null,null,null,null,null,null,null,null,null,null,null,null,null,null,null,null,null,null,null,null,null,null,null,null,null,null,null,null,null,null,null,null,null,null,null,null,null,null,null,null,null,null,null,null,null,null,null,null,null,null,null,null,null,null,null,null,null,null,null,null,null,null,null,null,null,null,null,null,null,null,null,null,null,null,null,null,null,null,null,null,null,null,null,null,null,null,null,null,null,null,null,null,null,null,null,null,null,null,null,null,null,null,null,null,null,null,null,null,null,null,null,null,null,null,null,null,null,null,null,null,null,null,null,null,null,null,null,null,null,null,null,null,null,null,null,null,null,null,null,null,null,null,null,null,null,null,null,null,null,null,null,null,null,null,null,null,null,null,null,null,null,null,null,null,null,null,null,null,null,null,null,null,null,null,null,null,null,null,null,null,null,null,null,null,null,null,null,null,null,null,null,null,null,null,null,null,null,null,null,null,null,null,null,null,null,null,null,null,null,null,null,null,null,null,null,null,null,null,null,null,null,null,null,null,null,null,null,null,null,null,null,null,null,null,null,null,null,null,null,null,null,null,null,null,null,null,null,null,null,null,null,null,null,null,null,null,null,null,null,null,null,null,null,null,null,null,null,null,null,null,null,null,null,null,null,null,null,null,null,null,null,null,null,null,null,null,null,null,null,null,null,null,null,null,null,null,null,null,null,null,null,null,null,null,null,null,null,null,null,null,null,null,null,null,null,null,null,null,null,null,null,null,null,null,null,null,null,null,null,null,null,null,null,null,null,null,null,null,null,null,null,null,null,null,null,null,null,null,null,null,null,null,null,null,null,null,null,null,null,null,null,null,null,null,null,null,null,null,null,null,null,null,null,null,null,null,null,null,null,null,null,2]
[3,"Measure lengths (cm/mm)",1,null,null,null,null,null,null,null,null,null,null,null,null,null,null,null,null,null,null,null,null,null,null,null,null,null,null,null,null,null,null,null,null,null,null,null,null,null,null,null,null,null,null,null,null,null,null,null,null,null,null,null,null,null,null,null,null,null,null,null,null,null,null,null,null,null,null,null,null,null,null,null,null,null,null,null,null,null,null,null,null,null,null,null,null,null,null,null,null,null,null,null,null,null,null,null,null,null,null,null,null,null,null,null,null,null,null,null,null,null,null,null,null,null,null,null,null,null,null,null,null,null,null,null,null,null,null,null,null,null,null,null,null,null,null,null,null,null,null,null,null,null,null,null,null,null,null,null,null,null,null,null,null,null,null,null,null,null,null,null,null,null,null,null,null,null,null,null,null,null,null,null,null,null,null,null,null,null,null,null,null,null,null,null,null,null,null,null,null,null,null,null,null,null,null,null,null,null,null,null,null,null,null,null,null,null,null,null,null,null,null,null,null,null,null,null,null,null,null,null,null,null,null,null,null,null,null,null,null,null,null,null,null,null,null,null,null,null,null,null,null,null,null,null,null,null,null,null,null,null,null,null,null,null,null,null,null,null,null,null,null,null,null,null,null,null,null,null,null,null,null,null,null,null,null,null,null,null,null,null,null,null,null,null,null,null,null,null,null,null,null,null,null,null,null,null,null,null,null,null,null,null,null,null,null,null,null,null,null,null,null,null,null,null,null,null,null,null,null,null,null,null,null,null,null,null,null,null,null,null,null,null,null,null,null,null,null,null,null,null,null,null,null,null,null,null,null,null,null,null,null,null,null,null,null,null,null,null,null,null,null,null,null,null,null,null,null,null,null,null,null,null,null,null,null,null,null,null,null,null,null,null,null,null,null,null,null,null,null,null,null,null,null,null,null,null,null,null,null,null,null,null,null,null,null,null,null,null,null,null,null,null,null,null,null,null,null,null,null,null,null,null,null,null,null,null,null,null,null,null,null,null,null,null,null,null,null,null,null,null,null,null,null,null,null,null,null,null,null,null,null,null,null,null,null,null,null,null,null,null,null,null,null,null,null,null,null,null,null,null,null,null,null,null,null,null,null,null,null,null,null,null,null,null,null,null,null,null,null,null,null,null,null,null,null,null,null,null,3]
[4,"Recognise families of equivalent fractions",1,null,null,null,null,null,null,null,null,null,null,null,null,null,null,null,null,null,null,null,null,null,null,null,null,null,null,null,null,null,null,null,null,null,null,null,null,null,null,null,null,null,null,null,null,null,null,null,null,null,null,null,null,null,null,null,null,null,null,null,null,null,null,null,null,null,null,null,null,null,null,null,null,null,null,null,null,null,null,null,null,null,null,null,null,null,null,null,null,null,null,null,null,null,null,null,null,null,null,null,null,null,null,null,null,null,null,null,null,null,null,null,null,null,null,null,null,null,null,null,null,null,null,null,null,null,null,null,null,null,null,null,null,null,null,null,null,null,null,null,null,null,null,null,null,null,null,null,null,null,null,null,null,null,null,null,null,null,null,null,null,null,null,null,null,null,null,null,null,null,null,null,null,null,null,null,null,null,null,null,null,null,null,null,null,null,null,null,null,null,null,null,null,null,null,null,null,null,null,null,null,null,null,null,null,null,null,null,null,null,null,null,null,null,null,null,null,null,null,null,null,null,null,null,null,null,null,null,null,null,null,null,null,null,null,null,null,null,null,null,null,null,null,null,null,null,null,null,null,null,null,null,null,null,null,null,null,null,null,null,null,null,null,null,null,null,null,null,null,null,null,null,null,null,null,null,null,null,null,null,null,null,null,null,null,null,null,null,null,null,null,null,null,null,null,null,null,null,null,null,null,null,null,null,null,null,null,null,null,null,null,null,null,null,null,null,null,null,null,null,null,null,null,null,null,null,null,null,null,null,null,null,null,null,null,null,null,null,null,null,null,null,null,null,null,null,null,null,null,null,null,null,null,null,null,null,null,null,null,null,null,null,null,null,null,null,null,null,null,null,null,null,null,null,null,null,null,null,null,null,null,null,null,null,null,null,null,null,null,null,null,null,null,null,null,null,null,null,null,null,null,null,null,null,null,null,null,null,null,null,null,null,null,null,null,null,null,null,null,null,null,null,null,null,null,null,null,null,null,null,null,null,null,null,null,null,null,null,null,null,null,null,null,null,null,null,null,null,null,null,null,null,null,null,null,null,null,null,null,null,null,null,null,null,null,null,null,null,null,null,null,null,null,null,null,null,null,null,null,null,null,null,null,null,null,null,null,null,null,null,null,null,null,null,null,null,null,null,4]
["5a","Use negative numbers in context / Calcualte intervals across zero ",1,null,null,null,null,null,null,null,null,null,null,null,null,null,null,null,null,null,null,null,null,null,null,null,null,null,null,null,null,null,null,null,null,null,null,null,null,null,null,null,null,null,null,null,null,null,null,null,null,null,null,null,null,null,null,null,null,null,null,null,null,null,null,null,null,null,null,null,null,null,null,null,null,null,null,null,null,null,null,null,null,null,null,null,null,null,null,null,null,null,null,null,null,null,null,null,null,null,null,null,null,null,null,null,null,null,null,null,null,null,null,null,null,null,null,null,null,null,null,null,null,null,null,null,null,null,null,null,null,null,null,null,null,null,null,null,null,null,null,null,null,null,null,null,null,null,null,null,null,null,null,null,null,null,null,null,null,null,null,null,null,null,null,null,null,null,null,null,null,null,null,null,null,null,null,null,null,null,null,null,null,null,null,null,null,null,null,null,null,null,null,null,null,null,null,null,null,null,null,null,null,null,null,null,null,null,null,null,null,null,null,null,null,null,null,null,null,null,null,null,null,null,null,null,null,null,null,null,null,null,null,null,null,null,null,null,null,null,null,null,null,null,null,null,null,null,null,null,null,null,null,null,null,null,null,null,null,null,null,null,null,null,null,null,null,null,null,null,null,null,null,null,null,null,null,null,null,null,null,null,null,null,null,null,null,null,null,null,null,null,null,null,null,null,null,null,null,null,null,null,null,null,null,null,null,null,null,null,null,null,null,null,null,null,null,null,null,null,null,null,null,null,null,null,null,null,null,null,null,null,null,null,null,null,null,null,null,null,null,null,null,null,null,null,null,null,null,null,null,null,null,null,null,null,null,null,null,null,null,null,null,null,null,null,null,null,null,null,null,null,null,null,null,null,null,null,null,null,null,null,null,null,null,null,null,null,null,null,null,null,null,null,null,null,null,null,null,null,null,null,null,null,null,null,null,null,null,null,null,null,null,null,null,null,null,null,null,null,null,null,null,null,null,null,null,null,null,null,null,null,null,null,null,null,null,null,null,null,null,null,null,null,null,null,null,null,null,null,null,null,null,null,null,null,null,null,null,null,null,null,null,null,null,null,null,null,null,null,null,null,null,null,null,null,null,null,null,null,null,null,null,null,null,null,null,null,null,null,null,null,null,null,null,null,null,null,null,null,5]
["5b","Use negative numbers in context / Solve problems using information presented in tables",1,null,null,null,null,null,null,null,null,null,null,null,null,null,null,null,null,null,null,null,null,null,null,null,null,null,null,null,null,null,null,null,null,null,null,null,null,null,null,null,null,null,null,null,null,null,null,null,null,null,null,null,null,null,null,null,null,null,null,null,null,null,null,null,null,null,null,null,null,null,null,null,null,null,null,null,null,null,null,null,null,null,null,null,null,null,null,null,null,null,null,null,null,null,null,null,null,null,null,null,null,null,null,null,null,null,null,null,null,null,null,null,null,null,null,null,null,null,null,null,null,null,null,null,null,null,null,null,null,null,null,null,null,null,null,null,null,null,null,null,null,null,null,null,null,null,null,null,null,null,null,null,null,null,null,null,null,null,null,null,null,null,null,null,null,null,null,null,null,null,null,null,null,null,null,null,null,null,null,null,null,null,null,null,null,null,null,null,null,null,null,null,null,null,null,null,null,null,null,null,null,null,null,null,null,null,null,null,null,null,null,null,null,null,null,null,null,null,null,null,null,null,null,null,null,null,null,null,null,null,null,null,null,null,null,null,null,null,null,null,null,null,null,null,null,null,null,null,null,null,null,null,null,null,null,null,null,null,null,null,null,null,null,null,null,null,null,null,null,null,null,null,null,null,null,null,null,null,null,null,null,null,null,null,null,null,null,null,null,null,null,null,null,null,null,null,null,null,null,null,null,null,null,null,null,null,null,null,null,null,null,null,null,null,null,null,null,null,null,null,null,null,null,null,null,null,null,null,null,null,null,null,null,null,null,null,null,null,null,null,null,null,null,null,null,null,null,null,null,null,null,null,null,null,null,null,null,null,null,null,null,null,null,null,null,null,null,null,null,null,null,null,null,null,null,null,null,null,null,null,null,null,null,null,null,null,null,null,null,null,null,null,null,null,null,null,null,null,null,null,null,null,null,null,null,null,null,null,null,null,null,null,null,null,null,null,null,null,null,null,null,null,null,null,null,null,null,null,null,null,null,null,null,null,null,null,null,null,null,null,null,null,null,null,null,null,null,null,null,null,null,null,null,null,null,null,null,null,null,null,null,null,null,null,null,null,null,null,null,null,null,null,null,null,null,null,null,null,null,null,null,null,null,null,null,null,null,null,null,null,null,null,null,null,null,null,null,null,6]
["6","Count forwards and backwards in steps of 10 up to 1 000 000",1,null,null,null,null,null,null,null,null,null,null,null,null,null,null,null,null,null,null,null,null,null,null,null,null,null,null,null,null,null,null,null,null,null,null,null,null,null,null,null,null,null,null,null,null,null,null,null,null,null,null,null,null,null,null,null,null,null,null,null,null,null,null,null,null,null,null,null,null,null,null,null,null,null,null,null,null,null,null,null,null,null,null,null,null,null,null,null,null,null,null,null,null,null,null,null,null,null,null,null,null,null,null,null,null,null,null,null,null,null,null,null,null,null,null,null,null,null,null,null,null,null,null,null,null,null,null,null,null,null,null,null,null,null,null,null,null,null,null,null,null,null,null,null,null,null,null,null,null,null,null,null,null,null,null,null,null,null,null,null,null,null,null,null,null,null,null,null,null,null,null,null,null,null,null,null,null,null,null,null,null,null,null,null,null,null,null,null,null,null,null,null,null,null,null,null,null,null,null,null,null,null,null,null,null,null,null,null,null,null,null,null,null,null,null,null,null,null,null,null,null,null,null,null,null,null,null,null,null,null,null,null,null,null,null,null,null,null,null,null,null,null,null,null,null,null,null,null,null,null,null,null,null,null,null,null,null,null,null,null,null,null,null,null,null,null,null,null,null,null,null,null,null,null,null,null,null,null,null,null,null,null,null,null,null,null,null,null,null,null,null,null,null,null,null,null,null,null,null,null,null,null,null,null,null,null,null,null,null,null,null,null,null,null,null,null,null,null,null,null,null,null,null,null,null,null,null,null,null,null,null,null,null,null,null,null,null,null,null,null,null,null,null,null,null,null,null,null,null,null,null,null,null,null,null,null,null,null,null,null,null,null,null,null,null,null,null,null,null,null,null,null,null,null,null,null,null,null,null,null,null,null,null,null,null,null,null,null,null,null,null,null,null,null,null,null,null,null,null,null,null,null,null,null,null,null,null,null,null,null,null,null,null,null,null,null,null,null,null,null,null,null,null,null,null,null,null,null,null,null,null,null,null,null,null,null,null,null,null,null,null,null,null,null,null,null,null,null,null,null,null,null,null,null,null,null,null,null,null,null,null,null,null,null,null,null,null,null,null,null,null,null,null,null,null,null,null,null,null,null,null,null,null,null,null,null,null,null,null,null,null,null,null,null,null,null,null,null,7]
["7","Read and write decimals as fractions",1,null,null,null,null,null,null,null,null,null,null,null,null,null,null,null,null,null,null,null,null,null,null,null,null,null,null,null,null,null,null,null,null,null,null,null,null,null,null,null,null,null,null,null,null,null,null,null,null,null,null,null,null,null,null,null,null,null,null,null,null,null,null,null,null,null,null,null,null,null,null,null,null,null,null,null,null,null,null,null,null,null,null,null,null,null,null,null,null,null,null,null,null,null,null,null,null,null,null,null,null,null,null,null,null,null,null,null,null,null,null,null,null,null,null,null,null,null,null,null,null,null,null,null,null,null,null,null,null,null,null,null,null,null,null,null,null,null,null,null,null,null,null,null,null,null,null,null,null,null,null,null,null,null,null,null,null,null,null,null,null,null,null,null,null,null,null,null,null,null,null,null,null,null,null,null,null,null,null,null,null,null,null,null,null,null,null,null,null,null,null,null,null,null,null,null,null,null,null,null,null,null,null,null,null,null,null,null,null,null,null,null,null,null,null,null,null,null,null,null,null,null,null,null,null,null,null,null,null,null,null,null,null,null,null,null,null,null,null,null,null,null,null,null,null,null,null,null,null,null,null,null,null,null,null,null,null,null,null,null,null,null,null,null,null,null,null,null,null,null,null,null,null,null,null,null,null,null,null,null,null,null,null,null,null,null,null,null,null,null,null,null,null,null,null,null,null,null,null,null,null,null,null,null,null,null,null,null,null,null,null,null,null,null,null,null,null,null,null,null,null,null,null,null,null,null,null,null,null,null,null,null,null,null,null,null,null,null,null,null,null,null,null,null,null,null,null,null,null,null,null,null,null,null,null,null,null,null,null,null,null,null,null,null,null,null,null,null,null,null,null,null,null,null,null,null,null,null,null,null,null,null,null,null,null,null,null,null,null,null,null,null,null,null,null,null,null,null,null,null,null,null,null,null,null,null,null,null,null,null,null,null,null,null,null,null,null,null,null,null,null,null,null,null,null,null,null,null,null,null,null,null,null,null,null,null,null,null,null,null,null,null,null,null,null,null,null,null,null,null,null,null,null,null,null,null,null,null,null,null,null,null,null,null,null,null,null,null,null,null,null,null,null,null,null,null,null,null,null,null,null,null,null,null,null,null,null,null,null,null,null,null,null,null,null,null,null,null,8]
["8","Solve problems involving multiplication / Recall of 3x, 4x, 8x multiplication tables",2,null,null,null,null,null,null,null,null,null,null,null,null,null,null,null,null,null,null,null,null,null,null,null,null,null,null,null,null,null,null,null,null,null,null,null,null,null,null,null,null,null,null,null,null,null,null,null,null,null,null,null,null,null,null,null,null,null,null,null,null,null,null,null,null,null,null,null,null,null,null,null,null,null,null,null,null,null,null,null,null,null,null,null,null,null,null,null,null,null,null,null,null,null,null,null,null,null,null,null,null,null,null,null,null,null,null,null,null,null,null,null,null,null,null,null,null,null,null,null,null,null,null,null,null,null,null,null,null,null,null,null,null,null,null,null,null,null,null,null,null,null,null,null,null,null,null,null,null,null,null,null,null,null,null,null,null,null,null,null,null,null,null,null,null,null,null,null,null,null,null,null,null,null,null,null,null,null,null,null,null,null,null,null,null,null,null,null,null,null,null,null,null,null,null,null,null,null,null,null,null,null,null,null,null,null,null,null,null,null,null,null,null,null,null,null,null,null,null,null,null,null,null,null,null,null,null,null,null,null,null,null,null,null,null,null,null,null,null,null,null,null,null,null,null,null,null,null,null,null,null,null,null,null,null,null,null,null,null,null,null,null,null,null,null,null,null,null,null,null,null,null,null,null,null,null,null,null,null,null,null,null,null,null,null,null,null,null,null,null,null,null,null,null,null,null,null,null,null,null,null,null,null,null,null,null,null,null,null,null,null,null,null,null,null,null,null,null,null,null,null,null,null,null,null,null,null,null,null,null,null,null,null,null,null,null,null,null,null,null,null,null,null,null,null,null,null,null,null,null,null,null,null,null,null,null,null,null,null,null,null,null,null,null,null,null,null,null,null,null,null,null,null,null,null,null,null,null,null,null,null,null,null,null,null,null,null,null,null,null,null,null,null,null,null,null,null,null,null,null,null,null,null,null,null,null,null,null,null,null,null,null,null,null,null,null,null,null,null,null,null,null,null,null,null,null,null,null,null,null,null,null,null,null,null,null,null,null,null,null,null,null,null,null,null,null,null,null,null,null,null,null,null,null,null,null,null,null,null,null,null,null,null,null,null,null,null,null,null,null,null,null,null,null,null,null,null,null,null,null,null,null,null,null,null,null,null,null,null,null,null,null,null,null,null,null,null,null,9]
["9","Read, write, order and compare numbers up to 10 000 000",1,null,null,null,null,null,null,null,null,null,null,null,null,null,null,null,null,null,null,null,null,null,null,null,null,null,null,null,null,null,null,null,null,null,null,null,null,null,null,null,null,null,null,null,null,null,null,null,null,null,null,null,null,null,null,null,null,null,null,null,null,null,null,null,null,null,null,null,null,null,null,null,null,null,null,null,null,null,null,null,null,null,null,null,null,null,null,null,null,null,null,null,null,null,null,null,null,null,null,null,null,null,null,null,null,null,null,null,null,null,null,null,null,null,null,null,null,null,null,null,null,null,null,null,null,null,null,null,null,null,null,null,null,null,null,null,null,null,null,null,null,null,null,null,null,null,null,null,null,null,null,null,null,null,null,null,null,null,null,null,null,null,null,null,null,null,null,null,null,null,null,null,null,null,null,null,null,null,null,null,null,null,null,null,null,null,null,null,null,null,null,null,null,null,null,null,null,null,null,null,null,null,null,null,null,null,null,null,null,null,null,null,null,null,null,null,null,null,null,null,null,null,null,null,null,null,null,null,null,null,null,null,null,null,null,null,null,null,null,null,null,null,null,null,null,null,null,null,null,null,null,null,null,null,null,null,null,null,null,null,null,null,null,null,null,null,null,null,null,null,null,null,null,null,null,null,null,null,null,null,null,null,null,null,null,null,null,null,null,null,null,null,null,null,null,null,null,null,null,null,null,null,null,null,null,null,null,null,null,null,null,null,null,null,null,null,null,null,null,null,null,null,null,null,null,null,null,null,null,null,null,null,null,null,null,null,null,null,null,null,null,null,null,null,null,null,null,null,null,null,null,null,null,null,null,null,null,null,null,null,null,null,null,null,null,null,null,null,null,null,null,null,null,null,null,null,null,null,null,null,null,null,null,null,null,null,null,null,null,null,null,null,null,null,null,null,null,null,null,null,null,null,null,null,null,null,null,null,null,null,null,null,null,null,null,null,null,null,null,null,null,null,null,null,null,null,null,null,null,null,null,null,null,null,null,null,null,null,null,null,null,null,null,null,null,null,null,null,null,null,null,null,null,null,null,null,null,null,null,null,null,null,null,null,null,null,null,null,null,null,null,null,null,null,null,null,null,null,null,null,null,null,null,null,null,null,null,null,null,null,null,null,null,null,null,null,null,null,10]
["10","Perform mental calculations",2,null,null,null,null,null,null,null,null,null,null,null,null,null,null,null,null,null,null,null,null,null,null,null,null,null,null,null,null,null,null,null,null,null,null,null,null,null,null,null,null,null,null,null,null,null,null,null,null,null,null,null,null,null,null,null,null,null,null,null,null,null,null,null,null,null,null,null,null,null,null,null,null,null,null,null,null,null,null,null,null,null,null,null,null,null,null,null,null,null,null,null,null,null,null,null,null,null,null,null,null,null,null,null,null,null,null,null,null,null,null,null,null,null,null,null,null,null,null,null,null,null,null,null,null,null,null,null,null,null,null,null,null,null,null,null,null,null,null,null,null,null,null,null,null,null,null,null,null,null,null,null,null,null,null,null,null,null,null,null,null,null,null,null,null,null,null,null,null,null,null,null,null,null,null,null,null,null,null,null,null,null,null,null,null,null,null,null,null,null,null,null,null,null,null,null,null,null,null,null,null,null,null,null,null,null,null,null,null,null,null,null,null,null,null,null,null,null,null,null,null,null,null,null,null,null,null,null,null,null,null,null,null,null,null,null,null,null,null,null,null,null,null,null,null,null,null,null,null,null,null,null,null,null,null,null,null,null,null,null,null,null,null,null,null,null,null,null,null,null,null,null,null,null,null,null,null,null,null,null,null,null,null,null,null,null,null,null,null,null,null,null,null,null,null,null,null,null,null,null,null,null,null,null,null,null,null,null,null,null,null,null,null,null,null,null,null,null,null,null,null,null,null,null,null,null,null,null,null,null,null,null,null,null,null,null,null,null,null,null,null,null,null,null,null,null,null,null,null,null,null,null,null,null,null,null,null,null,null,null,null,null,null,null,null,null,null,null,null,null,null,null,null,null,null,null,null,null,null,null,null,null,null,null,null,null,null,null,null,null,null,null,null,null,null,null,null,null,null,null,null,null,null,null,null,null,null,null,null,null,null,null,null,null,null,null,null,null,null,null,null,null,null,null,null,null,null,null,null,null,null,null,null,null,null,null,null,null,null,null,null,null,null,null,null,null,null,null,null,null,null,null,null,null,null,null,null,null,null,null,null,null,null,null,null,null,null,null,null,null,null,null,null,null,null,null,null,null,null,null,null,null,null,null,null,null,null,null,null,null,null,null,null,null,null,null,null,null,11]
["11","Describe simple 3-D shapes",2,null,null,null,null,null,null,null,null,null,null,null,null,null,null,null,null,null,null,null,null,null,null,null,null,null,null,null,null,null,null,null,null,null,null,null,null,null,null,null,null,null,null,null,null,null,null,null,null,null,null,null,null,null,null,null,null,null,null,null,null,null,null,null,null,null,null,null,null,null,null,null,null,null,null,null,null,null,null,null,null,null,null,null,null,null,null,null,null,null,null,null,null,null,null,null,null,null,null,null,null,null,null,null,null,null,null,null,null,null,null,null,null,null,null,null,null,null,null,null,null,null,null,null,null,null,null,null,null,null,null,null,null,null,null,null,null,null,null,null,null,null,null,null,null,null,null,null,null,null,null,null,null,null,null,null,null,null,null,null,null,null,null,null,null,null,null,null,null,null,null,null,null,null,null,null,null,null,null,null,null,null,null,null,null,null,null,null,null,null,null,null,null,null,null,null,null,null,null,null,null,null,null,null,null,null,null,null,null,null,null,null,null,null,null,null,null,null,null,null,null,null,null,null,null,null,null,null,null,null,null,null,null,null,null,null,null,null,null,null,null,null,null,null,null,null,null,null,null,null,null,null,null,null,null,null,null,null,null,null,null,null,null,null,null,null,null,null,null,null,null,null,null,null,null,null,null,null,null,null,null,null,null,null,null,null,null,null,null,null,null,null,null,null,null,null,null,null,null,null,null,null,null,null,null,null,null,null,null,null,null,null,null,null,null,null,null,null,null,null,null,null,null,null,null,null,null,null,null,null,null,null,null,null,null,null,null,null,null,null,null,null,null,null,null,null,null,null,null,null,null,null,null,null,null,null,null,null,null,null,null,null,null,null,null,null,null,null,null,null,null,null,null,null,null,null,null,null,null,null,null,null,null,null,null,null,null,null,null,null,null,null,null,null,null,null,null,null,null,null,null,null,null,null,null,null,null,null,null,null,null,null,null,null,null,null,null,null,null,null,null,null,null,null,null,null,null,null,null,null,null,null,null,null,null,null,null,null,null,null,null,null,null,null,null,null,null,null,null,null,null,null,null,null,null,null,null,null,null,null,null,null,null,null,null,null,null,null,null,null,null,null,null,null,null,null,null,null,null,null,null,null,null,null,null,null,null,null,null,null,null,null,null,null,null,null,null,null,12]
["12","Draw and translate simple shapes ",1,null,null,null,null,null,null,null,null,null,null,null,null,null,null,null,null,null,null,null,null,null,null,null,null,null,null,null,null,null,null,null,null,null,null,null,null,null,null,null,null,null,null,null,null,null,null,null,null,null,null,null,null,null,null,null,null,null,null,null,null,null,null,null,null,null,null,null,null,null,null,null,null,null,null,null,null,null,null,null,null,null,null,null,null,null,null,null,null,null,null,null,null,null,null,null,null,null,null,null,null,null,null,null,null,null,null,null,null,null,null,null,null,null,null,null,null,null,null,null,null,null,null,null,null,null,null,null,null,null,null,null,null,null,null,null,null,null,null,null,null,null,null,null,null,null,null,null,null,null,null,null,null,null,null,null,null,null,null,null,null,null,null,null,null,null,null,null,null,null,null,null,null,null,null,null,null,null,null,null,null,null,null,null,null,null,null,null,null,null,null,null,null,null,null,null,null,null,null,null,null,null,null,null,null,null,null,null,null,null,null,null,null,null,null,null,null,null,null,null,null,null,null,null,null,null,null,null,null,null,null,null,null,null,null,null,null,null,null,null,null,null,null,null,null,null,null,null,null,null,null,null,null,null,null,null,null,null,null,null,null,null,null,null,null,null,null,null,null,null,null,null,null,null,null,null,null,null,null,null,null,null,null,null,null,null,null,null,null,null,null,null,null,null,null,null,null,null,null,null,null,null,null,null,null,null,null,null,null,null,null,null,null,null,null,null,null,null,null,null,null,null,null,null,null,null,null,null,null,null,null,null,null,null,null,null,null,null,null,null,null,null,null,null,null,null,null,null,null,null,null,null,null,null,null,null,null,null,null,null,null,null,null,null,null,null,null,null,null,null,null,null,null,null,null,null,null,null,null,null,null,null,null,null,null,null,null,null,null,null,null,null,null,null,null,null,null,null,null,null,null,null,null,null,null,null,null,null,null,null,null,null,null,null,null,null,null,null,null,null,null,null,null,null,null,null,null,null,null,null,null,null,null,null,null,null,null,null,null,null,null,null,null,null,null,null,null,null,null,null,null,null,null,null,null,null,null,null,null,null,null,null,null,null,null,null,null,null,null,null,null,null,null,null,null,null,null,null,null,null,null,null,null,null,null,null,null,null,null,null,null,null,null,null,null,null,null,null,13]
["13","Convert mixed numbers and improper fractions",1,null,null,null,null,null,null,null,null,null,null,null,null,null,null,null,null,null,null,null,null,null,null,null,null,null,null,null,null,null,null,null,null,null,null,null,null,null,null,null,null,null,null,null,null,null,null,null,null,null,null,null,null,null,null,null,null,null,null,null,null,null,null,null,null,null,null,null,null,null,null,null,null,null,null,null,null,null,null,null,null,null,null,null,null,null,null,null,null,null,null,null,null,null,null,null,null,null,null,null,null,null,null,null,null,null,null,null,null,null,null,null,null,null,null,null,null,null,null,null,null,null,null,null,null,null,null,null,null,null,null,null,null,null,null,null,null,null,null,null,null,null,null,null,null,null,null,null,null,null,null,null,null,null,null,null,null,null,null,null,null,null,null,null,null,null,null,null,null,null,null,null,null,null,null,null,null,null,null,null,null,null,null,null,null,null,null,null,null,null,null,null,null,null,null,null,null,null,null,null,null,null,null,null,null,null,null,null,null,null,null,null,null,null,null,null,null,null,null,null,null,null,null,null,null,null,null,null,null,null,null,null,null,null,null,null,null,null,null,null,null,null,null,null,null,null,null,null,null,null,null,null,null,null,null,null,null,null,null,null,null,null,null,null,null,null,null,null,null,null,null,null,null,null,null,null,null,null,null,null,null,null,null,null,null,null,null,null,null,null,null,null,null,null,null,null,null,null,null,null,null,null,null,null,null,null,null,null,null,null,null,null,null,null,null,null,null,null,null,null,null,null,null,null,null,null,null,null,null,null,null,null,null,null,null,null,null,null,null,null,null,null,null,null,null,null,null,null,null,null,null,null,null,null,null,null,null,null,null,null,null,null,null,null,null,null,null,null,null,null,null,null,null,null,null,null,null,null,null,null,null,null,null,null,null,null,null,null,null,null,null,null,null,null,null,null,null,null,null,null,null,null,null,null,null,null,null,null,null,null,null,null,null,null,null,null,null,null,null,null,null,null,null,null,null,null,null,null,null,null,null,null,null,null,null,null,null,null,null,null,null,null,null,null,null,null,null,null,null,null,null,null,null,null,null,null,null,null,null,null,null,null,null,null,null,null,null,null,null,null,null,null,null,null,null,null,null,null,null,null,null,null,null,null,null,null,null,null,null,null,null,null,null,null,null,null,null,null,14]
["14","Compare and order fractions, including fractions > 1",1,null,null,null,null,null,null,null,null,null,null,null,null,null,null,null,null,null,null,null,null,null,null,null,null,null,null,null,null,null,null,null,null,null,null,null,null,null,null,null,null,null,null,null,null,null,null,null,null,null,null,null,null,null,null,null,null,null,null,null,null,null,null,null,null,null,null,null,null,null,null,null,null,null,null,null,null,null,null,null,null,null,null,null,null,null,null,null,null,null,null,null,null,null,null,null,null,null,null,null,null,null,null,null,null,null,null,null,null,null,null,null,null,null,null,null,null,null,null,null,null,null,null,null,null,null,null,null,null,null,null,null,null,null,null,null,null,null,null,null,null,null,null,null,null,null,null,null,null,null,null,null,null,null,null,null,null,null,null,null,null,null,null,null,null,null,null,null,null,null,null,null,null,null,null,null,null,null,null,null,null,null,null,null,null,null,null,null,null,null,null,null,null,null,null,null,null,null,null,null,null,null,null,null,null,null,null,null,null,null,null,null,null,null,null,null,null,null,null,null,null,null,null,null,null,null,null,null,null,null,null,null,null,null,null,null,null,null,null,null,null,null,null,null,null,null,null,null,null,null,null,null,null,null,null,null,null,null,null,null,null,null,null,null,null,null,null,null,null,null,null,null,null,null,null,null,null,null,null,null,null,null,null,null,null,null,null,null,null,null,null,null,null,null,null,null,null,null,null,null,null,null,null,null,null,null,null,null,null,null,null,null,null,null,null,null,null,null,null,null,null,null,null,null,null,null,null,null,null,null,null,null,null,null,null,null,null,null,null,null,null,null,null,null,null,null,null,null,null,null,null,null,null,null,null,null,null,null,null,null,null,null,null,null,null,null,null,null,null,null,null,null,null,null,null,null,null,null,null,null,null,null,null,null,null,null,null,null,null,null,null,null,null,null,null,null,null,null,null,null,null,null,null,null,null,null,null,null,null,null,null,null,null,null,null,null,null,null,null,null,null,null,null,null,null,null,null,null,null,null,null,null,null,null,null,null,null,null,null,null,null,null,null,null,null,null,null,null,null,null,null,null,null,null,null,null,null,null,null,null,null,null,null,null,null,null,null,null,null,null,null,null,null,null,null,null,null,null,null,null,null,null,null,null,null,null,null,null,null,null,null,null,null,null,null,null,null,null,15]
["15","Solve problems involving multiplication ",2,null,null,null,null,null,null,null,null,null,null,null,null,null,null,null,null,null,null,null,null,null,null,null,null,null,null,null,null,null,null,null,null,null,null,null,null,null,null,null,null,null,null,null,null,null,null,null,null,null,null,null,null,null,null,null,null,null,null,null,null,null,null,null,null,null,null,null,null,null,null,null,null,null,null,null,null,null,null,null,null,null,null,null,null,null,null,null,null,null,null,null,null,null,null,null,null,null,null,null,null,null,null,null,null,null,null,null,null,null,null,null,null,null,null,null,null,null,null,null,null,null,null,null,null,null,null,null,null,null,null,null,null,null,null,null,null,null,null,null,null,null,null,null,null,null,null,null,null,null,null,null,null,null,null,null,null,null,null,null,null,null,null,null,null,null,null,null,null,null,null,null,null,null,null,null,null,null,null,null,null,null,null,null,null,null,null,null,null,null,null,null,null,null,null,null,null,null,null,null,null,null,null,null,null,null,null,null,null,null,null,null,null,null,null,null,null,null,null,null,null,null,null,null,null,null,null,null,null,null,null,null,null,null,null,null,null,null,null,null,null,null,null,null,null,null,null,null,null,null,null,null,null,null,null,null,null,null,null,null,null,null,null,null,null,null,null,null,null,null,null,null,null,null,null,null,null,null,null,null,null,null,null,null,null,null,null,null,null,null,null,null,null,null,null,null,null,null,null,null,null,null,null,null,null,null,null,null,null,null,null,null,null,null,null,null,null,null,null,null,null,null,null,null,null,null,null,null,null,null,null,null,null,null,null,null,null,null,null,null,null,null,null,null,null,null,null,null,null,null,null,null,null,null,null,null,null,null,null,null,null,null,null,null,null,null,null,null,null,null,null,null,null,null,null,null,null,null,null,null,null,null,null,null,null,null,null,null,null,null,null,null,null,null,null,null,null,null,null,null,null,null,null,null,null,null,null,null,null,null,null,null,null,null,null,null,null,null,null,null,null,null,null,null,null,null,null,null,null,null,null,null,null,null,null,null,null,null,null,null,null,null,null,null,null,null,null,null,null,null,null,null,null,null,null,null,null,null,null,null,null,null,null,null,null,null,null,null,null,null,null,null,null,null,null,null,null,null,null,null,null,null,null,null,null,null,null,null,null,null,null,null,null,null,null,null,null,null,16]
["16","Add and subtract numbers mentally ",2,null,null,null,null,null,null,null,null,null,null,null,null,null,null,null,null,null,null,null,null,null,null,null,null,null,null,null,null,null,null,null,null,null,null,null,null,null,null,null,null,null,null,null,null,null,null,null,null,null,null,null,null,null,null,null,null,null,null,null,null,null,null,null,null,null,null,null,null,null,null,null,null,null,null,null,null,null,null,null,null,null,null,null,null,null,null,null,null,null,null,null,null,null,null,null,null,null,null,null,null,null,null,null,null,null,null,null,null,null,null,null,null,null,null,null,null,null,null,null,null,null,null,null,null,null,null,null,null,null,null,null,null,null,null,null,null,null,null,null,null,null,null,null,null,null,null,null,null,null,null,null,null,null,null,null,null,null,null,null,null,null,null,null,null,null,null,null,null,null,null,null,null,null,null,null,null,null,null,null,null,null,null,null,null,null,null,null,null,null,null,null,null,null,null,null,null,null,null,null,null,null,null,null,null,null,null,null,null,null,null,null,null,null,null,null,null,null,null,null,null,null,null,null,null,null,null,null,null,null,null,null,null,null,null,null,null,null,null,null,null,null,null,null,null,null,null,null,null,null,null,null,null,null,null,null,null,null,null,null,null,null,null,null,null,null,null,null,null,null,null,null,null,null,null,null,null,null,null,null,null,null,null,null,null,null,null,null,null,null,null,null,null,null,null,null,null,null,null,null,null,null,null,null,null,null,null,null,null,null,null,null,null,null,null,null,null,null,null,null,null,null,null,null,null,null,null,null,null,null,null,null,null,null,null,null,null,null,null,null,null,null,null,null,null,null,null,null,null,null,null,null,null,null,null,null,null,null,null,null,null,null,null,null,null,null,null,null,null,null,null,null,null,null,null,null,null,null,null,null,null,null,null,null,null,null,null,null,null,null,null,null,null,null,null,null,null,null,null,null,null,null,null,null,null,null,null,null,null,null,null,null,null,null,null,null,null,null,null,null,null,null,null,null,null,null,null,null,null,null,null,null,null,null,null,null,null,null,null,null,null,null,null,null,null,null,null,null,null,null,null,null,null,null,null,null,null,null,null,null,null,null,null,null,null,null,null,null,null,null,null,null,null,null,null,null,null,null,null,null,null,null,null,null,null,null,null,null,null,null,null,null,null,null,null,null,null,null,17]
["17","Convert between metric units / Solve problems involving measures",3,null,null,null,null,null,null,null,null,null,null,null,null,null,null,null,null,null,null,null,null,null,null,null,null,null,null,null,null,null,null,null,null,null,null,null,null,null,null,null,null,null,null,null,null,null,null,null,null,null,null,null,null,null,null,null,null,null,null,null,null,null,null,null,null,null,null,null,null,null,null,null,null,null,null,null,null,null,null,null,null,null,null,null,null,null,null,null,null,null,null,null,null,null,null,null,null,null,null,null,null,null,null,null,null,null,null,null,null,null,null,null,null,null,null,null,null,null,null,null,null,null,null,null,null,null,null,null,null,null,null,null,null,null,null,null,null,null,null,null,null,null,null,null,null,null,null,null,null,null,null,null,null,null,null,null,null,null,null,null,null,null,null,null,null,null,null,null,null,null,null,null,null,null,null,null,null,null,null,null,null,null,null,null,null,null,null,null,null,null,null,null,null,null,null,null,null,null,null,null,null,null,null,null,null,null,null,null,null,null,null,null,null,null,null,null,null,null,null,null,null,null,null,null,null,null,null,null,null,null,null,null,null,null,null,null,null,null,null,null,null,null,null,null,null,null,null,null,null,null,null,null,null,null,null,null,null,null,null,null,null,null,null,null,null,null,null,null,null,null,null,null,null,null,null,null,null,null,null,null,null,null,null,null,null,null,null,null,null,null,null,null,null,null,null,null,null,null,null,null,null,null,null,null,null,null,null,null,null,null,null,null,null,null,null,null,null,null,null,null,null,null,null,null,null,null,null,null,null,null,null,null,null,null,null,null,null,null,null,null,null,null,null,null,null,null,null,null,null,null,null,null,null,null,null,null,null,null,null,null,null,null,null,null,null,null,null,null,null,null,null,null,null,null,null,null,null,null,null,null,null,null,null,null,null,null,null,null,null,null,null,null,null,null,null,null,null,null,null,null,null,null,null,null,null,null,null,null,null,null,null,null,null,null,null,null,null,null,null,null,null,null,null,null,null,null,null,null,null,null,null,null,null,null,null,null,null,null,null,null,null,null,null,null,null,null,null,null,null,null,null,null,null,null,null,null,null,null,null,null,null,null,null,null,null,null,null,null,null,null,null,null,null,null,null,null,null,null,null,null,null,null,null,null,null,null,null,null,null,null,null,null,null,null,null,null,null,null,18]
["18","Calculate the mean",2,null,null,null,null,null,null,null,null,null,null,null,null,null,null,null,null,null,null,null,null,null,null,null,null,null,null,null,null,null,null,null,null,null,null,null,null,null,null,null,null,null,null,null,null,null,null,null,null,null,null,null,null,null,null,null,null,null,null,null,null,null,null,null,null,null,null,null,null,null,null,null,null,null,null,null,null,null,null,null,null,null,null,null,null,null,null,null,null,null,null,null,null,null,null,null,null,null,null,null,null,null,null,null,null,null,null,null,null,null,null,null,null,null,null,null,null,null,null,null,null,null,null,null,null,null,null,null,null,null,null,null,null,null,null,null,null,null,null,null,null,null,null,null,null,null,null,null,null,null,null,null,null,null,null,null,null,null,null,null,null,null,null,null,null,null,null,null,null,null,null,null,null,null,null,null,null,null,null,null,null,null,null,null,null,null,null,null,null,null,null,null,null,null,null,null,null,null,null,null,null,null,null,null,null,null,null,null,null,null,null,null,null,null,null,null,null,null,null,null,null,null,null,null,null,null,null,null,null,null,null,null,null,null,null,null,null,null,null,null,null,null,null,null,null,null,null,null,null,null,null,null,null,null,null,null,null,null,null,null,null,null,null,null,null,null,null,null,null,null,null,null,null,null,null,null,null,null,null,null,null,null,null,null,null,null,null,null,null,null,null,null,null,null,null,null,null,null,null,null,null,null,null,null,null,null,null,null,null,null,null,null,null,null,null,null,null,null,null,null,null,null,null,null,null,null,null,null,null,null,null,null,null,null,null,null,null,null,null,null,null,null,null,null,null,null,null,null,null,null,null,null,null,null,null,null,null,null,null,null,null,null,null,null,null,null,null,null,null,null,null,null,null,null,null,null,null,null,null,null,null,null,null,null,null,null,null,null,null,null,null,null,null,null,null,null,null,null,null,null,null,null,null,null,null,null,null,null,null,null,null,null,null,null,null,null,null,null,null,null,null,null,null,null,null,null,null,null,null,null,null,null,null,null,null,null,null,null,null,null,null,null,null,null,null,null,null,null,null,null,null,null,null,null,null,null,null,null,null,null,null,null,null,null,null,null,null,null,null,null,null,null,null,null,null,null,null,null,null,null,null,null,null,null,null,null,null,null,null,null,null,null,null,null,null,null,null,null,19]
["19","Use estimation to check answers to calculations",1,null,null,null,null,null,null,null,null,null,null,null,null,null,null,null,null,null,null,null,null,null,null,null,null,null,null,null,null,null,null,null,null,null,null,null,null,null,null,null,null,null,null,null,null,null,null,null,null,null,null,null,null,null,null,null,null,null,null,null,null,null,null,null,null,null,null,null,null,null,null,null,null,null,null,null,null,null,null,null,null,null,null,null,null,null,null,null,null,null,null,null,null,null,null,null,null,null,null,null,null,null,null,null,null,null,null,null,null,null,null,null,null,null,null,null,null,null,null,null,null,null,null,null,null,null,null,null,null,null,null,null,null,null,null,null,null,null,null,null,null,null,null,null,null,null,null,null,null,null,null,null,null,null,null,null,null,null,null,null,null,null,null,null,null,null,null,null,null,null,null,null,null,null,null,null,null,null,null,null,null,null,null,null,null,null,null,null,null,null,null,null,null,null,null,null,null,null,null,null,null,null,null,null,null,null,null,null,null,null,null,null,null,null,null,null,null,null,null,null,null,null,null,null,null,null,null,null,null,null,null,null,null,null,null,null,null,null,null,null,null,null,null,null,null,null,null,null,null,null,null,null,null,null,null,null,null,null,null,null,null,null,null,null,null,null,null,null,null,null,null,null,null,null,null,null,null,null,null,null,null,null,null,null,null,null,null,null,null,null,null,null,null,null,null,null,null,null,null,null,null,null,null,null,null,null,null,null,null,null,null,null,null,null,null,null,null,null,null,null,null,null,null,null,null,null,null,null,null,null,null,null,null,null,null,null,null,null,null,null,null,null,null,null,null,null,null,null,null,null,null,null,null,null,null,null,null,null,null,null,null,null,null,null,null,null,null,null,null,null,null,null,null,null,null,null,null,null,null,null,null,null,null,null,null,null,null,null,null,null,null,null,null,null,null,null,null,null,null,null,null,null,null,null,null,null,null,null,null,null,null,null,null,null,null,null,null,null,null,null,null,null,null,null,null,null,null,null,null,null,null,null,null,null,null,null,null,null,null,null,null,null,null,null,null,null,null,null,null,null,null,null,null,null,null,null,null,null,null,null,null,null,null,null,null,null,null,null,null,null,null,null,null,null,null,null,null,null,null,null,null,null,null,null,null,null,null,null,null,null,null,null,null,null,null,null,null,null,20]
["20","Solve problems involving multiplication and division ",2,null,null,null,null,null,null,null,null,null,null,null,null,null,null,null,null,null,null,null,null,null,null,null,null,null,null,null,null,null,null,null,null,null,null,null,null,null,null,null,null,null,null,null,null,null,null,null,null,null,null,null,null,null,null,null,null,null,null,null,null,null,null,null,null,null,null,null,null,null,null,null,null,null,null,null,null,null,null,null,null,null,null,null,null,null,null,null,null,null,null,null,null,null,null,null,null,null,null,null,null,null,null,null,null,null,null,null,null,null,null,null,null,null,null,null,null,null,null,null,null,null,null,null,null,null,null,null,null,null,null,null,null,null,null,null,null,null,null,null,null,null,null,null,null,null,null,null,null,null,null,null,null,null,null,null,null,null,null,null,null,null,null,null,null,null,null,null,null,null,null,null,null,null,null,null,null,null,null,null,null,null,null,null,null,null,null,null,null,null,null,null,null,null,null,null,null,null,null,null,null,null,null,null,null,null,null,null,null,null,null,null,null,null,null,null,null,null,null,null,null,null,null,null,null,null,null,null,null,null,null,null,null,null,null,null,null,null,null,null,null,null,null,null,null,null,null,null,null,null,null,null,null,null,null,null,null,null,null,null,null,null,null,null,null,null,null,null,null,null,null,null,null,null,null,null,null,null,null,null,null,null,null,null,null,null,null,null,null,null,null,null,null,null,null,null,null,null,null,null,null,null,null,null,null,null,null,null,null,null,null,null,null,null,null,null,null,null,null,null,null,null,null,null,null,null,null,null,null,null,null,null,null,null,null,null,null,null,null,null,null,null,null,null,null,null,null,null,null,null,null,null,null,null,null,null,null,null,null,null,null,null,null,null,null,null,null,null,null,null,null,null,null,null,null,null,null,null,null,null,null,null,null,null,null,null,null,null,null,null,null,null,null,null,null,null,null,null,null,null,null,null,null,null,null,null,null,null,null,null,null,null,null,null,null,null,null,null,null,null,null,null,null,null,null,null,null,null,null,null,null,null,null,null,null,null,null,null,null,null,null,null,null,null,null,null,null,null,null,null,null,null,null,null,null,null,null,null,null,null,null,null,null,null,null,null,null,null,null,null,null,null,null,null,null,null,null,null,null,null,null,null,null,null,null,null,null,null,null,null,null,null,null,null,null,null,null,null,21]
["21a","Find pairs of numbers that satisfy an equation with 2 unknowns",1,null,null,null,null,null,null,null,null,null,null,null,null,null,null,null,null,null,null,null,null,null,null,null,null,null,null,null,null,null,null,null,null,null,null,null,null,null,null,null,null,null,null,null,null,null,null,null,null,null,null,null,null,null,null,null,null,null,null,null,null,null,null,null,null,null,null,null,null,null,null,null,null,null,null,null,null,null,null,null,null,null,null,null,null,null,null,null,null,null,null,null,null,null,null,null,null,null,null,null,null,null,null,null,null,null,null,null,null,null,null,null,null,null,null,null,null,null,null,null,null,null,null,null,null,null,null,null,null,null,null,null,null,null,null,null,null,null,null,null,null,null,null,null,null,null,null,null,null,null,null,null,null,null,null,null,null,null,null,null,null,null,null,null,null,null,null,null,null,null,null,null,null,null,null,null,null,null,null,null,null,null,null,null,null,null,null,null,null,null,null,null,null,null,null,null,null,null,null,null,null,null,null,null,null,null,null,null,null,null,null,null,null,null,null,null,null,null,null,null,null,null,null,null,null,null,null,null,null,null,null,null,null,null,null,null,null,null,null,null,null,null,null,null,null,null,null,null,null,null,null,null,null,null,null,null,null,null,null,null,null,null,null,null,null,null,null,null,null,null,null,null,null,null,null,null,null,null,null,null,null,null,null,null,null,null,null,null,null,null,null,null,null,null,null,null,null,null,null,null,null,null,null,null,null,null,null,null,null,null,null,null,null,null,null,null,null,null,null,null,null,null,null,null,null,null,null,null,null,null,null,null,null,null,null,null,null,null,null,null,null,null,null,null,null,null,null,null,null,null,null,null,null,null,null,null,null,null,null,null,null,null,null,null,null,null,null,null,null,null,null,null,null,null,null,null,null,null,null,null,null,null,null,null,null,null,null,null,null,null,null,null,null,null,null,null,null,null,null,null,null,null,null,null,null,null,null,null,null,null,null,null,null,null,null,null,null,null,null,null,null,null,null,null,null,null,null,null,null,null,null,null,null,null,null,null,null,null,null,null,null,null,null,null,null,null,null,null,null,null,null,null,null,null,null,null,null,null,null,null,null,null,null,null,null,null,null,null,null,null,null,null,null,null,null,null,null,null,null,null,null,null,null,null,null,null,null,null,null,null,null,null,null,null,null,null,null,null,22]
["21b","Find pairs of numbers that satisfy an equation with 2 unknowns",1,null,null,null,null,null,null,null,null,null,null,null,null,null,null,null,null,null,null,null,null,null,null,null,null,null,null,null,null,null,null,null,null,null,null,null,null,null,null,null,null,null,null,null,null,null,null,null,null,null,null,null,null,null,null,null,null,null,null,null,null,null,null,null,null,null,null,null,null,null,null,null,null,null,null,null,null,null,null,null,null,null,null,null,null,null,null,null,null,null,null,null,null,null,null,null,null,null,null,null,null,null,null,null,null,null,null,null,null,null,null,null,null,null,null,null,null,null,null,null,null,null,null,null,null,null,null,null,null,null,null,null,null,null,null,null,null,null,null,null,null,null,null,null,null,null,null,null,null,null,null,null,null,null,null,null,null,null,null,null,null,null,null,null,null,null,null,null,null,null,null,null,null,null,null,null,null,null,null,null,null,null,null,null,null,null,null,null,null,null,null,null,null,null,null,null,null,null,null,null,null,null,null,null,null,null,null,null,null,null,null,null,null,null,null,null,null,null,null,null,null,null,null,null,null,null,null,null,null,null,null,null,null,null,null,null,null,null,null,null,null,null,null,null,null,null,null,null,null,null,null,null,null,null,null,null,null,null,null,null,null,null,null,null,null,null,null,null,null,null,null,null,null,null,null,null,null,null,null,null,null,null,null,null,null,null,null,null,null,null,null,null,null,null,null,null,null,null,null,null,null,null,null,null,null,null,null,null,null,null,null,null,null,null,null,null,null,null,null,null,null,null,null,null,null,null,null,null,null,null,null,null,null,null,null,null,null,null,null,null,null,null,null,null,null,null,null,null,null,null,null,null,null,null,null,null,null,null,null,null,null,null,null,null,null,null,null,null,null,null,null,null,null,null,null,null,null,null,null,null,null,null,null,null,null,null,null,null,null,null,null,null,null,null,null,null,null,null,null,null,null,null,null,null,null,null,null,null,null,null,null,null,null,null,null,null,null,null,null,null,null,null,null,null,null,null,null,null,null,null,null,null,null,null,null,null,null,null,null,null,null,null,null,null,null,null,null,null,null,null,null,null,null,null,null,null,null,null,null,null,null,null,null,null,null,null,null,null,null,null,null,null,null,null,null,null,null,null,null,null,null,null,null,null,null,null,null,null,null,null,null,null,null,null,null,null,null,null,23]
[22,"Calculate the volume of cubes and cuboids",1,null,null,null,null,null,null,null,null,null,null,null,null,null,null,null,null,null,null,null,null,null,null,null,null,null,null,null,null,null,null,null,null,null,null,null,null,null,null,null,null,null,null,null,null,null,null,null,null,null,null,null,null,null,null,null,null,null,null,null,null,null,null,null,null,null,null,null,null,null,null,null,null,null,null,null,null,null,null,null,null,null,null,null,null,null,null,null,null,null,null,null,null,null,null,null,null,null,null,null,null,null,null,null,null,null,null,null,null,null,null,null,null,null,null,null,null,null,null,null,null,null,null,null,null,null,null,null,null,null,null,null,null,null,null,null,null,null,null,null,null,null,null,null,null,null,null,null,null,null,null,null,null,null,null,null,null,null,null,null,null,null,null,null,null,null,null,null,null,null,null,null,null,null,null,null,null,null,null,null,null,null,null,null,null,null,null,null,null,null,null,null,null,null,null,null,null,null,null,null,null,null,null,null,null,null,null,null,null,null,null,null,null,null,null,null,null,null,null,null,null,null,null,null,null,null,null,null,null,null,null,null,null,null,null,null,null,null,null,null,null,null,null,null,null,null,null,null,null,null,null,null,null,null,null,null,null,null,null,null,null,null,null,null,null,null,null,null,null,null,null,null,null,null,null,null,null,null,null,null,null,null,null,null,null,null,null,null,null,null,null,null,null,null,null,null,null,null,null,null,null,null,null,null,null,null,null,null,null,null,null,null,null,null,null,null,null,null,null,null,null,null,null,null,null,null,null,null,null,null,null,null,null,null,null,null,null,null,null,null,null,null,null,null,null,null,null,null,null,null,null,null,null,null,null,null,null,null,null,null,null,null,null,null,null,null,null,null,null,null,null,null,null,null,null,null,null,null,null,null,null,null,null,null,null,null,null,null,null,null,null,null,null,null,null,null,null,null,null,null,null,null,null,null,null,null,null,null,null,null,null,null,null,null,null,null,null,null,null,null,null,null,null,null,null,null,null,null,null,null,null,null,null,null,null,null,null,null,null,null,null,null,null,null,null,null,null,null,null,null,null,null,null,null,null,null,null,null,null,null,null,null,null,null,null,null,null,null,null,null,null,null,null,null,null,null,null,null,null,null,null,null,null,null,null,null,null,null,null,null,null,null,null,null,null,null,null,null,24]
["23","Multiply proper fractions and mixed numbers by whole numbers",2,null,null,null,null,null,null,null,null,null,null,null,null,null,null,null,null,null,null,null,null,null,null,null,null,null,null,null,null,null,null,null,null,null,null,null,null,null,null,null,null,null,null,null,null,null,null,null,null,null,null,null,null,null,null,null,null,null,null,null,null,null,null,null,null,null,null,null,null,null,null,null,null,null,null,null,null,null,null,null,null,null,null,null,null,null,null,null,null,null,null,null,null,null,null,null,null,null,null,null,null,null,null,null,null,null,null,null,null,null,null,null,null,null,null,null,null,null,null,null,null,null,null,null,null,null,null,null,null,null,null,null,null,null,null,null,null,null,null,null,null,null,null,null,null,null,null,null,null,null,null,null,null,null,null,null,null,null,null,null,null,null,null,null,null,null,null,null,null,null,null,null,null,null,null,null,null,null,null,null,null,null,null,null,null,null,null,null,null,null,null,null,null,null,null,null,null,null,null,null,null,null,null,null,null,null,null,null,null,null,null,null,null,null,null,null,null,null,null,null,null,null,null,null,null,null,null,null,null,null,null,null,null,null,null,null,null,null,null,null,null,null,null,null,null,null,null,null,null,null,null,null,null,null,null,null,null,null,null,null,null,null,null,null,null,null,null,null,null,null,null,null,null,null,null,null,null,null,null,null,null,null,null,null,null,null,null,null,null,null,null,null,null,null,null,null,null,null,null,null,null,null,null,null,null,null,null,null,null,null,null,null,null,null,null,null,null,null,null,null,null,null,null,null,null,null,null,null,null,null,null,null,null,null,null,null,null,null,null,null,null,null,null,null,null,null,null,null,null,null,null,null,null,null,null,null,null,null,null,null,null,null,null,null,null,null,null,null,null,null,null,null,null,null,null,null,null,null,null,null,null,null,null,null,null,null,null,null,null,null,null,null,null,null,null,null,null,null,null,null,null,null,null,null,null,null,null,null,null,null,null,null,null,null,null,null,null,null,null,null,null,null,null,null,null,null,null,null,null,null,null,null,null,null,null,null,null,null,null,null,null,null,null,null,null,null,null,null,null,null,null,null,null,null,null,null,null,null,null,null,null,null,null,null,null,null,null,null,null,null,null,null,null,null,null,null,null,null,null,null,null,null,null,null,null,null,null,null,null,null,null,null,null,null,null,null,null,null,25]
[]
[]
[]
["Total Marks",null,{"$f":"SUM(C3:C30)","v":35},{"$f":"SUM(D3:D30)","v":0},{"$f":"SUM(E3:E30)","v":0},{"$f":"SUM(F3:F30)","v":0},{"$f":"SUM(G3:G30)","v":0},{"$f":"SUM(H3:H30)","v":0},{"$f":"SUM(I3:I30)","v":0},{"$f":"SUM(J3:J30)","v":0},{"$f":"SUM(K3:K30)","v":0},{"$f":"SUM(L3:L30)","v":0},{"$f":"SUM(M3:M30)","v":0},{"$f":"SUM(N3:N30)","v":0},{"$f":"SUM(O3:O30)","v":0},{"$f":"SUM(P3:P30)","v":0},{"$f":"SUM(Q3:Q30)","v":0},{"$f":"SUM(R3:R30)","v":0},{"$f":"SUM(S3:S30)","v":0},{"$f":"SUM(T3:T30)","v":0},{"$f":"SUM(U3:U30)","v":0},{"$f":"SUM(V3:V30)","v":0},{"$f":"SUM(W3:W30)","v":0},{"$f":"SUM(X3:X30)","v":0},{"$f":"SUM(Y3:Y30)","v":0},{"$f":"SUM(Z3:Z30)","v":0},{"$f":"SUM(AA3:AA30)","v":0},{"$f":"SUM(AB3:AB30)","v":0},{"$f":"SUM(AC3:AC30)","v":0},{"$f":"SUM(AD3:AD30)","v":0},{"$f":"SUM(AE3:AE30)","v":0},{"$f":"SUM(AF3:AF30)","v":0},{"$f":"SUM(AG3:AG30)","v":0},{"$f":"SUM(AH3:AH30)","v":0},{"$f":"SUM(AI3:AI30)","v":0},{"$f":"SUM(AJ3:AJ30)","v":0},{"$f":"SUM(AK3:AK30)","v":0},{"$f":"SUM(AL3:AL30)","v":0},{"$f":"SUM(AM3:AM30)","v":0},{"$f":"SUM(AN3:AN30)","v":0},{"$f":"SUM(AO3:AO30)","v":0},{"$f":"SUM(AP3:AP30)","v":0},{"$f":"SUM(AQ3:AQ30)","v":0},{"$f":"SUM(AR3:AR30)","v":0},{"$f":"SUM(AS3:AS30)","v":0},{"$f":"SUM(AT3:AT30)","v":0},{"$f":"SUM(AU3:AU30)","v":0},{"$f":"SUM(AV3:AV30)","v":0},{"$f":"SUM(AW3:AW30)","v":0},{"$f":"SUM(AX3:AX30)","v":0},{"$f":"SUM(AY3:AY30)","v":0},{"$f":"SUM(AZ3:AZ30)","v":0},{"$f":"SUM(BA3:BA30)","v":0},{"$f":"SUM(BB3:BB30)","v":0},{"$f":"SUM(BC3:BC30)","v":0},{"$f":"SUM(BD3:BD30)","v":0},{"$f":"SUM(BE3:BE30)","v":0},{"$f":"SUM(BF3:BF30)","v":0},{"$f":"SUM(BG3:BG30)","v":0},{"$f":"SUM(BH3:BH30)","v":0},{"$f":"SUM(BI3:BI30)","v":0},{"$f":"SUM(BJ3:BJ30)","v":0},{"$f":"SUM(BK3:BK30)","v":0},{"$f":"SUM(BL3:BL30)","v":0},{"$f":"SUM(BM3:BM30)","v":0},{"$f":"SUM(BN3:BN30)","v":0},{"$f":"SUM(BO3:BO30)","v":0},{"$f":"SUM(BP3:BP30)","v":0},{"$f":"SUM(BQ3:BQ30)","v":0},{"$f":"SUM(BR3:BR30)","v":0},{"$f":"SUM(BS3:BS30)","v":0},{"$f":"SUM(BT3:BT30)","v":0},{"$f":"SUM(BU3:BU30)","v":0},{"$f":"SUM(BV3:BV30)","v":0},{"$f":"SUM(BW3:BW30)","v":0},{"$f":"SUM(BX3:BX30)","v":0},{"$f":"SUM(BY3:BY30)","v":0},{"$f":"SUM(BZ3:BZ30)","v":0},{"$f":"SUM(CA3:CA30)","v":0},{"$f":"SUM(CB3:CB30)","v":0},{"$f":"SUM(CC3:CC30)","v":0},{"$f":"SUM(CD3:CD30)","v":0},{"$f":"SUM(CE3:CE30)","v":0},{"$f":"SUM(CF3:CF30)","v":0},{"$f":"SUM(CG3:CG30)","v":0},{"$f":"SUM(CH3:CH30)","v":0},{"$f":"SUM(CI3:CI30)","v":0},{"$f":"SUM(CJ3:CJ30)","v":0},{"$f":"SUM(CK3:CK30)","v":0},{"$f":"SUM(CL3:CL30)","v":0},{"$f":"SUM(CM3:CM30)","v":0},{"$f":"SUM(CN3:CN30)","v":0},{"$f":"SUM(CO3:CO30)","v":0},{"$f":"SUM(CP3:CP30)","v":0},{"$f":"SUM(CQ3:CQ30)","v":0},{"$f":"SUM(CR3:CR30)","v":0},{"$f":"SUM(CS3:CS30)","v":0},{"$f":"SUM(CT3:CT30)","v":0},{"$f":"SUM(CU3:CU30)","v":0},{"$f":"SUM(CV3:CV30)","v":0},{"$f":"SUM(CW3:CW30)","v":0},{"$f":"SUM(CX3:CX30)","v":0},{"$f":"SUM(CY3:CY30)","v":0},{"$f":"SUM(CZ3:CZ30)","v":0},{"$f":"SUM(DA3:DA30)","v":0},{"$f":"SUM(DB3:DB30)","v":0},{"$f":"SUM(DC3:DC30)","v":0},{"$f":"SUM(DD3:DD30)","v":0},{"$f":"SUM(DE3:DE30)","v":0},{"$f":"SUM(DF3:DF30)","v":0},{"$f":"SUM(DG3:DG30)","v":0},{"$f":"SUM(DH3:DH30)","v":0},{"$f":"SUM(DI3:DI30)","v":0},{"$f":"SUM(DJ3:DJ30)","v":0},{"$f":"SUM(DK3:DK30)","v":0},{"$f":"SUM(DL3:DL30)","v":0},{"$f":"SUM(DM3:DM30)","v":0},{"$f":"SUM(DN3:DN30)","v":0},{"$f":"SUM(DO3:DO30)","v":0},{"$f":"SUM(DP3:DP30)","v":0},{"$f":"SUM(DQ3:DQ30)","v":0},{"$f":"SUM(DR3:DR30)","v":0},{"$f":"SUM(DS3:DS30)","v":0},{"$f":"SUM(DT3:DT30)","v":0},{"$f":"SUM(DU3:DU30)","v":0},{"$f":"SUM(DV3:DV30)","v":0},{"$f":"SUM(DW3:DW30)","v":0},{"$f":"SUM(DX3:DX30)","v":0},{"$f":"SUM(DY3:DY30)","v":0},{"$f":"SUM(DZ3:DZ30)","v":0},{"$f":"SUM(EA3:EA30)","v":0},{"$f":"SUM(EB3:EB30)","v":0},{"$f":"SUM(EC3:EC30)","v":0},{"$f":"SUM(ED3:ED30)","v":0},{"$f":"SUM(EE3:EE30)","v":0},{"$f":"SUM(EF3:EF30)","v":0},{"$f":"SUM(EG3:EG30)","v":0},{"$f":"SUM(EH3:EH30)","v":0},{"$f":"SUM(EI3:EI30)","v":0},{"$f":"SUM(EJ3:EJ30)","v":0},{"$f":"SUM(EK3:EK30)","v":0},{"$f":"SUM(EL3:EL30)","v":0},{"$f":"SUM(EM3:EM30)","v":0},{"$f":"SUM(EN3:EN30)","v":0},{"$f":"SUM(EO3:EO30)","v":0},{"$f":"SUM(EP3:EP30)","v":0},{"$f":"SUM(EQ3:EQ30)","v":0},{"$f":"SUM(ER3:ER30)","v":0},{"$f":"SUM(ES3:ES30)","v":0},{"$f":"SUM(ET3:ET30)","v":0},{"$f":"SUM(EU3:EU30)","v":0},{"$f":"SUM(EV3:EV30)","v":0},{"$f":"SUM(EW3:EW30)","v":0},{"$f":"SUM(EX3:EX30)","v":0},{"$f":"SUM(EY3:EY30)","v":0},{"$f":"SUM(EZ3:EZ30)","v":0},{"$f":"SUM(FA3:FA30)","v":0},{"$f":"SUM(FB3:FB30)","v":0},{"$f":"SUM(FC3:FC30)","v":0},{"$f":"SUM(FD3:FD30)","v":0},{"$f":"SUM(FE3:FE30)","v":0},{"$f":"SUM(FF3:FF30)","v":0},{"$f":"SUM(FG3:FG30)","v":0},{"$f":"SUM(FH3:FH30)","v":0},{"$f":"SUM(FI3:FI30)","v":0},{"$f":"SUM(FJ3:FJ30)","v":0},{"$f":"SUM(FK3:FK30)","v":0},{"$f":"SUM(FL3:FL30)","v":0},{"$f":"SUM(FM3:FM30)","v":0},{"$f":"SUM(FN3:FN30)","v":0},{"$f":"SUM(FO3:FO30)","v":0},{"$f":"SUM(FP3:FP30)","v":0},{"$f":"SUM(FQ3:FQ30)","v":0},{"$f":"SUM(FR3:FR30)","v":0},{"$f":"SUM(FS3:FS30)","v":0},{"$f":"SUM(FT3:FT30)","v":0},{"$f":"SUM(FU3:FU30)","v":0},{"$f":"SUM(FV3:FV30)","v":0},{"$f":"SUM(FW3:FW30)","v":0},{"$f":"SUM(FX3:FX30)","v":0},{"$f":"SUM(FY3:FY30)","v":0},{"$f":"SUM(FZ3:FZ30)","v":0},{"$f":"SUM(GA3:GA30)","v":0},{"$f":"SUM(GB3:GB30)","v":0},{"$f":"SUM(GC3:GC30)","v":0},{"$f":"SUM(GD3:GD30)","v":0},{"$f":"SUM(GE3:GE30)","v":0},{"$f":"SUM(GF3:GF30)","v":0},{"$f":"SUM(GG3:GG30)","v":0},{"$f":"SUM(GH3:GH30)","v":0},{"$f":"SUM(GI3:GI30)","v":0},{"$f":"SUM(GJ3:GJ30)","v":0},{"$f":"SUM(GK3:GK30)","v":0},{"$f":"SUM(GL3:GL30)","v":0},{"$f":"SUM(GM3:GM30)","v":0},{"$f":"SUM(GN3:GN30)","v":0},{"$f":"SUM(GO3:GO30)","v":0},{"$f":"SUM(GP3:GP30)","v":0},{"$f":"SUM(GQ3:GQ30)","v":0},{"$f":"SUM(GR3:GR30)","v":0},{"$f":"SUM(GS3:GS30)","v":0},{"$f":"SUM(GT3:GT30)","v":0},{"$f":"SUM(GU3:GU30)","v":0},{"$f":"SUM(GV3:GV30)","v":0},{"$f":"SUM(GW3:GW30)","v":0},{"$f":"SUM(GX3:GX30)","v":0},{"$f":"SUM(GY3:GY30)","v":0},{"$f":"SUM(GZ3:GZ30)","v":0},{"$f":"SUM(HA3:HA30)","v":0},{"$f":"SUM(HB3:HB30)","v":0},{"$f":"SUM(HC3:HC30)","v":0},{"$f":"SUM(HD3:HD30)","v":0},{"$f":"SUM(HE3:HE30)","v":0},{"$f":"SUM(HF3:HF30)","v":0},{"$f":"SUM(HG3:HG30)","v":0},{"$f":"SUM(HH3:HH30)","v":0},{"$f":"SUM(HI3:HI30)","v":0},{"$f":"SUM(HJ3:HJ30)","v":0},{"$f":"SUM(HK3:HK30)","v":0},{"$f":"SUM(HL3:HL30)","v":0},{"$f":"SUM(HM3:HM30)","v":0},{"$f":"SUM(HN3:HN30)","v":0},{"$f":"SUM(HO3:HO30)","v":0},{"$f":"SUM(HP3:HP30)","v":0},{"$f":"SUM(HQ3:HQ30)","v":0},{"$f":"SUM(HR3:HR30)","v":0},{"$f":"SUM(HS3:HS30)","v":0},{"$f":"SUM(HT3:HT30)","v":0},{"$f":"SUM(HU3:HU30)","v":0},{"$f":"SUM(HV3:HV30)","v":0},{"$f":"SUM(HW3:HW30)","v":0},{"$f":"SUM(HX3:HX30)","v":0},{"$f":"SUM(HY3:HY30)","v":0},{"$f":"SUM(HZ3:HZ30)","v":0},{"$f":"SUM(IA3:IA30)","v":0},{"$f":"SUM(IB3:IB30)","v":0},{"$f":"SUM(IC3:IC30)","v":0},{"$f":"SUM(ID3:ID30)","v":0},{"$f":"SUM(IE3:IE30)","v":0},{"$f":"SUM(IF3:IF30)","v":0},{"$f":"SUM(IG3:IG30)","v":0},{"$f":"SUM(IH3:IH30)","v":0},{"$f":"SUM(II3:II30)","v":0},{"$f":"SUM(IJ3:IJ30)","v":0},{"$f":"SUM(IK3:IK30)","v":0},{"$f":"SUM(IL3:IL30)","v":0},{"$f":"SUM(IM3:IM30)","v":0},{"$f":"SUM(IN3:IN30)","v":0},{"$f":"SUM(IO3:IO30)","v":0},{"$f":"SUM(IP3:IP30)","v":0},{"$f":"SUM(IQ3:IQ30)","v":0},{"$f":"SUM(IR3:IR30)","v":0},{"$f":"SUM(IS3:IS30)","v":0},{"$f":"SUM(IT3:IT30)","v":0},{"$f":"SUM(IU3:IU30)","v":0},{"$f":"SUM(IV3:IV30)","v":0},{"$f":"SUM(IW3:IW30)","v":0},{"$f":"SUM(IX3:IX30)","v":0},{"$f":"SUM(IY3:IY30)","v":0},{"$f":"SUM(IZ3:IZ30)","v":0},{"$f":"SUM(JA3:JA30)","v":0},{"$f":"SUM(JB3:JB30)","v":0},{"$f":"SUM(JC3:JC30)","v":0},{"$f":"SUM(JD3:JD30)","v":0},{"$f":"SUM(JE3:JE30)","v":0},{"$f":"SUM(JF3:JF30)","v":0},{"$f":"SUM(JG3:JG30)","v":0},{"$f":"SUM(JH3:JH30)","v":0},{"$f":"SUM(JI3:JI30)","v":0},{"$f":"SUM(JJ3:JJ30)","v":0},{"$f":"SUM(JK3:JK30)","v":0},{"$f":"SUM(JL3:JL30)","v":0},{"$f":"SUM(JM3:JM30)","v":0},{"$f":"SUM(JN3:JN30)","v":0},{"$f":"SUM(JO3:JO30)","v":0},{"$f":"SUM(JP3:JP30)","v":0},{"$f":"SUM(JQ3:JQ30)","v":0},{"$f":"SUM(JR3:JR30)","v":0},{"$f":"SUM(JS3:JS30)","v":0},{"$f":"SUM(JT3:JT30)","v":0},{"$f":"SUM(JU3:JU30)","v":0},{"$f":"SUM(JV3:JV30)","v":0},{"$f":"SUM(JW3:JW30)","v":0},{"$f":"SUM(JX3:JX30)","v":0},{"$f":"SUM(JY3:JY30)","v":0},{"$f":"SUM(JZ3:JZ30)","v":0},{"$f":"SUM(KA3:KA30)","v":0},{"$f":"SUM(KB3:KB30)","v":0},{"$f":"SUM(KC3:KC30)","v":0},{"$f":"SUM(KD3:KD30)","v":0},{"$f":"SUM(KE3:KE30)","v":0},{"$f":"SUM(KF3:KF30)","v":0},{"$f":"SUM(KG3:KG30)","v":0},{"$f":"SUM(KH3:KH30)","v":0},{"$f":"SUM(KI3:KI30)","v":0},{"$f":"SUM(KJ3:KJ30)","v":0},{"$f":"SUM(KK3:KK30)","v":0},{"$f":"SUM(KL3:KL30)","v":0},{"$f":"SUM(KM3:KM30)","v":0},{"$f":"SUM(KN3:KN30)","v":0},{"$f":"SUM(KO3:KO30)","v":0},{"$f":"SUM(KP3:KP30)","v":0},{"$f":"SUM(KQ3:KQ30)","v":0},{"$f":"SUM(KR3:KR30)","v":0},{"$f":"SUM(KS3:KS30)","v":0},{"$f":"SUM(KT3:KT30)","v":0},{"$f":"SUM(KU3:KU30)","v":0},{"$f":"SUM(KV3:KV30)","v":0},{"$f":"SUM(KW3:KW30)","v":0},{"$f":"SUM(KX3:KX30)","v":0},{"$f":"SUM(KY3:KY30)","v":0},{"$f":"SUM(KZ3:KZ30)","v":0},{"$f":"SUM(LA3:LA30)","v":0},{"$f":"SUM(LB3:LB30)","v":0},{"$f":"SUM(LC3:LC30)","v":0},{"$f":"SUM(LD3:LD30)","v":0},{"$f":"SUM(LE3:LE30)","v":0},{"$f":"SUM(LF3:LF30)","v":0},{"$f":"SUM(LG3:LG30)","v":0},{"$f":"SUM(LH3:LH30)","v":0},{"$f":"SUM(LI3:LI30)","v":0},{"$f":"SUM(LJ3:LJ30)","v":0},{"$f":"SUM(LK3:LK30)","v":0},{"$f":"SUM(LL3:LL30)","v":0},{"$f":"SUM(LM3:LM30)","v":0},{"$f":"SUM(LN3:LN30)","v":0},{"$f":"SUM(LO3:LO30)","v":0},{"$f":"SUM(LP3:LP30)","v":0},{"$f":"SUM(LQ3:LQ30)","v":0},{"$f":"SUM(LR3:LR30)","v":0},{"$f":"SUM(LS3:LS30)","v":0},{"$f":"SUM(LT3:LT30)","v":0},{"$f":"SUM(LU3:LU30)","v":0},{"$f":"SUM(LV3:LV30)","v":0},{"$f":"SUM(LW3:LW30)","v":0},{"$f":"SUM(LX3:LX30)","v":0},{"$f":"SUM(LY3:LY30)","v":0},{"$f":"SUM(LZ3:LZ30)","v":0},{"$f":"SUM(MA3:MA30)","v":0},{"$f":"SUM(MB3:MB30)","v":0},{"$f":"SUM(MC3:MC30)","v":0},{"$f":"SUM(MD3:MD30)","v":0},{"$f":"SUM(ME3:ME30)","v":0},{"$f":"SUM(MF3:MF30)","v":0},{"$f":"SUM(MG3:MG30)","v":0},{"$f":"SUM(MH3:MH30)","v":0},{"$f":"SUM(MI3:MI30)","v":0},{"$f":"SUM(MJ3:MJ30)","v":0},{"$f":"SUM(MK3:MK30)","v":0},{"$f":"SUM(ML3:ML30)","v":0},{"$f":"SUM(MM3:MM30)","v":0},{"$f":"SUM(MN3:MN30)","v":0},{"$f":"SUM(MO3:MO30)","v":0},{"$f":"SUM(MP3:MP30)","v":0},{"$f":"SUM(MQ3:MQ30)","v":0},{"$f":"SUM(MR3:MR30)","v":0},{"$f":"SUM(MS3:MS30)","v":0},{"$f":"SUM(MT3:MT30)","v":0},{"$f":"SUM(MU3:MU30)","v":0},{"$f":"SUM(MV3:MV30)","v":0},{"$f":"SUM(MW3:MW30)","v":0},{"$f":"SUM(MX3:MX30)","v":0},{"$f":"SUM(MY3:MY30)","v":0},{"$f":"SUM(MZ3:MZ30)","v":0},{"$f":"SUM(NA3:NA30)","v":0},{"$f":"SUM(NB3:NB30)","v":0},{"$f":"SUM(NC3:NC30)","v":0},{"$f":"SUM(ND3:ND30)","v":0},{"$f":"SUM(NE3:NE30)","v":0},{"$f":"SUM(NF3:NF30)","v":0},{"$f":"SUM(NG3:NG30)","v":0},{"$f":"SUM(NH3:NH30)","v":0},{"$f":"SUM(NI3:NI30)","v":0},{"$f":"SUM(NJ3:NJ30)","v":0},{"$f":"SUM(NK3:NK30)","v":0},{"$f":"SUM(NL3:NL30)","v":0},{"$f":"SUM(NM3:NM30)","v":0},{"$f":"SUM(NN3:NN30)","v":0},{"$f":"SUM(NO3:NO30)","v":0},{"$f":"SUM(NP3:NP30)","v":0},{"$f":"SUM(NQ3:NQ30)","v":0},{"$f":"SUM(NR3:NR30)","v":0},{"$f":"SUM(NS3:NS30)","v":0},{"$f":"SUM(NT3:NT30)","v":0},{"$f":"SUM(NU3:NU30)","v":0},{"$f":"SUM(NV3:NV30)","v":0},{"$f":"SUM(NW3:NW30)","v":0},{"$f":"SUM(NX3:NX30)","v":0},{"$f":"SUM(NY3:NY30)","v":0},{"$f":"SUM(NZ3:NZ30)","v":0},{"$f":"SUM(OA3:OA30)","v":0},{"$f":"SUM(OB3:OB30)","v":0},{"$f":"SUM(OC3:OC30)","v":0},{"$f":"SUM(OD3:OD30)","v":0},{"$f":"SUM(OE3:OE30)","v":0},{"$f":"SUM(OF3:OF30)","v":0},{"$f":"SUM(OG3:OG30)","v":0},{"$f":"SUM(OH3:OH30)","v":0},{"$f":"SUM(OI3:OI30)","v":0},{"$f":"SUM(OJ3:OJ30)","v":0},{"$f":"SUM(OK3:OK30)","v":0},{"$f":"SUM(OL3:OL30)","v":0},{"$f":"SUM(OM3:OM30)","v":0},{"$f":"SUM(ON3:ON30)","v":0},{"$f":"SUM(OO3:OO30)","v":0},{"$f":"SUM(OP3:OP30)","v":0},{"$f":"SUM(OQ3:OQ30)","v":0},{"$f":"SUM(OR3:OR30)","v":0},{"$f":"SUM(OS3:OS30)","v":0},{"$f":"SUM(OT3:OT30)","v":0},{"$f":"SUM(OU3:OU30)","v":0},{"$f":"SUM(OV3:OV30)","v":0},{"$f":"SUM(OW3:OW30)","v":0},{"$f":"SUM(OX3:OX30)","v":0},{"$f":"SUM(OY3:OY30)","v":0},{"$f":"SUM(OZ3:OZ30)","v":0},{"$f":"SUM(PA3:PA30)","v":0},{"$f":"SUM(PB3:PB30)","v":0},{"$f":"SUM(PC3:PC30)","v":0},{"$f":"SUM(PD3:PD30)","v":0},{"$f":"SUM(PE3:PE30)","v":0},{"$f":"SUM(PF3:PF30)","v":0},{"$f":"SUM(PG3:PG30)","v":0},{"$f":"SUM(PH3:PH30)","v":0},{"$f":"SUM(PI3:PI30)","v":0},{"$f":"SUM(PJ3:PJ30)","v":0},{"$f":"SUM(PK3:PK30)","v":0},{"$f":"SUM(PL3:PL30)","v":0},{"$f":"SUM(PM3:PM30)","v":0},{"$f":"SUM(PN3:PN30)","v":0},{"$f":"SUM(PO3:PO30)","v":0},{"$f":"SUM(PP3:PP30)","v":0},{"$f":"SUM(PQ3:PQ30)","v":0},{"$f":"SUM(PR3:PR30)","v":0},{"$f":"SUM(PS3:PS30)","v":0},{"$f":"SUM(PT3:PT30)","v":0},{"$f":"SUM(PU3:PU30)","v":0},{"$f":"SUM(PV3:PV30)","v":0},{"$f":"SUM(PW3:PW30)","v":0},{"$f":"SUM(PX3:PX30)","v":0},{"$f":"SUM(PY3:PY30)","v":0},{"$f":"SUM(PZ3:PZ30)","v":0},{"$f":"SUM(QA3:QA30)","v":0},{"$f":"SUM(QB3:QB30)","v":0},{"$f":"SUM(QC3:QC30)","v":0},{"$f":"SUM(QD3:QD30)","v":0},{"$f":"SUM(QE3:QE30)","v":0},{"$f":"SUM(QF3:QF30)","v":0},{"$f":"SUM(QG3:QG30)","v":0},{"$f":"SUM(QH3:QH30)","v":0},{"$f":"SUM(QI3:QI30)","v":0},{"$f":"SUM(QJ3:QJ30)","v":0},{"$f":"SUM(QK3:QK30)","v":0},{"$f":"SUM(QL3:QL30)","v":0},{"$f":"SUM(QM3:QM30)","v":0},{"$f":"SUM(QN3:QN30)","v":0},{"$f":"SUM(QO3:QO30)","v":0},{"$f":"SUM(QP3:QP30)","v":0},{"$f":"SUM(QQ3:QQ30)","v":0},{"$f":"SUM(QR3:QR30)","v":0},{"$f":"SUM(QS3:QS30)","v":0},{"$f":"SUM(QT3:QT30)","v":0},{"$f":"SUM(QU3:QU30)","v":0},{"$f":"SUM(QV3:QV30)","v":0},{"$f":"SUM(QW3:QW30)","v":0},{"$f":"SUM(QX3:QX30)","v":0},{"$f":"SUM(QY3:QY30)","v":0},{"$f":"SUM(QZ3:QZ30)","v":0},{"$f":"SUM(RA3:RA30)","v":0},{"$f":"SUM(RB3:RB30)","v":0},{"$f":"SUM(RC3:RC30)","v":0},{"$f":"SUM(RD3:RD30)","v":0},{"$f":"SUM(RE3:RE30)","v":0},{"$f":"SUM(RF3:RF30)","v":0},{"$f":"SUM(RG3:RG30)","v":0},{"$f":"SUM(RH3:RH30)","v":0},{"$f":"SUM(RI3:RI30)","v":0},{"$f":"SUM(RJ3:RJ30)","v":0},{"$f":"SUM(RK3:RK30)","v":0},{"$f":"SUM(RL3:RL30)","v":0},{"$f":"SUM(RM3:RM30)","v":0},{"$f":"SUM(RN3:RN30)","v":0},{"$f":"SUM(RO3:RO30)","v":0},{"$f":"SUM(RP3:RP30)","v":0},{"$f":"SUM(RQ3:RQ30)","v":0},{"$f":"SUM(RR3:RR30)","v":0},{"$f":"SUM(RS3:RS30)","v":0},{"$f":"SUM(RT3:RT30)","v":0},{"$f":"SUM(RU3:RU30)","v":0},{"$f":"SUM(RV3:RV30)","v":0},{"$f":"SUM(RW3:RW30)","v":0},{"$f":"SUM(RX3:RX30)","v":0},{"$f":"SUM(RY3:RY30)","v":0},{"$f":"SUM(RZ3:RZ30)","v":0},{"$f":"SUM(SA3:SA30)","v":0},{"$f":"SUM(SB3:SB30)","v":0},{"$f":"SUM(SC3:SC30)","v":0},{"$f":"SUM(SD3:SD30)","v":0},{"$f":"SUM(SE3:SE30)","v":0},{"$f":"SUM(SF3:SF30)","v":0},{"$f":"SUM(SG3:SG30)","v":325}]

{"sheet":"Paper 3","index":3,"n_rows":30,"n_cols":502,"rows_kept":30,"cut":false,"hidden":false,"merged":[[0,1,0,2],[29,0,29,1]]}
["PAPER 3","Enter student names UNDER each number i.e. cells E2, F2, G2, etc",null,1,2,3,4,5,6,7,8,9,10,11,12,13,14,15,16,17,18,19,20,21,22,23,24,25,26,27,28,29,30,31,32,33,34,35,36,37,38,39,40,41,42,43,44,45,46,47,48,49,50,51,52,53,54,55,56,57,58,59,60,61,62,63,64,65,66,67,68,69,70,71,72,73,74,75,76,77,78,79,80,81,82,83,84,85,86,87,88,89,90,91,92,93,94,95,96,97,98,99,100,101,102,103,104,105,106,107,108,109,110,111,112,113,114,115,116,117,118,119,120,121,122,123,124,125,126,127,128,129,130,131,132,133,134,135,136,137,138,139,140,141,142,143,144,145,146,147,148,149,150,151,152,153,154,155,156,157,158,159,160,161,162,163,164,165,166,167,168,169,170,171,172,173,174,175,176,177,178,179,180,181,182,183,184,185,186,187,188,189,190,191,192,193,194,195,196,197,198,199,200,201,202,203,204,205,206,207,208,209,210,211,212,213,214,215,216,217,218,219,220,221,222,223,224,225,226,227,228,229,230,231,232,233,234,235,236,237,238,239,240,241,242,243,244,245,246,247,248,249,250,251,252,253,254,255,256,257,258,259,260,261,262,263,264,265,266,267,268,269,270,271,272,273,274,275,276,277,278,279,280,281,282,283,284,285,286,287,288,289,290,291,292,293,294,295,296,297,298,299,300,301,302,303,304,305,306,307,308,309,310,311,312,313,314,315,316,317,318,319,320,321,322,323,324,325,326,327,328,329,330,331,332,333,334,335,336,337,338,339,340,341,342,343,344,345,346,347,348,349,350,351,352,353,354,355,356,357,358,359,360,361,362,363,364,365,366,367,368,369,370,371,372,373,374,375,376,377,378,379,380,381,382,383,384,385,386,387,388,389,390,391,392,393,394,395,396,397,398,399,400,401,402,403,404,405,406,407,408,409,410,411,412,413,414,415,416,417,418,419,420,421,422,423,424,425,426,427,428,429,430,431,432,433,434,435,436,437,438,439,440,441,442,443,444,445,446,447,448,449,450,451,452,453,454,455,456,457,458,459,460,461,462,463,464,465,466,467,468,469,470,471,472,473,474,475,476,477,478,479,480,481,482,483,484,485,486,487,488,489,490,491,492,493,494,495,496,497,498,500]
["Questions /","Topic","MAX",null,null,null,null,null,null,null,null,null,null,null,null,null,null,null,null,null,null,null,null,null,null,null,null,null,null,null,null,null,null,null,null,null,null,null,null,null,null,null,null,null,null,null,null,null,null,null,null,null,null,null,null,null,null,null,null,null,null,null,null,null,null,null,null,null,null,null,null,null,null,null,null,null,null,null,null,null,null,null,null,null,null,null,null,null,null,null,null,null,null,null,null,null,null,null,null,null,null,null,null,null,null,null,null,null,null,null,null,null,null,null,null,null,null,null,null,null,null,null,null,null,null,null,null,null,null,null,null,null,null,null,null,null,null,null,null,null,null,null,null,null,null,null,null,null,null,null,null,null,null,null,null,null,null,null,null,null,null,null,null,null,null,null,null,null,null,null,null,null,null,null,null,null,null,null,null,null,null,null,null,null,null,null,null,null,null,null,null,null,null,null,null,null,null,null,null,null,null,null,null,null,null,null,null,null,null,null,null,null,null,null,null,null,null,null,null,null,null,null,null,null,null,null,null,null,null,null,null,null,null,null,null,null,null,null,null,null,null,null,null,null,null,null,null,null,null,null,null,null,null,null,null,null,null,null,null,null,null,null,null,null,null,null,null,null,null,null,null,null,null,null,null,null,null,null,null,null,null,null,null,null,null,null,null,null,null,null,null,null,null,null,null,null,null,null,null,null,null,null,null,null,null,null,null,null,null,null,null,null,null,null,null,null,null,null,null,null,null,null,null,null,null,null,null,null,null,null,null,null,null,null,null,null,null,null,null,null,null,null,null,null,null,null,null,null,null,null,null,null,null,null,null,null,null,null,null,null,null,null,null,null,null,null,null,null,null,null,null,null,null,null,null,null,null,null,null,null,null,null,null,null,null,null,null,null,null,null,null,null,null,null,null,null,null,null,null,null,null,null,null,null,null,null,null,null,null,null,null,null,null,null,null,null,null,null,null,null,null,null,null,null,null,null,null,null,null,null,null,null,null,null,null,null,null,null,null,null,null,null,null,null,null,null,null,null,null,null,null,null,null,null,null,null,null,null,null,null,null,null,null,null,null,null,null,null,null,null,null,null,null,null,null,null,null,null,null,null,null,null,null,null,null,null,null,null,null,null,null,null,null,null,null,null,null,null,null,null,null,"Example Student "]
[1,"Count in multiples of 6, 7, 9, 25 and 100 / Generate and describe linear sequences",2,null,null,null,null,null,null,null,null,null,null,null,null,null,null,null,null,null,null,null,null,null,null,null,null,null,null,null,null,null,null,null,null,null,null,null,null,null,null,null,null,null,null,null,null,null,null,null,null,null,null,null,null,null,null,null,null,null,null,null,null,null,null,null,null,null,null,null,null,null,null,null,null,null,null,null,null,null,null,null,null,null,null,null,null,null,null,null,null,null,null,null,null,null,null,null,null,null,null,null,null,null,null,null,null,null,null,null,null,null,null,null,null,null,null,null,null,null,null,null,null,null,null,null,null,null,null,null,null,null,null,null,null,null,null,null,null,null,null,null,null,null,null,null,null,null,null,null,null,null,null,null,null,null,null,null,null,null,null,null,null,null,null,null,null,null,null,null,null,null,null,null,null,null,null,null,null,null,null,null,null,null,null,null,null,null,null,null,null,null,null,null,null,null,null,null,null,null,null,null,null,null,null,null,null,null,null,null,null,null,null,null,null,null,null,null,null,null,null,null,null,null,null,null,null,null,null,null,null,null,null,null,null,null,null,null,null,null,null,null,null,null,null,null,null,null,null,null,null,null,null,null,null,null,null,null,null,null,null,null,null,null,null,null,null,null,null,null,null,null,null,null,null,null,null,null,null,null,null,null,null,null,null,null,null,null,null,null,null,null,null,null,null,null,null,null,null,null,null,null,null,null,null,null,null,null,null,null,null,null,null,null,null,null,null,null,null,null,null,null,null,null,null,null,null,null,null,null,null,null,null,null,null,null,null,null,null,null,null,null,null,null,null,null,null,null,null,null,null,null,null,null,null,null,null,null,null,null,null,null,null,null,null,null,null,null,null,null,null,null,null,null,null,null,null,null,null,null,null,null,null,null,null,null,null,null,null,null,null,null,null,null,null,null,null,null,null,null,null,null,null,null,null,null,null,null,null,null,null,null,null,null,null,null,null,null,null,null,null,null,null,null,null,null,null,null,null,null,null,null,null,null,null,null,null,null,null,null,null,null,null,null,null,null,null,null,null,null,null,null,null,null,null,null,null,null,null,null,null,null,null,null,null,null,null,null,null,null,null,null,null,null,null,null,null,null,null,null,null,null,null,null,null,null,null,null,null,null,null,null,null,null,null,null,null,null,null,null,null,1]
[2,"Find possibilities of combinations of two variables",1,null,null,null,null,null,null,null,null,null,null,null,null,null,null,null,null,null,null,null,null,null,null,null,null,null,null,null,null,null,null,null,null,null,null,null,null,null,null,null,null,null,null,null,null,null,null,null,null,null,null,null,null,null,null,null,null,null,null,null,null,null,null,null,null,null,null,null,null,null,null,null,null,null,null,null,null,null,null,null,null,null,null,null,null,null,null,null,null,null,null,null,null,null,null,null,null,null,null,null,null,null,null,null,null,null,null,null,null,null,null,null,null,null,null,null,null,null,null,null,null,null,null,null,null,null,null,null,null,null,null,null,null,null,null,null,null,null,null,null,null,null,null,null,null,null,null,null,null,null,null,null,null,null,null,null,null,null,null,null,null,null,null,null,null,null,null,null,null,null,null,null,null,null,null,null,null,null,null,null,null,null,null,null,null,null,null,null,null,null,null,null,null,null,null,null,null,null,null,null,null,null,null,null,null,null,null,null,null,null,null,null,null,null,null,null,null,null,null,null,null,null,null,null,null,null,null,null,null,null,null,null,null,null,null,null,null,null,null,null,null,null,null,null,null,null,null,null,null,null,null,null,null,null,null,null,null,null,null,null,null,null,null,null,null,null,null,null,null,null,null,null,null,null,null,null,null,null,null,null,null,null,null,null,null,null,null,null,null,null,null,null,null,null,null,null,null,null,null,null,null,null,null,null,null,null,null,null,null,null,null,null,null,null,null,null,null,null,null,null,null,null,null,null,null,null,null,null,null,null,null,null,null,null,null,null,null,null,null,null,null,null,null,null,null,null,null,null,null,null,null,null,null,null,null,null,null,null,null,null,null,null,null,null,null,null,null,null,null,null,null,null,null,null,null,null,null,null,null,null,null,null,null,null,null,null,null,null,null,null,null,null,null,null,null,null,null,null,null,null,null,null,null,null,null,null,null,null,null,null,null,null,null,null,null,null,null,null,null,null,null,null,null,null,null,null,null,null,null,null,null,null,null,null,null,null,null,null,null,null,null,null,null,null,null,null,null,null,null,null,null,null,null,null,null,null,null,null,null,null,null,null,null,null,null,null,null,null,null,null,null,null,null,null,null,null,null,null,null,null,null,null,null,null,null,null,null,null,null,null,null,null,null,null,null,null,null,null,null,2]
["3","Determine the value of each digit in numbers up to 1 000 000",1,null,null,null,null,null,null,null,null,null,null,null,null,null,null,null,null,null,null,null,null,null,null,null,null,null,null,null,null,null,null,null,null,null,null,null,null,null,null,null,null,null,null,null,null,null,null,null,null,null,null,null,null,null,null,null,null,null,null,null,null,null,null,null,null,null,null,null,null,null,null,null,null,null,null,null,null,null,null,null,null,null,null,null,null,null,null,null,null,null,null,null,null,null,null,null,null,null,null,null,null,null,null,null,null,null,null,null,null,null,null,null,null,null,null,null,null,null,null,null,null,null,null,null,null,null,null,null,null,null,null,null,null,null,null,null,null,null,null,null,null,null,null,null,null,null,null,null,null,null,null,null,null,null,null,null,null,null,null,null,null,null,null,null,null,null,null,null,null,null,null,null,null,null,null,null,null,null,null,null,null,null,null,null,null,null,null,null,null,null,null,null,null,null,null,null,null,null,null,null,null,null,null,null,null,null,null,null,null,null,null,null,null,null,null,null,null,null,null,null,null,null,null,null,null,null,null,null,null,null,null,null,null,null,null,null,null,null,null,null,null,null,null,null,null,null,null,null,null,null,null,null,null,null,null,null,null,null,null,null,null,null,null,null,null,null,null,null,null,null,null,null,null,null,null,null,null,null,null,null,null,null,null,null,null,null,null,null,null,null,null,null,null,null,null,null,null,null,null,null,null,null,null,null,null,null,null,null,null,null,null,null,null,null,null,null,null,null,null,null,null,null,null,null,null,null,null,null,null,null,null,null,null,null,null,null,null,null,null,null,null,null,null,null,null,null,null,null,null,null,null,null,null,null,null,null,null,null,null,null,null,null,null,null,null,null,null,null,null,null,null,null,null,null,null,null,null,null,null,null,null,null,null,null,null,null,null,null,null,null,null,null,null,null,null,null,null,null,null,null,null,null,null,null,null,null,null,null,null,null,null,null,null,null,null,null,null,null,null,null,null,null,null,null,null,null,null,null,null,null,null,null,null,null,null,null,null,null,null,null,null,null,null,null,null,null,null,null,null,null,null,null,null,null,null,null,null,null,null,null,null,null,null,null,null,null,null,null,null,null,null,null,null,null,null,null,null,null,null,null,null,null,null,null,null,null,null,null,null,null,null,null,null,null,null,null,null,null,null,3]
[4,"Add and subtract whole numbers with more than 4 digits using formal written methods",2,null,null,null,null,null,null,null,null,null,null,null,null,null,null,null,null,null,null,null,null,null,null,null,null,null,null,null,null,null,null,null,null,null,null,null,null,null,null,null,null,null,null,null,null,null,null,null,null,null,null,null,null,null,null,null,null,null,null,null,null,null,null,null,null,null,null,null,null,null,null,null,null,null,null,null,null,null,null,null,null,null,null,null,null,null,null,null,null,null,null,null,null,null,null,null,null,null,null,null,null,null,null,null,null,null,null,null,null,null,null,null,null,null,null,null,null,null,null,null,null,null,null,null,null,null,null,null,null,null,null,null,null,null,null,null,null,null,null,null,null,null,null,null,null,null,null,null,null,null,null,null,null,null,null,null,null,null,null,null,null,null,null,null,null,null,null,null,null,null,null,null,null,null,null,null,null,null,null,null,null,null,null,null,null,null,null,null,null,null,null,null,null,null,null,null,null,null,null,null,null,null,null,null,null,null,null,null,null,null,null,null,null,null,null,null,null,null,null,null,null,null,null,null,null,null,null,null,null,null,null,null,null,null,null,null,null,null,null,null,null,null,null,null,null,null,null,null,null,null,null,null,null,null,null,null,null,null,null,null,null,null,null,null,null,null,null,null,null,null,null,null,null,null,null,null,null,null,null,null,null,null,null,null,null,null,null,null,null,null,null,null,null,null,null,null,null,null,null,null,null,null,null,null,null,null,null,null,null,null,null,null,null,null,null,null,null,null,null,null,null,null,null,null,null,null,null,null,null,null,null,null,null,null,null,null,null,null,null,null,null,null,null,null,null,null,null,null,null,null,null,null,null,null,null,null,null,null,null,null,null,null,null,null,null,null,null,null,null,null,null,null,null,null,null,null,null,null,null,null,null,null,null,null,null,null,null,null,null,null,null,null,null,null,null,null,null,null,null,null,null,null,null,null,null,null,null,null,null,null,null,null,null,null,null,null,null,null,null,null,null,null,null,null,null,null,null,null,null,null,null,null,null,null,null,null,null,null,null,null,null,null,null,null,null,null,null,null,null,null,null,null,null,null,null,null,null,null,null,null,null,null,null,null,null,null,null,null,null,null,null,null,null,null,null,null,null,null,null,null,null,null,null,null,null,null,null,null,null,null,null,null,null,null,null,null,null,null,null,4]
["5","Identify multiples and factors, including finding factor pairs and common factors of numbers",2,null,null,null,null,null,null,null,null,null,null,null,null,null,null,null,null,null,null,null,null,null,null,null,null,null,null,null,null,null,null,null,null,null,null,null,null,null,null,null,null,null,null,null,null,null,null,null,null,null,null,null,null,null,null,null,null,null,null,null,null,null,null,null,null,null,null,null,null,null,null,null,null,null,null,null,null,null,null,null,null,null,null,null,null,null,null,null,null,null,null,null,null,null,null,null,null,null,null,null,null,null,null,null,null,null,null,null,null,null,null,null,null,null,null,null,null,null,null,null,null,null,null,null,null,null,null,null,null,null,null,null,null,null,null,null,null,null,null,null,null,null,null,null,null,null,null,null,null,null,null,null,null,null,null,null,null,null,null,null,null,null,null,null,null,null,null,null,null,null,null,null,null,null,null,null,null,null,null,null,null,null,null,null,null,null,null,null,null,null,null,null,null,null,null,null,null,null,null,null,null,null,null,null,null,null,null,null,null,null,null,null,null,null,null,null,null,null,null,null,null,null,null,null,null,null,null,null,null,null,null,null,null,null,null,null,null,null,null,null,null,null,null,null,null,null,null,null,null,null,null,null,null,null,null,null,null,null,null,null,null,null,null,null,null,null,null,null,null,null,null,null,null,null,null,null,null,null,null,null,null,null,null,null,null,null,null,null,null,null,null,null,null,null,null,null,null,null,null,null,null,null,null,null,null,null,null,null,null,null,null,null,null,null,null,null,null,null,null,null,null,null,null,null,null,null,null,null,null,null,null,null,null,null,null,null,null,null,null,null,null,null,null,null,null,null,null,null,null,null,null,null,null,null,null,null,null,null,null,null,null,null,null,null,null,null,null,null,null,null,null,null,null,null,null,null,null,null,null,null,null,null,null,null,null,null,null,null,null,null,null,null,null,null,null,null,null,null,null,null,null,null,null,null,null,null,null,null,null,null,null,null,null,null,null,null,null,null,null,null,null,null,null,null,null,null,null,null,null,null,null,null,null,null,null,null,null,null,null,null,null,null,null,null,null,null,null,null,null,null,null,null,null,null,null,null,null,null,null,null,null,null,null,null,null,null,null,null,null,null,null,null,null,null,null,null,null,null,null,null,null,null,null,null,null,null,null,null,null,null,null,null,null,null,null,null,null,null,null,5]
[6,"Interpret and construct pie charts",2,null,null,null,null,null,null,null,null,null,null,null,null,null,null,null,null,null,null,null,null,null,null,null,null,null,null,null,null,null,null,null,null,null,null,null,null,null,null,null,null,null,null,null,null,null,null,null,null,null,null,null,null,null,null,null,null,null,null,null,null,null,null,null,null,null,null,null,null,null,null,null,null,null,null,null,null,null,null,null,null,null,null,null,null,null,null,null,null,null,null,null,null,null,null,null,null,null,null,null,null,null,null,null,null,null,null,null,null,null,null,null,null,null,null,null,null,null,null,null,null,null,null,null,null,null,null,null,null,null,null,null,null,null,null,null,null,null,null,null,null,null,null,null,null,null,null,null,null,null,null,null,null,null,null,null,null,null,null,null,null,null,null,null,null,null,null,null,null,null,null,null,null,null,null,null,null,null,null,null,null,null,null,null,null,null,null,null,null,null,null,null,null,null,null,null,null,null,null,null,null,null,null,null,null,null,null,null,null,null,null,null,null,null,null,null,null,null,null,null,null,null,null,null,null,null,null,null,null,null,null,null,null,null,null,null,null,null,null,null,null,null,null,null,null,null,null,null,null,null,null,null,null,null,null,null,null,null,null,null,null,null,null,null,null,null,null,null,null,null,null,null,null,null,null,null,null,null,null,null,null,null,null,null,null,null,null,null,null,null,null,null,null,null,null,null,null,null,null,null,null,null,null,null,null,null,null,null,null,null,null,null,null,null,null,null,null,null,null,null,null,null,null,null,null,null,null,null,null,null,null,null,null,null,null,null,null,null,null,null,null,null,null,null,null,null,null,null,null,null,null,null,null,null,null,null,null,null,null,null,null,null,null,null,null,null,null,null,null,null,null,null,null,null,null,null,null,null,null,null,null,null,null,null,null,null,null,null,null,null,null,null,null,null,null,null,null,null,null,null,null,null,null,null,null,null,null,null,null,null,null,null,null,null,null,null,null,null,null,null,null,null,null,null,null,null,null,null,null,null,null,null,null,null,null,null,null,null,null,null,null,null,null,null,null,null,null,null,null,null,null,null,null,null,null,null,null,null,null,null,null,null,null,null,null,null,null,null,null,null,null,null,null,null,null,null,null,null,null,null,null,null,null,null,null,null,null,null,null,null,null,null,null,null,null,null,null,null,null,6]
["7a","Divide numbers  using a formal written method and interpret remainders  ",1,null,null,null,null,null,null,null,null,null,null,null,null,null,null,null,null,null,null,null,null,null,null,null,null,null,null,null,null,null,null,null,null,null,null,null,null,null,null,null,null,null,null,null,null,null,null,null,null,null,null,null,null,null,null,null,null,null,null,null,null,null,null,null,null,null,null,null,null,null,null,null,null,null,null,null,null,null,null,null,null,null,null,null,null,null,null,null,null,null,null,null,null,null,null,null,null,null,null,null,null,null,null,null,null,null,null,null,null,null,null,null,null,null,null,null,null,null,null,null,null,null,null,null,null,null,null,null,null,null,null,null,null,null,null,null,null,null,null,null,null,null,null,null,null,null,null,null,null,null,null,null,null,null,null,null,null,null,null,null,null,null,null,null,null,null,null,null,null,null,null,null,null,null,null,null,null,null,null,null,null,null,null,null,null,null,null,null,null,null,null,null,null,null,null,null,null,null,null,null,null,null,null,null,null,null,null,null,null,null,null,null,null,null,null,null,null,null,null,null,null,null,null,null,null,null,null,null,null,null,null,null,null,null,null,null,null,null,null,null,null,null,null,null,null,null,null,null,null,null,null,null,null,null,null,null,null,null,null,null,null,null,null,null,null,null,null,null,null,null,null,null,null,null,null,null,null,null,null,null,null,null,null,null,null,null,null,null,null,null,null,null,null,null,null,null,null,null,null,null,null,null,null,null,null,null,null,null,null,null,null,null,null,null,null,null,null,null,null,null,null,null,null,null,null,null,null,null,null,null,null,null,null,null,null,null,null,null,null,null,null,null,null,null,null,null,null,null,null,null,null,null,null,null,null,null,null,null,null,null,null,null,null,null,null,null,null,null,null,null,null,null,null,null,null,null,null,null,null,null,null,null,null,null,null,null,null,null,null,null,null,null,null,null,null,null,null,null,null,null,null,null,null,null,null,null,null,null,null,null,null,null,null,null,null,null,null,null,null,null,null,null,null,null,null,null,null,null,null,null,null,null,null,null,null,null,null,null,null,null,null,null,null,null,null,null,null,null,null,null,null,null,null,null,null,null,null,null,null,null,null,null,null,null,null,null,null,null,null,null,null,null,null,null,null,null,null,null,null,null,null,null,null,null,null,null,null,null,null,null,null,null,null,null,null,null,null,null,null,7]
["7b","Divide numbers  using a formal written method and interpret remainders  ",1,null,null,null,null,null,null,null,null,null,null,null,null,null,null,null,null,null,null,null,null,null,null,null,null,null,null,null,null,null,null,null,null,null,null,null,null,null,null,null,null,null,null,null,null,null,null,null,null,null,null,null,null,null,null,null,null,null,null,null,null,null,null,null,null,null,null,null,null,null,null,null,null,null,null,null,null,null,null,null,null,null,null,null,null,null,null,null,null,null,null,null,null,null,null,null,null,null,null,null,null,null,null,null,null,null,null,null,null,null,null,null,null,null,null,null,null,null,null,null,null,null,null,null,null,null,null,null,null,null,null,null,null,null,null,null,null,null,null,null,null,null,null,null,null,null,null,null,null,null,null,null,null,null,null,null,null,null,null,null,null,null,null,null,null,null,null,null,null,null,null,null,null,null,null,null,null,null,null,null,null,null,null,null,null,null,null,null,null,null,null,null,null,null,null,null,null,null,null,null,null,null,null,null,null,null,null,null,null,null,null,null,null,null,null,null,null,null,null,null,null,null,null,null,null,null,null,null,null,null,null,null,null,null,null,null,null,null,null,null,null,null,null,null,null,null,null,null,null,null,null,null,null,null,null,null,null,null,null,null,null,null,null,null,null,null,null,null,null,null,null,null,null,null,null,null,null,null,null,null,null,null,null,null,null,null,null,null,null,null,null,null,null,null,null,null,null,null,null,null,null,null,null,null,null,null,null,null,null,null,null,null,null,null,null,null,null,null,null,null,null,null,null,null,null,null,null,null,null,null,null,null,null,null,null,null,null,null,null,null,null,null,null,null,null,null,null,null,null,null,null,null,null,null,null,null,null,null,null,null,null,null,null,null,null,null,null,null,null,null,null,null,null,null,null,null,null,null,null,null,null,null,null,null,null,null,null,null,null,null,null,null,null,null,null,null,null,null,null,null,null,null,null,null,null,null,null,null,null,null,null,null,null,null,null,null,null,null,null,null,null,null,null,null,null,null,null,null,null,null,null,null,null,null,null,null,null,null,null,null,null,null,null,null,null,null,null,null,null,null,null,null,null,null,null,null,null,null,null,null,null,null,null,null,null,null,null,null,null,null,null,null,null,null,null,null,null,null,null,null,null,null,null,null,null,null,null,null,null,null,null,null,null,null,null,null,null,null,null,8]
[8,"Solve problems involving the calculation of percentages ",1,null,null,null,null,null,null,null,null,null,null,null,null,null,null,null,null,null,null,null,null,null,null,null,null,null,null,null,null,null,null,null,null,null,null,null,null,null,null,null,null,null,null,null,null,null,null,null,null,null,null,null,null,null,null,null,null,null,null,null,null,null,null,null,null,null,null,null,null,null,null,null,null,null,null,null,null,null,null,null,null,null,null,null,null,null,null,null,null,null,null,null,null,null,null,null,null,null,null,null,null,null,null,null,null,null,null,null,null,null,null,null,null,null,null,null,null,null,null,null,null,null,null,null,null,null,null,null,null,null,null,null,null,null,null,null,null,null,null,null,null,null,null,null,null,null,null,null,null,null,null,null,null,null,null,null,null,null,null,null,null,null,null,null,null,null,null,null,null,null,null,null,null,null,null,null,null,null,null,null,null,null,null,null,null,null,null,null,null,null,null,null,null,null,null,null,null,null,null,null,null,null,null,null,null,null,null,null,null,null,null,null,null,null,null,null,null,null,null,null,null,null,null,null,null,null,null,null,null,null,null,null,null,null,null,null,null,null,null,null,null,null,null,null,null,null,null,null,null,null,null,null,null,null,null,null,null,null,null,null,null,null,null,null,null,null,null,null,null,null,null,null,null,null,null,null,null,null,null,null,null,null,null,null,null,null,null,null,null,null,null,null,null,null,null,null,null,null,null,null,null,null,null,null,null,null,null,null,null,null,null,null,null,null,null,null,null,null,null,null,null,null,null,null,null,null,null,null,null,null,null,null,null,null,null,null,null,null,null,null,null,null,null,null,null,null,null,null,null,null,null,null,null,null,null,null,null,null,null,null,null,null,null,null,null,null,null,null,null,null,null,null,null,null,null,null,null,null,null,null,null,null,null,null,null,null,null,null,null,null,null,null,null,null,null,null,null,null,null,null,null,null,null,null,null,null,null,null,null,null,null,null,null,null,null,null,null,null,null,null,null,null,null,null,null,null,null,null,null,null,null,null,null,null,null,null,null,null,null,null,null,null,null,null,null,null,null,null,null,null,null,null,null,null,null,null,null,null,null,null,null,null,null,null,null,null,null,null,null,null,null,null,null,null,null,null,null,null,null,null,null,null,null,null,null,null,null,null,null,null,null,null,null,null,null,null,null,null,null,9]
["9","Solve problems involving similar shapes",1,null,null,null,null,null,null,null,null,null,null,null,null,null,null,null,null,null,null,null,null,null,null,null,null,null,null,null,null,null,null,null,null,null,null,null,null,null,null,null,null,null,null,null,null,null,null,null,null,null,null,null,null,null,null,null,null,null,null,null,null,null,null,null,null,null,null,null,null,null,null,null,null,null,null,null,null,null,null,null,null,null,null,null,null,null,null,null,null,null,null,null,null,null,null,null,null,null,null,null,null,null,null,null,null,null,null,null,null,null,null,null,null,null,null,null,null,null,null,null,null,null,null,null,null,null,null,null,null,null,null,null,null,null,null,null,null,null,null,null,null,null,null,null,null,null,null,null,null,null,null,null,null,null,null,null,null,null,null,null,null,null,null,null,null,null,null,null,null,null,null,null,null,null,null,null,null,null,null,null,null,null,null,null,null,null,null,null,null,null,null,null,null,null,null,null,null,null,null,null,null,null,null,null,null,null,null,null,null,null,null,null,null,null,null,null,null,null,null,null,null,null,null,null,null,null,null,null,null,null,null,null,null,null,null,null,null,null,null,null,null,null,null,null,null,null,null,null,null,null,null,null,null,null,null,null,null,null,null,null,null,null,null,null,null,null,null,null,null,null,null,null,null,null,null,null,null,null,null,null,null,null,null,null,null,null,null,null,null,null,null,null,null,null,null,null,null,null,null,null,null,null,null,null,null,null,null,null,null,null,null,null,null,null,null,null,null,null,null,null,null,null,null,null,null,null,null,null,null,null,null,null,null,null,null,null,null,null,null,null,null,null,null,null,null,null,null,null,null,null,null,null,null,null,null,null,null,null,null,null,null,null,null,null,null,null,null,null,null,null,null,null,null,null,null,null,null,null,null,null,null,null,null,null,null,null,null,null,null,null,null,null,null,null,null,null,null,null,null,null,null,null,null,null,null,null,null,null,null,null,null,null,null,null,null,null,null,null,null,null,null,null,null,null,null,null,null,null,null,null,null,null,null,null,null,null,null,null,null,null,null,null,null,null,null,null,null,null,null,null,null,null,null,null,null,null,null,null,null,null,null,null,null,null,null,null,null,null,null,null,null,null,null,null,null,null,null,null,null,null,null,null,null,null,null,null,null,null,null,null,null,null,null,null,null,null,null,null,null,10]
["10","Describe positions in all four quadrants using co-ordinates / Use properties of rectangles",1,null,null,null,null,null,null,null,null,null,null,null,null,null,null,null,null,null,null,null,null,null,null,null,null,null,null,null,null,null,null,null,null,null,null,null,null,null,null,null,null,null,null,null,null,null,null,null,null,null,null,null,null,null,null,null,null,null,null,null,null,null,null,null,null,null,null,null,null,null,null,null,null,null,null,null,null,null,null,null,null,null,null,null,null,null,null,null,null,null,null,null,null,null,null,null,null,null,null,null,null,null,null,null,null,null,null,null,null,null,null,null,null,null,null,null,null,null,null,null,null,null,null,null,null,null,null,null,null,null,null,null,null,null,null,null,null,null,null,null,null,null,null,null,null,null,null,null,null,null,null,null,null,null,null,null,null,null,null,null,null,null,null,null,null,null,null,null,null,null,null,null,null,null,null,null,null,null,null,null,null,null,null,null,null,null,null,null,null,null,null,null,null,null,null,null,null,null,null,null,null,null,null,null,null,null,null,null,null,null,null,null,null,null,null,null,null,null,null,null,null,null,null,null,null,null,null,null,null,null,null,null,null,null,null,null,null,null,null,null,null,null,null,null,null,null,null,null,null,null,null,null,null,null,null,null,null,null,null,null,null,null,null,null,null,null,null,null,null,null,null,null,null,null,null,null,null,null,null,null,null,null,null,null,null,null,null,null,null,null,null,null,null,null,null,null,null,null,null,null,null,null,null,null,null,null,null,null,null,null,null,null,null,null,null,null,null,null,null,null,null,null,null,null,null,null,null,null,null,null,null,null,null,null,null,null,null,null,null,null,null,null,null,null,null,null,null,null,null,null,null,null,null,null,null,null,null,null,null,null,null,null,null,null,null,null,null,null,null,null,null,null,null,null,null,null,null,null,null,null,null,null,null,null,null,null,null,null,null,null,null,null,null,null,null,null,null,null,null,null,null,null,null,null,null,null,null,null,null,null,null,null,null,null,null,null,null,null,null,null,null,null,null,null,null,null,null,null,null,null,null,null,null,null,null,null,null,null,null,null,null,null,null,null,null,null,null,null,null,null,null,null,null,null,null,null,null,null,null,null,null,null,null,null,null,null,null,null,null,null,null,null,null,null,null,null,null,null,null,null,null,null,null,null,null,null,null,null,null,null,null,null,null,null,null,null,null,null,null,11]
["11","Solve problems involving addition and subtraction of measures ",2,null,null,null,null,null,null,null,null,null,null,null,null,null,null,null,null,null,null,null,null,null,null,null,null,null,null,null,null,null,null,null,null,null,null,null,null,null,null,null,null,null,null,null,null,null,null,null,null,null,null,null,null,null,null,null,null,null,null,null,null,null,null,null,null,null,null,null,null,null,null,null,null,null,null,null,null,null,null,null,null,null,null,null,null,null,null,null,null,null,null,null,null,null,null,null,null,null,null,null,null,null,null,null,null,null,null,null,null,null,null,null,null,null,null,null,null,null,null,null,null,null,null,null,null,null,null,null,null,null,null,null,null,null,null,null,null,null,null,null,null,null,null,null,null,null,null,null,null,null,null,null,null,null,null,null,null,null,null,null,null,null,null,null,null,null,null,null,null,null,null,null,null,null,null,null,null,null,null,null,null,null,null,null,null,null,null,null,null,null,null,null,null,null,null,null,null,null,null,null,null,null,null,null,null,null,null,null,null,null,null,null,null,null,null,null,null,null,null,null,null,null,null,null,null,null,null,null,null,null,null,null,null,null,null,null,null,null,null,null,null,null,null,null,null,null,null,null,null,null,null,null,null,null,null,null,null,null,null,null,null,null,null,null,null,null,null,null,null,null,null,null,null,null,null,null,null,null,null,null,null,null,null,null,null,null,null,null,null,null,null,null,null,null,null,null,null,null,null,null,null,null,null,null,null,null,null,null,null,null,null,null,null,null,null,null,null,null,null,null,null,null,null,null,null,null,null,null,null,null,null,null,null,null,null,null,null,null,null,null,null,null,null,null,null,null,null,null,null,null,null,null,null,null,null,null,null,null,null,null,null,null,null,null,null,null,null,null,null,null,null,null,null,null,null,null,null,null,null,null,null,null,null,null,null,null,null,null,null,null,null,null,null,null,null,null,null,null,null,null,null,null,null,null,null,null,null,null,null,null,null,null,null,null,null,null,null,null,null,null,null,null,null,null,null,null,null,null,null,null,null,null,null,null,null,null,null,null,null,null,null,null,null,null,null,null,null,null,null,null,null,null,null,null,null,null,null,null,null,null,null,null,null,null,null,null,null,null,null,null,null,null,null,null,null,null,null,null,null,null,null,null,null,null,null,null,null,null,null,null,null,null,null,null,null,null,null,null,null,12]
["12","Solve problems involving the relative sizes of two quantities using multiplication and division ",1,null,null,null,null,null,null,null,null,null,null,null,null,null,null,null,null,null,null,null,null,null,null,null,null,null,null,null,null,null,null,null,null,null,null,null,null,null,null,null,null,null,null,null,null,null,null,null,null,null,null,null,null,null,null,null,null,null,null,null,null,null,null,null,null,null,null,null,null,null,null,null,null,null,null,null,null,null,null,null,null,null,null,null,null,null,null,null,null,null,null,null,null,null,null,null,null,null,null,null,null,null,null,null,null,null,null,null,null,null,null,null,null,null,null,null,null,null,null,null,null,null,null,null,null,null,null,null,null,null,null,null,null,null,null,null,null,null,null,null,null,null,null,null,null,null,null,null,null,null,null,null,null,null,null,null,null,null,null,null,null,null,null,null,null,null,null,null,null,null,null,null,null,null,null,null,null,null,null,null,null,null,null,null,null,null,null,null,null,null,null,null,null,null,null,null,null,null,null,null,null,null,null,null,null,null,null,null,null,null,null,null,null,null,null,null,null,null,null,null,null,null,null,null,null,null,null,null,null,null,null,null,null,null,null,null,null,null,null,null,null,null,null,null,null,null,null,null,null,null,null,null,null,null,null,null,null,null,null,null,null,null,null,null,null,null,null,null,null,null,null,null,null,null,null,null,null,null,null,null,null,null,null,null,null,null,null,null,null,null,null,null,null,null,null,null,null,null,null,null,null,null,null,null,null,null,null,null,null,null,null,null,null,null,null,null,null,null,null,null,null,null,null,null,null,null,null,null,null,null,null,null,null,null,null,null,null,null,null,null,null,null,null,null,null,null,null,null,null,null,null,null,null,null,null,null,null,null,null,null,null,null,null,null,null,null,null,null,null,null,null,null,null,null,null,null,null,null,null,null,null,null,null,null,null,null,null,null,null,null,null,null,null,null,null,null,null,null,null,null,null,null,null,null,null,null,null,null,null,null,null,null,null,null,null,null,null,null,null,null,null,null,null,null,null,null,null,null,null,null,null,null,null,null,null,null,null,null,null,null,null,null,null,null,null,null,null,null,null,null,null,null,null,null,null,null,null,null,null,null,null,null,null,null,null,null,null,null,null,null,null,null,null,null,null,null,null,null,null,null,null,null,null,null,null,null,null,null,null,null,null,null,null,null,null,null,null,null,null,13]
["13","Solve problems involving multiplication and division /  Convert between units of metric measures  ",2,null,null,null,null,null,null,null,null,null,null,null,null,null,null,null,null,null,null,null,null,null,null,null,null,null,null,null,null,null,null,null,null,null,null,null,null,null,null,null,null,null,null,null,null,null,null,null,null,null,null,null,null,null,null,null,null,null,null,null,null,null,null,null,null,null,null,null,null,null,null,null,null,null,null,null,null,null,null,null,null,null,null,null,null,null,null,null,null,null,null,null,null,null,null,null,null,null,null,null,null,null,null,null,null,null,null,null,null,null,null,null,null,null,null,null,null,null,null,null,null,null,null,null,null,null,null,null,null,null,null,null,null,null,null,null,null,null,null,null,null,null,null,null,null,null,null,null,null,null,null,null,null,null,null,null,null,null,null,null,null,null,null,null,null,null,null,null,null,null,null,null,null,null,null,null,null,null,null,null,null,null,null,null,null,null,null,null,null,null,null,null,null,null,null,null,null,null,null,null,null,null,null,null,null,null,null,null,null,null,null,null,null,null,null,null,null,null,null,null,null,null,null,null,null,null,null,null,null,null,null,null,null,null,null,null,null,null,null,null,null,null,null,null,null,null,null,null,null,null,null,null,null,null,null,null,null,null,null,null,null,null,null,null,null,null,null,null,null,null,null,null,null,null,null,null,null,null,null,null,null,null,null,null,null,null,null,null,null,null,null,null,null,null,null,null,null,null,null,null,null,null,null,null,null,null,null,null,null,null,null,null,null,null,null,null,null,null,null,null,null,null,null,null,null,null,null,null,null,null,null,null,null,null,null,null,null,null,null,null,null,null,null,null,null,null,null,null,null,null,null,null,null,null,null,null,null,null,null,null,null,null,null,null,null,null,null,null,null,null,null,null,null,null,null,null,null,null,null,null,null,null,null,null,null,null,null,null,null,null,null,null,null,null,null,null,null,null,null,null,null,null,null,null,null,null,null,null,null,null,null,null,null,null,null,null,null,null,null,null,null,null,null,null,null,null,null,null,null,null,null,null,null,null,null,null,null,null,null,null,null,null,null,null,null,null,null,null,null,null,null,null,null,null,null,null,null,null,null,null,null,null,null,null,null,null,null,null,null,null,null,null,null,null,null,null,null,null,null,null,null,null,null,null,null,null,null,null,null,null,null,null,null,null,null,null,null,null,null,14]
["14","Find unknown angles  / Know properties of triangles and quadrilaterals ",1,null,null,null,null,null,null,null,null,null,null,null,null,null,null,null,null,null,null,null,null,null,null,null,null,null,null,null,null,null,null,null,null,null,null,null,null,null,null,null,null,null,null,null,null,null,null,null,null,null,null,null,null,null,null,null,null,null,null,null,null,null,null,null,null,null,null,null,null,null,null,null,null,null,null,null,null,null,null,null,null,null,null,null,null,null,null,null,null,null,null,null,null,null,null,null,null,null,null,null,null,null,null,null,null,null,null,null,null,null,null,null,null,null,null,null,null,null,null,null,null,null,null,null,null,null,null,null,null,null,null,null,null,null,null,null,null,null,null,null,null,null,null,null,null,null,null,null,null,null,null,null,null,null,null,null,null,null,null,null,null,null,null,null,null,null,null,null,null,null,null,null,null,null,null,null,null,null,null,null,null,null,null,null,null,null,null,null,null,null,null,null,null,null,null,null,null,null,null,null,null,null,null,null,null,null,null,null,null,null,null,null,null,null,null,null,null,null,null,null,null,null,null,null,null,null,null,null,null,null,null,null,null,null,null,null,null,null,null,null,null,null,null,null,null,null,null,null,null,null,null,null,null,null,null,null,null,null,null,null,null,null,null,null,null,null,null,null,null,null,null,null,null,null,null,null,null,null,null,null,null,null,null,null,null,null,null,null,null,null,null,null,null,null,null,null,null,null,null,null,null,null,null,null,null,null,null,null,null,null,null,null,null,null,null,null,null,null,null,null,null,null,null,null,null,null,null,null,null,null,null,null,null,null,null,null,null,null,null,null,null,null,null,null,null,null,null,null,null,null,null,null,null,null,null,null,null,null,null,null,null,null,null,null,null,null,null,null,null,null,null,null,null,null,null,null,null,null,null,null,null,null,null,null,null,null,null,null,null,null,null,null,null,null,null,null,null,null,null,null,null,null,null,null,null,null,null,null,null,null,null,null,null,null,null,null,null,null,null,null,null,null,null,null,null,null,null,null,null,null,null,null,null,null,null,null,null,null,null,null,null,null,null,null,null,null,null,null,null,null,null,null,null,null,null,null,null,null,null,null,null,null,null,null,null,null,null,null,null,null,null,null,null,null,null,null,null,null,null,null,null,null,null,null,null,null,null,null,null,null,null,null,null,null,null,null,null,null,null,15]
["15a","Use simple formulae / Solve problems involving the four operations",1,null,null,null,null,null,null,null,null,null,null,null,null,null,null,null,null,null,null,null,null,null,null,null,null,null,null,null,null,null,null,null,null,null,null,null,null,null,null,null,null,null,null,null,null,null,null,null,null,null,null,null,null,null,null,null,null,null,null,null,null,null,null,null,null,null,null,null,null,null,null,null,null,null,null,null,null,null,null,null,null,null,null,null,null,null,null,null,null,null,null,null,null,null,null,null,null,null,null,null,null,null,null,null,null,null,null,null,null,null,null,null,null,null,null,null,null,null,null,null,null,null,null,null,null,null,null,null,null,null,null,null,null,null,null,null,null,null,null,null,null,null,null,null,null,null,null,null,null,null,null,null,null,null,null,null,null,null,null,null,null,null,null,null,null,null,null,null,null,null,null,null,null,null,null,null,null,null,null,null,null,null,null,null,null,null,null,null,null,null,null,null,null,null,null,null,null,null,null,null,null,null,null,null,null,null,null,null,null,null,null,null,null,null,null,null,null,null,null,null,null,null,null,null,null,null,null,null,null,null,null,null,null,null,null,null,null,null,null,null,null,null,null,null,null,null,null,null,null,null,null,null,null,null,null,null,null,null,null,null,null,null,null,null,null,null,null,null,null,null,null,null,null,null,null,null,null,null,null,null,null,null,null,null,null,null,null,null,null,null,null,null,null,null,null,null,null,null,null,null,null,null,null,null,null,null,null,null,null,null,null,null,null,null,null,null,null,null,null,null,null,null,null,null,null,null,null,null,null,null,null,null,null,null,null,null,null,null,null,null,null,null,null,null,null,null,null,null,null,null,null,null,null,null,null,null,null,null,null,null,null,null,null,null,null,null,null,null,null,null,null,null,null,null,null,null,null,null,null,null,null,null,null,null,null,null,null,null,null,null,null,null,null,null,null,null,null,null,null,null,null,null,null,null,null,null,null,null,null,null,null,null,null,null,null,null,null,null,null,null,null,null,null,null,null,null,null,null,null,null,null,null,null,null,null,null,null,null,null,null,null,null,null,null,null,null,null,null,null,null,null,null,null,null,null,null,null,null,null,null,null,null,null,null,null,null,null,null,null,null,null,null,null,null,null,null,null,null,null,null,null,null,null,null,null,null,null,null,null,null,null,null,null,null,null,null,null,null,null,16]
["15b","Use simple formulae / Solve problems involving the four operations",2,null,null,null,null,null,null,null,null,null,null,null,null,null,null,null,null,null,null,null,null,null,null,null,null,null,null,null,null,null,null,null,null,null,null,null,null,null,null,null,null,null,null,null,null,null,null,null,null,null,null,null,null,null,null,null,null,null,null,null,null,null,null,null,null,null,null,null,null,null,null,null,null,null,null,null,null,null,null,null,null,null,null,null,null,null,null,null,null,null,null,null,null,null,null,null,null,null,null,null,null,null,null,null,null,null,null,null,null,null,null,null,null,null,null,null,null,null,null,null,null,null,null,null,null,null,null,null,null,null,null,null,null,null,null,null,null,null,null,null,null,null,null,null,null,null,null,null,null,null,null,null,null,null,null,null,null,null,null,null,null,null,null,null,null,null,null,null,null,null,null,null,null,null,null,null,null,null,null,null,null,null,null,null,null,null,null,null,null,null,null,null,null,null,null,null,null,null,null,null,null,null,null,null,null,null,null,null,null,null,null,null,null,null,null,null,null,null,null,null,null,null,null,null,null,null,null,null,null,null,null,null,null,null,null,null,null,null,null,null,null,null,null,null,null,null,null,null,null,null,null,null,null,null,null,null,null,null,null,null,null,null,null,null,null,null,null,null,null,null,null,null,null,null,null,null,null,null,null,null,null,null,null,null,null,null,null,null,null,null,null,null,null,null,null,null,null,null,null,null,null,null,null,null,null,null,null,null,null,null,null,null,null,null,null,null,null,null,null,null,null,null,null,null,null,null,null,null,null,null,null,null,null,null,null,null,null,null,null,null,null,null,null,null,null,null,null,null,null,null,null,null,null,null,null,null,null,null,null,null,null,null,null,null,null,null,null,null,null,null,null,null,null,null,null,null,null,null,null,null,null,null,null,null,null,null,null,null,null,null,null,null,null,null,null,null,null,null,null,null,null,null,null,null,null,null,null,null,null,null,null,null,null,null,null,null,null,null,null,null,null,null,null,null,null,null,null,null,null,null,null,null,null,null,null,null,null,null,null,null,null,null,null,null,null,null,null,null,null,null,null,null,null,null,null,null,null,null,null,null,null,null,null,null,null,null,null,null,null,null,null,null,null,null,null,null,null,null,null,null,null,null,null,null,null,null,null,null,null,null,null,null,null,null,null,null,null,null,null,17]
[16,"Solve problems involving finding of fractions of quantities ",2,null,null,null,null,null,null,null,null,null,null,null,null,null,null,null,null,null,null,null,null,null,null,null,null,null,null,null,null,null,null,null,null,null,null,null,null,null,null,null,null,null,null,null,null,null,null,null,null,null,null,null,null,null,null,null,null,null,null,null,null,null,null,null,null,null,null,null,null,null,null,null,null,null,null,null,null,null,null,null,null,null,null,null,null,null,null,null,null,null,null,null,null,null,null,null,null,null,null,null,null,null,null,null,null,null,null,null,null,null,null,null,null,null,null,null,null,null,null,null,null,null,null,null,null,null,null,null,null,null,null,null,null,null,null,null,null,null,null,null,null,null,null,null,null,null,null,null,null,null,null,null,null,null,null,null,null,null,null,null,null,null,null,null,null,null,null,null,null,null,null,null,null,null,null,null,null,null,null,null,null,null,null,null,null,null,null,null,null,null,null,null,null,null,null,null,null,null,null,null,null,null,null,null,null,null,null,null,null,null,null,null,null,null,null,null,null,null,null,null,null,null,null,null,null,null,null,null,null,null,null,null,null,null,null,null,null,null,null,null,null,null,null,null,null,null,null,null,null,null,null,null,null,null,null,null,null,null,null,null,null,null,null,null,null,null,null,null,null,null,null,null,null,null,null,null,null,null,null,null,null,null,null,null,null,null,null,null,null,null,null,null,null,null,null,null,null,null,null,null,null,null,null,null,null,null,null,null,null,null,null,null,null,null,null,null,null,null,null,null,null,null,null,null,null,null,null,null,null,null,null,null,null,null,null,null,null,null,null,null,null,null,null,null,null,null,null,null,null,null,null,null,null,null,null,null,null,null,null,null,null,null,null,null,null,null,null,null,null,null,null,null,null,null,null,null,null,null,null,null,null,null,null,null,null,null,null,null,null,null,null,null,null,null,null,null,null,null,null,null,null,null,null,null,null,null,null,null,null,null,null,null,null,null,null,null,null,null,null,null,null,null,null,null,null,null,null,null,null,null,null,null,null,null,null,null,null,null,null,null,null,null,null,null,null,null,null,null,null,null,null,null,null,null,null,null,null,null,null,null,null,null,null,null,null,null,null,null,null,null,null,null,null,null,null,null,null,null,null,null,null,null,null,null,null,null,null,null,null,null,null,null,null,null,null,null,null,null,null,18]
[17,"Identify 3-D shapes from 2-D representations / Recognise and use nets of 3-D shapes",1,null,null,null,null,null,null,null,null,null,null,null,null,null,null,null,null,null,null,null,null,null,null,null,null,null,null,null,null,null,null,null,null,null,null,null,null,null,null,null,null,null,null,null,null,null,null,null,null,null,null,null,null,null,null,null,null,null,null,null,null,null,null,null,null,null,null,null,null,null,null,null,null,null,null,null,null,null,null,null,null,null,null,null,null,null,null,null,null,null,null,null,null,null,null,null,null,null,null,null,null,null,null,null,null,null,null,null,null,null,null,null,null,null,null,null,null,null,null,null,null,null,null,null,null,null,null,null,null,null,null,null,null,null,null,null,null,null,null,null,null,null,null,null,null,null,null,null,null,null,null,null,null,null,null,null,null,null,null,null,null,null,null,null,null,null,null,null,null,null,null,null,null,null,null,null,null,null,null,null,null,null,null,null,null,null,null,null,null,null,null,null,null,null,null,null,null,null,null,null,null,null,null,null,null,null,null,null,null,null,null,null,null,null,null,null,null,null,null,null,null,null,null,null,null,null,null,null,null,null,null,null,null,null,null,null,null,null,null,null,null,null,null,null,null,null,null,null,null,null,null,null,null,null,null,null,null,null,null,null,null,null,null,null,null,null,null,null,null,null,null,null,null,null,null,null,null,null,null,null,null,null,null,null,null,null,null,null,null,null,null,null,null,null,null,null,null,null,null,null,null,null,null,null,null,null,null,null,null,null,null,null,null,null,null,null,null,null,null,null,null,null,null,null,null,null,null,null,null,null,null,null,null,null,null,null,null,null,null,null,null,null,null,null,null,null,null,null,null,null,null,null,null,null,null,null,null,null,null,null,null,null,null,null,null,null,null,null,null,null,null,null,null,null,null,null,null,null,null,null,null,null,null,null,null,null,null,null,null,null,null,null,null,null,null,null,null,null,null,null,null,null,null,null,null,null,null,null,null,null,null,null,null,null,null,null,null,null,null,null,null,null,null,null,null,null,null,null,null,null,null,null,null,null,null,null,null,null,null,null,null,null,null,null,null,null,null,null,null,null,null,null,null,null,null,null,null,null,null,null,null,null,null,null,null,null,null,null,null,null,null,null,null,null,null,null,null,null,null,null,null,null,null,null,null,null,null,null,null,null,null,null,null,null,null,null,null,null,null,19]
["18","Add and subtract fractions with different denominators",2,null,null,null,null,null,null,null,null,null,null,null,null,null,null,null,null,null,null,null,null,null,null,null,null,null,null,null,null,null,null,null,null,null,null,null,null,null,null,null,null,null,null,null,null,null,null,null,null,null,null,null,null,null,null,null,null,null,null,null,null,null,null,null,null,null,null,null,null,null,null,null,null,null,null,null,null,null,null,null,null,null,null,null,null,null,null,null,null,null,null,null,null,null,null,null,null,null,null,null,null,null,null,null,null,null,null,null,null,null,null,null,null,null,null,null,null,null,null,null,null,null,null,null,null,null,null,null,null,null,null,null,null,null,null,null,null,null,null,null,null,null,null,null,null,null,null,null,null,null,null,null,null,null,null,null,null,null,null,null,null,null,null,null,null,null,null,null,null,null,null,null,null,null,null,null,null,null,null,null,null,null,null,null,null,null,null,null,null,null,null,null,null,null,null,null,null,null,null,null,null,null,null,null,null,null,null,null,null,null,null,null,null,null,null,null,null,null,null,null,null,null,null,null,null,null,null,null,null,null,null,null,null,null,null,null,null,null,null,null,null,null,null,null,null,null,null,null,null,null,null,null,null,null,null,null,null,null,null,null,null,null,null,null,null,null,null,null,null,null,null,null,null,null,null,null,null,null,null,null,null,null,null,null,null,null,null,null,null,null,null,null,null,null,null,null,null,null,null,null,null,null,null,null,null,null,null,null,null,null,null,null,null,null,null,null,null,null,null,null,null,null,null,null,null,null,null,null,null,null,null,null,null,null,null,null,null,null,null,null,null,null,null,null,null,null,null,null,null,null,null,null,null,null,null,null,null,null,null,null,null,null,null,null,null,null,null,null,null,null,null,null,null,null,null,null,null,null,null,null,null,null,null,null,null,null,null,null,null,null,null,null,null,null,null,null,null,null,null,null,null,null,null,null,null,null,null,null,null,null,null,null,null,null,null,null,null,null,null,null,null,null,null,null,null,null,null,null,null,null,null,null,null,null,null,null,null,null,null,null,null,null,null,null,null,null,null,null,null,null,null,null,null,null,null,null,null,null,null,null,null,null,null,null,null,null,null,null,null,null,null,null,null,null,null,null,null,null,null,null,null,null,null,null,null,null,null,null,null,null,null,null,null,null,null,null,null,null,null,20]
["19","Solve problems involving multiplying and dividing numbers by 10, 100 and 1000 ",2,null,null,null,null,null,null,null,null,null,null,null,null,null,null,null,null,null,null,null,null,null,null,null,null,null,null,null,null,null,null,null,null,null,null,null,null,null,null,null,null,null,null,null,null,null,null,null,null,null,null,null,null,null,null,null,null,null,null,null,null,null,null,null,null,null,null,null,null,null,null,null,null,null,null,null,null,null,null,null,null,null,null,null,null,null,null,null,null,null,null,null,null,null,null,null,null,null,null,null,null,null,null,null,null,null,null,null,null,null,null,null,null,null,null,null,null,null,null,null,null,null,null,null,null,null,null,null,null,null,null,null,null,null,null,null,null,null,null,null,null,null,null,null,null,null,null,null,null,null,null,null,null,null,null,null,null,null,null,null,null,null,null,null,null,null,null,null,null,null,null,null,null,null,null,null,null,null,null,null,null,null,null,null,null,null,null,null,null,null,null,null,null,null,null,null,null,null,null,null,null,null,null,null,null,null,null,null,null,null,null,null,null,null,null,null,null,null,null,null,null,null,null,null,null,null,null,null,null,null,null,null,null,null,null,null,null,null,null,null,null,null,null,null,null,null,null,null,null,null,null,null,null,null,null,null,null,null,null,null,null,null,null,null,null,null,null,null,null,null,null,null,null,null,null,null,null,null,null,null,null,null,null,null,null,null,null,null,null,null,null,null,null,null,null,null,null,null,null,null,null,null,null,null,null,null,null,null,null,null,null,null,null,null,null,null,null,null,null,null,null,null,null,null,null,null,null,null,null,null,null,null,null,null,null,null,null,null,null,null,null,null,null,null,null,null,null,null,null,null,null,null,null,null,null,null,null,null,null,null,null,null,null,null,null,null,null,null,null,null,null,null,null,null,null,null,null,null,null,null,null,null,null,null,null,null,null,null,null,null,null,null,null,null,null,null,null,null,null,null,null,null,null,null,null,null,null,null,null,null,null,null,null,null,null,null,null,null,null,null,null,null,null,null,null,null,null,null,null,null,null,null,null,null,null,null,null,null,null,null,null,null,null,null,null,null,null,null,null,null,null,null,null,null,null,null,null,null,null,null,null,null,null,null,null,null,null,null,null,null,null,null,null,null,null,null,null,null,null,null,null,null,null,null,null,null,null,null,null,null,null,null,null,null,null,null,null,null,null,21]
[20,"Solve problems involving multiplication and addition / Know the numbers of days in each month  ",2,null,null,null,null,null,null,null,null,null,null,null,null,null,null,null,null,null,null,null,null,null,null,null,null,null,null,null,null,null,null,null,null,null,null,null,null,null,null,null,null,null,null,null,null,null,null,null,null,null,null,null,null,null,null,null,null,null,null,null,null,null,null,null,null,null,null,null,null,null,null,null,null,null,null,null,null,null,null,null,null,null,null,null,null,null,null,null,null,null,null,null,null,null,null,null,null,null,null,null,null,null,null,null,null,null,null,null,null,null,null,null,null,null,null,null,null,null,null,null,null,null,null,null,null,null,null,null,null,null,null,null,null,null,null,null,null,null,null,null,null,null,null,null,null,null,null,null,null,null,null,null,null,null,null,null,null,null,null,null,null,null,null,null,null,null,null,null,null,null,null,null,null,null,null,null,null,null,null,null,null,null,null,null,null,null,null,null,null,null,null,null,null,null,null,null,null,null,null,null,null,null,null,null,null,null,null,null,null,null,null,null,null,null,null,null,null,null,null,null,null,null,null,null,null,null,null,null,null,null,null,null,null,null,null,null,null,null,null,null,null,null,null,null,null,null,null,null,null,null,null,null,null,null,null,null,null,null,null,null,null,null,null,null,null,null,null,null,null,null,null,null,null,null,null,null,null,null,null,null,null,null,null,null,null,null,null,null,null,null,null,null,null,null,null,null,null,null,null,null,null,null,null,null,null,null,null,null,null,null,null,null,null,null,null,null,null,null,null,null,null,null,null,null,null,null,null,null,null,null,null,null,null,null,null,null,null,null,null,null,null,null,null,null,null,null,null,null,null,null,null,null,null,null,null,null,null,null,null,null,null,null,null,null,null,null,null,null,null,null,null,null,null,null,null,null,null,null,null,null,null,null,null,null,null,null,null,null,null,null,null,null,null,null,null,null,null,null,null,null,null,null,null,null,null,null,null,null,null,null,null,null,null,null,null,null,null,null,null,null,null,null,null,null,null,null,null,null,null,null,null,null,null,null,null,null,null,null,null,null,null,null,null,null,null,null,null,null,null,null,null,null,null,null,null,null,null,null,null,null,null,null,null,null,null,null,null,null,null,null,null,null,null,null,null,null,null,null,null,null,null,null,null,null,null,null,null,null,null,null,null,null,null,null,null,null,null,null,null,22]
["21a","Solve problems involving converting between units of time",1,null,null,null,null,null,null,null,null,null,null,null,null,null,null,null,null,null,null,null,null,null,null,null,null,null,null,null,null,null,null,null,null,null,null,null,null,null,null,null,null,null,null,null,null,null,null,null,null,null,null,null,null,null,null,null,null,null,null,null,null,null,null,null,null,null,null,null,null,null,null,null,null,null,null,null,null,null,null,null,null,null,null,null,null,null,null,null,null,null,null,null,null,null,null,null,null,null,null,null,null,null,null,null,null,null,null,null,null,null,null,null,null,null,null,null,null,null,null,null,null,null,null,null,null,null,null,null,null,null,null,null,null,null,null,null,null,null,null,null,null,null,null,null,null,null,null,null,null,null,null,null,null,null,null,null,null,null,null,null,null,null,null,null,null,null,null,null,null,null,null,null,null,null,null,null,null,null,null,null,null,null,null,null,null,null,null,null,null,null,null,null,null,null,null,null,null,null,null,null,null,null,null,null,null,null,null,null,null,null,null,null,null,null,null,null,null,null,null,null,null,null,null,null,null,null,null,null,null,null,null,null,null,null,null,null,null,null,null,null,null,null,null,null,null,null,null,null,null,null,null,null,null,null,null,null,null,null,null,null,null,null,null,null,null,null,null,null,null,null,null,null,null,null,null,null,null,null,null,null,null,null,null,null,null,null,null,null,null,null,null,null,null,null,null,null,null,null,null,null,null,null,null,null,null,null,null,null,null,null,null,null,null,null,null,null,null,null,null,null,null,null,null,null,null,null,null,null,null,null,null,null,null,null,null,null,null,null,null,null,null,null,null,null,null,null,null,null,null,null,null,null,null,null,null,null,null,null,null,null,null,null,null,null,null,null,null,null,null,null,null,null,null,null,null,null,null,null,null,null,null,null,null,null,null,null,null,null,null,null,null,null,null,null,null,null,null,null,null,null,null,null,null,null,null,null,null,null,null,null,null,null,null,null,null,null,null,null,null,null,null,null,null,null,null,null,null,null,null,null,null,null,null,null,null,null,null,null,null,null,null,null,null,null,null,null,null,null,null,null,null,null,null,null,null,null,null,null,null,null,null,null,null,null,null,null,null,null,null,null,null,null,null,null,null,null,null,null,null,null,null,null,null,null,null,null,null,null,null,null,null,null,null,null,null,null,null,null,null,23]
["21b","Solve problems involving converting between units of time",1,null,null,null,null,null,null,null,null,null,null,null,null,null,null,null,null,null,null,null,null,null,null,null,null,null,null,null,null,null,null,null,null,null,null,null,null,null,null,null,null,null,null,null,null,null,null,null,null,null,null,null,null,null,null,null,null,null,null,null,null,null,null,null,null,null,null,null,null,null,null,null,null,null,null,null,null,null,null,null,null,null,null,null,null,null,null,null,null,null,null,null,null,null,null,null,null,null,null,null,null,null,null,null,null,null,null,null,null,null,null,null,null,null,null,null,null,null,null,null,null,null,null,null,null,null,null,null,null,null,null,null,null,null,null,null,null,null,null,null,null,null,null,null,null,null,null,null,null,null,null,null,null,null,null,null,null,null,null,null,null,null,null,null,null,null,null,null,null,null,null,null,null,null,null,null,null,null,null,null,null,null,null,null,null,null,null,null,null,null,null,null,null,null,null,null,null,null,null,null,null,null,null,null,null,null,null,null,null,null,null,null,null,null,null,null,null,null,null,null,null,null,null,null,null,null,null,null,null,null,null,null,null,null,null,null,null,null,null,null,null,null,null,null,null,null,null,null,null,null,null,null,null,null,null,null,null,null,null,null,null,null,null,null,null,null,null,null,null,null,null,null,null,null,null,null,null,null,null,null,null,null,null,null,null,null,null,null,null,null,null,null,null,null,null,null,null,null,null,null,null,null,null,null,null,null,null,null,null,null,null,null,null,null,null,null,null,null,null,null,null,null,null,null,null,null,null,null,null,null,null,null,null,null,null,null,null,null,null,null,null,null,null,null,null,null,null,null,null,null,null,null,null,null,null,null,null,null,null,null,null,null,null,null,null,null,null,null,null,null,null,null,null,null,null,null,null,null,null,null,null,null,null,null,null,null,null,null,null,null,null,null,null,null,null,null,null,null,null,null,null,null,null,null,null,null,null,null,null,null,null,null,null,null,null,null,null,null,null,null,null,null,null,null,null,null,null,null,null,null,null,null,null,null,null,null,null,null,null,null,null,null,null,null,null,null,null,null,null,null,null,null,null,null,null,null,null,null,null,null,null,null,null,null,null,null,null,null,null,null,null,null,null,null,null,null,null,null,null,null,null,null,null,null,null,null,null,null,null,null,null,null,null,null,null,null,null,null,null,24]
[]
[]
[]
["Total Marks",null,{"$f":"SUM(C3:C29)","v":35},{"$f":"SUM(D3:D29)","v":0},{"$f":"SUM(E3:E29)","v":0},{"$f":"SUM(F3:F29)","v":0},{"$f":"SUM(G3:G29)","v":0},{"$f":"SUM(H3:H29)","v":0},{"$f":"SUM(I3:I29)","v":0},{"$f":"SUM(J3:J29)","v":0},{"$f":"SUM(K3:K29)","v":0},{"$f":"SUM(L3:L29)","v":0},{"$f":"SUM(M3:M29)","v":0},{"$f":"SUM(N3:N29)","v":0},{"$f":"SUM(O3:O29)","v":0},{"$f":"SUM(P3:P29)","v":0},{"$f":"SUM(Q3:Q29)","v":0},{"$f":"SUM(R3:R29)","v":0},{"$f":"SUM(S3:S29)","v":0},{"$f":"SUM(T3:T29)","v":0},{"$f":"SUM(U3:U29)","v":0},{"$f":"SUM(V3:V29)","v":0},{"$f":"SUM(W3:W29)","v":0},{"$f":"SUM(X3:X29)","v":0},{"$f":"SUM(Y3:Y29)","v":0},{"$f":"SUM(Z3:Z29)","v":0},{"$f":"SUM(AA3:AA29)","v":0},{"$f":"SUM(AB3:AB29)","v":0},{"$f":"SUM(AC3:AC29)","v":0},{"$f":"SUM(AD3:AD29)","v":0},{"$f":"SUM(AE3:AE29)","v":0},{"$f":"SUM(AF3:AF29)","v":0},{"$f":"SUM(AG3:AG29)","v":0},{"$f":"SUM(AH3:AH29)","v":0},{"$f":"SUM(AI3:AI29)","v":0},{"$f":"SUM(AJ3:AJ29)","v":0},{"$f":"SUM(AK3:AK29)","v":0},{"$f":"SUM(AL3:AL29)","v":0},{"$f":"SUM(AM3:AM29)","v":0},{"$f":"SUM(AN3:AN29)","v":0},{"$f":"SUM(AO3:AO29)","v":0},{"$f":"SUM(AP3:AP29)","v":0},{"$f":"SUM(AQ3:AQ29)","v":0},{"$f":"SUM(AR3:AR29)","v":0},{"$f":"SUM(AS3:AS29)","v":0},{"$f":"SUM(AT3:AT29)","v":0},{"$f":"SUM(AU3:AU29)","v":0},{"$f":"SUM(AV3:AV29)","v":0},{"$f":"SUM(AW3:AW29)","v":0},{"$f":"SUM(AX3:AX29)","v":0},{"$f":"SUM(AY3:AY29)","v":0},{"$f":"SUM(AZ3:AZ29)","v":0},{"$f":"SUM(BA3:BA29)","v":0},{"$f":"SUM(BB3:BB29)","v":0},{"$f":"SUM(BC3:BC29)","v":0},{"$f":"SUM(BD3:BD29)","v":0},{"$f":"SUM(BE3:BE29)","v":0},{"$f":"SUM(BF3:BF29)","v":0},{"$f":"SUM(BG3:BG29)","v":0},{"$f":"SUM(BH3:BH29)","v":0},{"$f":"SUM(BI3:BI29)","v":0},{"$f":"SUM(BJ3:BJ29)","v":0},{"$f":"SUM(BK3:BK29)","v":0},{"$f":"SUM(BL3:BL29)","v":0},{"$f":"SUM(BM3:BM29)","v":0},{"$f":"SUM(BN3:BN29)","v":0},{"$f":"SUM(BO3:BO29)","v":0},{"$f":"SUM(BP3:BP29)","v":0},{"$f":"SUM(BQ3:BQ29)","v":0},{"$f":"SUM(BR3:BR29)","v":0},{"$f":"SUM(BS3:BS29)","v":0},{"$f":"SUM(BT3:BT29)","v":0},{"$f":"SUM(BU3:BU29)","v":0},{"$f":"SUM(BV3:BV29)","v":0},{"$f":"SUM(BW3:BW29)","v":0},{"$f":"SUM(BX3:BX29)","v":0},{"$f":"SUM(BY3:BY29)","v":0},{"$f":"SUM(BZ3:BZ29)","v":0},{"$f":"SUM(CA3:CA29)","v":0},{"$f":"SUM(CB3:CB29)","v":0},{"$f":"SUM(CC3:CC29)","v":0},{"$f":"SUM(CD3:CD29)","v":0},{"$f":"SUM(CE3:CE29)","v":0},{"$f":"SUM(CF3:CF29)","v":0},{"$f":"SUM(CG3:CG29)","v":0},{"$f":"SUM(CH3:CH29)","v":0},{"$f":"SUM(CI3:CI29)","v":0},{"$f":"SUM(CJ3:CJ29)","v":0},{"$f":"SUM(CK3:CK29)","v":0},{"$f":"SUM(CL3:CL29)","v":0},{"$f":"SUM(CM3:CM29)","v":0},{"$f":"SUM(CN3:CN29)","v":0},{"$f":"SUM(CO3:CO29)","v":0},{"$f":"SUM(CP3:CP29)","v":0},{"$f":"SUM(CQ3:CQ29)","v":0},{"$f":"SUM(CR3:CR29)","v":0},{"$f":"SUM(CS3:CS29)","v":0},{"$f":"SUM(CT3:CT29)","v":0},{"$f":"SUM(CU3:CU29)","v":0},{"$f":"SUM(CV3:CV29)","v":0},{"$f":"SUM(CW3:CW29)","v":0},{"$f":"SUM(CX3:CX29)","v":0},{"$f":"SUM(CY3:CY29)","v":0},{"$f":"SUM(CZ3:CZ29)","v":0},{"$f":"SUM(DA3:DA29)","v":0},{"$f":"SUM(DB3:DB29)","v":0},{"$f":"SUM(DC3:DC29)","v":0},{"$f":"SUM(DD3:DD29)","v":0},{"$f":"SUM(DE3:DE29)","v":0},{"$f":"SUM(DF3:DF29)","v":0},{"$f":"SUM(DG3:DG29)","v":0},{"$f":"SUM(DH3:DH29)","v":0},{"$f":"SUM(DI3:DI29)","v":0},{"$f":"SUM(DJ3:DJ29)","v":0},{"$f":"SUM(DK3:DK29)","v":0},{"$f":"SUM(DL3:DL29)","v":0},{"$f":"SUM(DM3:DM29)","v":0},{"$f":"SUM(DN3:DN29)","v":0},{"$f":"SUM(DO3:DO29)","v":0},{"$f":"SUM(DP3:DP29)","v":0},{"$f":"SUM(DQ3:DQ29)","v":0},{"$f":"SUM(DR3:DR29)","v":0},{"$f":"SUM(DS3:DS29)","v":0},{"$f":"SUM(DT3:DT29)","v":0},{"$f":"SUM(DU3:DU29)","v":0},{"$f":"SUM(DV3:DV29)","v":0},{"$f":"SUM(DW3:DW29)","v":0},{"$f":"SUM(DX3:DX29)","v":0},{"$f":"SUM(DY3:DY29)","v":0},{"$f":"SUM(DZ3:DZ29)","v":0},{"$f":"SUM(EA3:EA29)","v":0},{"$f":"SUM(EB3:EB29)","v":0},{"$f":"SUM(EC3:EC29)","v":0},{"$f":"SUM(ED3:ED29)","v":0},{"$f":"SUM(EE3:EE29)","v":0},{"$f":"SUM(EF3:EF29)","v":0},{"$f":"SUM(EG3:EG29)","v":0},{"$f":"SUM(EH3:EH29)","v":0},{"$f":"SUM(EI3:EI29)","v":0},{"$f":"SUM(EJ3:EJ29)","v":0},{"$f":"SUM(EK3:EK29)","v":0},{"$f":"SUM(EL3:EL29)","v":0},{"$f":"SUM(EM3:EM29)","v":0},{"$f":"SUM(EN3:EN29)","v":0},{"$f":"SUM(EO3:EO29)","v":0},{"$f":"SUM(EP3:EP29)","v":0},{"$f":"SUM(EQ3:EQ29)","v":0},{"$f":"SUM(ER3:ER29)","v":0},{"$f":"SUM(ES3:ES29)","v":0},{"$f":"SUM(ET3:ET29)","v":0},{"$f":"SUM(EU3:EU29)","v":0},{"$f":"SUM(EV3:EV29)","v":0},{"$f":"SUM(EW3:EW29)","v":0},{"$f":"SUM(EX3:EX29)","v":0},{"$f":"SUM(EY3:EY29)","v":0},{"$f":"SUM(EZ3:EZ29)","v":0},{"$f":"SUM(FA3:FA29)","v":0},{"$f":"SUM(FB3:FB29)","v":0},{"$f":"SUM(FC3:FC29)","v":0},{"$f":"SUM(FD3:FD29)","v":0},{"$f":"SUM(FE3:FE29)","v":0},{"$f":"SUM(FF3:FF29)","v":0},{"$f":"SUM(FG3:FG29)","v":0},{"$f":"SUM(FH3:FH29)","v":0},{"$f":"SUM(FI3:FI29)","v":0},{"$f":"SUM(FJ3:FJ29)","v":0},{"$f":"SUM(FK3:FK29)","v":0},{"$f":"SUM(FL3:FL29)","v":0},{"$f":"SUM(FM3:FM29)","v":0},{"$f":"SUM(FN3:FN29)","v":0},{"$f":"SUM(FO3:FO29)","v":0},{"$f":"SUM(FP3:FP29)","v":0},{"$f":"SUM(FQ3:FQ29)","v":0},{"$f":"SUM(FR3:FR29)","v":0},{"$f":"SUM(FS3:FS29)","v":0},{"$f":"SUM(FT3:FT29)","v":0},{"$f":"SUM(FU3:FU29)","v":0},{"$f":"SUM(FV3:FV29)","v":0},{"$f":"SUM(FW3:FW29)","v":0},{"$f":"SUM(FX3:FX29)","v":0},{"$f":"SUM(FY3:FY29)","v":0},{"$f":"SUM(FZ3:FZ29)","v":0},{"$f":"SUM(GA3:GA29)","v":0},{"$f":"SUM(GB3:GB29)","v":0},{"$f":"SUM(GC3:GC29)","v":0},{"$f":"SUM(GD3:GD29)","v":0},{"$f":"SUM(GE3:GE29)","v":0},{"$f":"SUM(GF3:GF29)","v":0},{"$f":"SUM(GG3:GG29)","v":0},{"$f":"SUM(GH3:GH29)","v":0},{"$f":"SUM(GI3:GI29)","v":0},{"$f":"SUM(GJ3:GJ29)","v":0},{"$f":"SUM(GK3:GK29)","v":0},{"$f":"SUM(GL3:GL29)","v":0},{"$f":"SUM(GM3:GM29)","v":0},{"$f":"SUM(GN3:GN29)","v":0},{"$f":"SUM(GO3:GO29)","v":0},{"$f":"SUM(GP3:GP29)","v":0},{"$f":"SUM(GQ3:GQ29)","v":0},{"$f":"SUM(GR3:GR29)","v":0},{"$f":"SUM(GS3:GS29)","v":0},{"$f":"SUM(GT3:GT29)","v":0},{"$f":"SUM(GU3:GU29)","v":0},{"$f":"SUM(GV3:GV29)","v":0},{"$f":"SUM(GW3:GW29)","v":0},{"$f":"SUM(GX3:GX29)","v":0},{"$f":"SUM(GY3:GY29)","v":0},{"$f":"SUM(GZ3:GZ29)","v":0},{"$f":"SUM(HA3:HA29)","v":0},{"$f":"SUM(HB3:HB29)","v":0},{"$f":"SUM(HC3:HC29)","v":0},{"$f":"SUM(HD3:HD29)","v":0},{"$f":"SUM(HE3:HE29)","v":0},{"$f":"SUM(HF3:HF29)","v":0},{"$f":"SUM(HG3:HG29)","v":0},{"$f":"SUM(HH3:HH29)","v":0},{"$f":"SUM(HI3:HI29)","v":0},{"$f":"SUM(HJ3:HJ29)","v":0},{"$f":"SUM(HK3:HK29)","v":0},{"$f":"SUM(HL3:HL29)","v":0},{"$f":"SUM(HM3:HM29)","v":0},{"$f":"SUM(HN3:HN29)","v":0},{"$f":"SUM(HO3:HO29)","v":0},{"$f":"SUM(HP3:HP29)","v":0},{"$f":"SUM(HQ3:HQ29)","v":0},{"$f":"SUM(HR3:HR29)","v":0},{"$f":"SUM(HS3:HS29)","v":0},{"$f":"SUM(HT3:HT29)","v":0},{"$f":"SUM(HU3:HU29)","v":0},{"$f":"SUM(HV3:HV29)","v":0},{"$f":"SUM(HW3:HW29)","v":0},{"$f":"SUM(HX3:HX29)","v":0},{"$f":"SUM(HY3:HY29)","v":0},{"$f":"SUM(HZ3:HZ29)","v":0},{"$f":"SUM(IA3:IA29)","v":0},{"$f":"SUM(IB3:IB29)","v":0},{"$f":"SUM(IC3:IC29)","v":0},{"$f":"SUM(ID3:ID29)","v":0},{"$f":"SUM(IE3:IE29)","v":0},{"$f":"SUM(IF3:IF29)","v":0},{"$f":"SUM(IG3:IG29)","v":0},{"$f":"SUM(IH3:IH29)","v":0},{"$f":"SUM(II3:II29)","v":0},{"$f":"SUM(IJ3:IJ29)","v":0},{"$f":"SUM(IK3:IK29)","v":0},{"$f":"SUM(IL3:IL29)","v":0},{"$f":"SUM(IM3:IM29)","v":0},{"$f":"SUM(IN3:IN29)","v":0},{"$f":"SUM(IO3:IO29)","v":0},{"$f":"SUM(IP3:IP29)","v":0},{"$f":"SUM(IQ3:IQ29)","v":0},{"$f":"SUM(IR3:IR29)","v":0},{"$f":"SUM(IS3:IS29)","v":0},{"$f":"SUM(IT3:IT29)","v":0},{"$f":"SUM(IU3:IU29)","v":0},{"$f":"SUM(IV3:IV29)","v":0},{"$f":"SUM(IW3:IW29)","v":0},{"$f":"SUM(IX3:IX29)","v":0},{"$f":"SUM(IY3:IY29)","v":0},{"$f":"SUM(IZ3:IZ29)","v":0},{"$f":"SUM(JA3:JA29)","v":0},{"$f":"SUM(JB3:JB29)","v":0},{"$f":"SUM(JC3:JC29)","v":0},{"$f":"SUM(JD3:JD29)","v":0},{"$f":"SUM(JE3:JE29)","v":0},{"$f":"SUM(JF3:JF29)","v":0},{"$f":"SUM(JG3:JG29)","v":0},{"$f":"SUM(JH3:JH29)","v":0},{"$f":"SUM(JI3:JI29)","v":0},{"$f":"SUM(JJ3:JJ29)","v":0},{"$f":"SUM(JK3:JK29)","v":0},{"$f":"SUM(JL3:JL29)","v":0},{"$f":"SUM(JM3:JM29)","v":0},{"$f":"SUM(JN3:JN29)","v":0},{"$f":"SUM(JO3:JO29)","v":0},{"$f":"SUM(JP3:JP29)","v":0},{"$f":"SUM(JQ3:JQ29)","v":0},{"$f":"SUM(JR3:JR29)","v":0},{"$f":"SUM(JS3:JS29)","v":0},{"$f":"SUM(JT3:JT29)","v":0},{"$f":"SUM(JU3:JU29)","v":0},{"$f":"SUM(JV3:JV29)","v":0},{"$f":"SUM(JW3:JW29)","v":0},{"$f":"SUM(JX3:JX29)","v":0},{"$f":"SUM(JY3:JY29)","v":0},{"$f":"SUM(JZ3:JZ29)","v":0},{"$f":"SUM(KA3:KA29)","v":0},{"$f":"SUM(KB3:KB29)","v":0},{"$f":"SUM(KC3:KC29)","v":0},{"$f":"SUM(KD3:KD29)","v":0},{"$f":"SUM(KE3:KE29)","v":0},{"$f":"SUM(KF3:KF29)","v":0},{"$f":"SUM(KG3:KG29)","v":0},{"$f":"SUM(KH3:KH29)","v":0},{"$f":"SUM(KI3:KI29)","v":0},{"$f":"SUM(KJ3:KJ29)","v":0},{"$f":"SUM(KK3:KK29)","v":0},{"$f":"SUM(KL3:KL29)","v":0},{"$f":"SUM(KM3:KM29)","v":0},{"$f":"SUM(KN3:KN29)","v":0},{"$f":"SUM(KO3:KO29)","v":0},{"$f":"SUM(KP3:KP29)","v":0},{"$f":"SUM(KQ3:KQ29)","v":0},{"$f":"SUM(KR3:KR29)","v":0},{"$f":"SUM(KS3:KS29)","v":0},{"$f":"SUM(KT3:KT29)","v":0},{"$f":"SUM(KU3:KU29)","v":0},{"$f":"SUM(KV3:KV29)","v":0},{"$f":"SUM(KW3:KW29)","v":0},{"$f":"SUM(KX3:KX29)","v":0},{"$f":"SUM(KY3:KY29)","v":0},{"$f":"SUM(KZ3:KZ29)","v":0},{"$f":"SUM(LA3:LA29)","v":0},{"$f":"SUM(LB3:LB29)","v":0},{"$f":"SUM(LC3:LC29)","v":0},{"$f":"SUM(LD3:LD29)","v":0},{"$f":"SUM(LE3:LE29)","v":0},{"$f":"SUM(LF3:LF29)","v":0},{"$f":"SUM(LG3:LG29)","v":0},{"$f":"SUM(LH3:LH29)","v":0},{"$f":"SUM(LI3:LI29)","v":0},{"$f":"SUM(LJ3:LJ29)","v":0},{"$f":"SUM(LK3:LK29)","v":0},{"$f":"SUM(LL3:LL29)","v":0},{"$f":"SUM(LM3:LM29)","v":0},{"$f":"SUM(LN3:LN29)","v":0},{"$f":"SUM(LO3:LO29)","v":0},{"$f":"SUM(LP3:LP29)","v":0},{"$f":"SUM(LQ3:LQ29)","v":0},{"$f":"SUM(LR3:LR29)","v":0},{"$f":"SUM(LS3:LS29)","v":0},{"$f":"SUM(LT3:LT29)","v":0},{"$f":"SUM(LU3:LU29)","v":0},{"$f":"SUM(LV3:LV29)","v":0},{"$f":"SUM(LW3:LW29)","v":0},{"$f":"SUM(LX3:LX29)","v":0},{"$f":"SUM(LY3:LY29)","v":0},{"$f":"SUM(LZ3:LZ29)","v":0},{"$f":"SUM(MA3:MA29)","v":0},{"$f":"SUM(MB3:MB29)","v":0},{"$f":"SUM(MC3:MC29)","v":0},{"$f":"SUM(MD3:MD29)","v":0},{"$f":"SUM(ME3:ME29)","v":0},{"$f":"SUM(MF3:MF29)","v":0},{"$f":"SUM(MG3:MG29)","v":0},{"$f":"SUM(MH3:MH29)","v":0},{"$f":"SUM(MI3:MI29)","v":0},{"$f":"SUM(MJ3:MJ29)","v":0},{"$f":"SUM(MK3:MK29)","v":0},{"$f":"SUM(ML3:ML29)","v":0},{"$f":"SUM(MM3:MM29)","v":0},{"$f":"SUM(MN3:MN29)","v":0},{"$f":"SUM(MO3:MO29)","v":0},{"$f":"SUM(MP3:MP29)","v":0},{"$f":"SUM(MQ3:MQ29)","v":0},{"$f":"SUM(MR3:MR29)","v":0},{"$f":"SUM(MS3:MS29)","v":0},{"$f":"SUM(MT3:MT29)","v":0},{"$f":"SUM(MU3:MU29)","v":0},{"$f":"SUM(MV3:MV29)","v":0},{"$f":"SUM(MW3:MW29)","v":0},{"$f":"SUM(MX3:MX29)","v":0},{"$f":"SUM(MY3:MY29)","v":0},{"$f":"SUM(MZ3:MZ29)","v":0},{"$f":"SUM(NA3:NA29)","v":0},{"$f":"SUM(NB3:NB29)","v":0},{"$f":"SUM(NC3:NC29)","v":0},{"$f":"SUM(ND3:ND29)","v":0},{"$f":"SUM(NE3:NE29)","v":0},{"$f":"SUM(NF3:NF29)","v":0},{"$f":"SUM(NG3:NG29)","v":0},{"$f":"SUM(NH3:NH29)","v":0},{"$f":"SUM(NI3:NI29)","v":0},{"$f":"SUM(NJ3:NJ29)","v":0},{"$f":"SUM(NK3:NK29)","v":0},{"$f":"SUM(NL3:NL29)","v":0},{"$f":"SUM(NM3:NM29)","v":0},{"$f":"SUM(NN3:NN29)","v":0},{"$f":"SUM(NO3:NO29)","v":0},{"$f":"SUM(NP3:NP29)","v":0},{"$f":"SUM(NQ3:NQ29)","v":0},{"$f":"SUM(NR3:NR29)","v":0},{"$f":"SUM(NS3:NS29)","v":0},{"$f":"SUM(NT3:NT29)","v":0},{"$f":"SUM(NU3:NU29)","v":0},{"$f":"SUM(NV3:NV29)","v":0},{"$f":"SUM(NW3:NW29)","v":0},{"$f":"SUM(NX3:NX29)","v":0},{"$f":"SUM(NY3:NY29)","v":0},{"$f":"SUM(NZ3:NZ29)","v":0},{"$f":"SUM(OA3:OA29)","v":0},{"$f":"SUM(OB3:OB29)","v":0},{"$f":"SUM(OC3:OC29)","v":0},{"$f":"SUM(OD3:OD29)","v":0},{"$f":"SUM(OE3:OE29)","v":0},{"$f":"SUM(OF3:OF29)","v":0},{"$f":"SUM(OG3:OG29)","v":0},{"$f":"SUM(OH3:OH29)","v":0},{"$f":"SUM(OI3:OI29)","v":0},{"$f":"SUM(OJ3:OJ29)","v":0},{"$f":"SUM(OK3:OK29)","v":0},{"$f":"SUM(OL3:OL29)","v":0},{"$f":"SUM(OM3:OM29)","v":0},{"$f":"SUM(ON3:ON29)","v":0},{"$f":"SUM(OO3:OO29)","v":0},{"$f":"SUM(OP3:OP29)","v":0},{"$f":"SUM(OQ3:OQ29)","v":0},{"$f":"SUM(OR3:OR29)","v":0},{"$f":"SUM(OS3:OS29)","v":0},{"$f":"SUM(OT3:OT29)","v":0},{"$f":"SUM(OU3:OU29)","v":0},{"$f":"SUM(OV3:OV29)","v":0},{"$f":"SUM(OW3:OW29)","v":0},{"$f":"SUM(OX3:OX29)","v":0},{"$f":"SUM(OY3:OY29)","v":0},{"$f":"SUM(OZ3:OZ29)","v":0},{"$f":"SUM(PA3:PA29)","v":0},{"$f":"SUM(PB3:PB29)","v":0},{"$f":"SUM(PC3:PC29)","v":0},{"$f":"SUM(PD3:PD29)","v":0},{"$f":"SUM(PE3:PE29)","v":0},{"$f":"SUM(PF3:PF29)","v":0},{"$f":"SUM(PG3:PG29)","v":0},{"$f":"SUM(PH3:PH29)","v":0},{"$f":"SUM(PI3:PI29)","v":0},{"$f":"SUM(PJ3:PJ29)","v":0},{"$f":"SUM(PK3:PK29)","v":0},{"$f":"SUM(PL3:PL29)","v":0},{"$f":"SUM(PM3:PM29)","v":0},{"$f":"SUM(PN3:PN29)","v":0},{"$f":"SUM(PO3:PO29)","v":0},{"$f":"SUM(PP3:PP29)","v":0},{"$f":"SUM(PQ3:PQ29)","v":0},{"$f":"SUM(PR3:PR29)","v":0},{"$f":"SUM(PS3:PS29)","v":0},{"$f":"SUM(PT3:PT29)","v":0},{"$f":"SUM(PU3:PU29)","v":0},{"$f":"SUM(PV3:PV29)","v":0},{"$f":"SUM(PW3:PW29)","v":0},{"$f":"SUM(PX3:PX29)","v":0},{"$f":"SUM(PY3:PY29)","v":0},{"$f":"SUM(PZ3:PZ29)","v":0},{"$f":"SUM(QA3:QA29)","v":0},{"$f":"SUM(QB3:QB29)","v":0},{"$f":"SUM(QC3:QC29)","v":0},{"$f":"SUM(QD3:QD29)","v":0},{"$f":"SUM(QE3:QE29)","v":0},{"$f":"SUM(QF3:QF29)","v":0},{"$f":"SUM(QG3:QG29)","v":0},{"$f":"SUM(QH3:QH29)","v":0},{"$f":"SUM(QI3:QI29)","v":0},{"$f":"SUM(QJ3:QJ29)","v":0},{"$f":"SUM(QK3:QK29)","v":0},{"$f":"SUM(QL3:QL29)","v":0},{"$f":"SUM(QM3:QM29)","v":0},{"$f":"SUM(QN3:QN29)","v":0},{"$f":"SUM(QO3:QO29)","v":0},{"$f":"SUM(QP3:QP29)","v":0},{"$f":"SUM(QQ3:QQ29)","v":0},{"$f":"SUM(QR3:QR29)","v":0},{"$f":"SUM(QS3:QS29)","v":0},{"$f":"SUM(QT3:QT29)","v":0},{"$f":"SUM(QU3:QU29)","v":0},{"$f":"SUM(QV3:QV29)","v":0},{"$f":"SUM(QW3:QW29)","v":0},{"$f":"SUM(QX3:QX29)","v":0},{"$f":"SUM(QY3:QY29)","v":0},{"$f":"SUM(QZ3:QZ29)","v":0},{"$f":"SUM(RA3:RA29)","v":0},{"$f":"SUM(RB3:RB29)","v":0},{"$f":"SUM(RC3:RC29)","v":0},{"$f":"SUM(RD3:RD29)","v":0},{"$f":"SUM(RE3:RE29)","v":0},{"$f":"SUM(RF3:RF29)","v":0},{"$f":"SUM(RG3:RG29)","v":0},{"$f":"SUM(RH3:RH29)","v":0},{"$f":"SUM(RI3:RI29)","v":0},{"$f":"SUM(RJ3:RJ29)","v":0},{"$f":"SUM(RK3:RK29)","v":0},{"$f":"SUM(RL3:RL29)","v":0},{"$f":"SUM(RM3:RM29)","v":0},{"$f":"SUM(RN3:RN29)","v":0},{"$f":"SUM(RO3:RO29)","v":0},{"$f":"SUM(RP3:RP29)","v":0},{"$f":"SUM(RQ3:RQ29)","v":0},{"$f":"SUM(RR3:RR29)","v":0},{"$f":"SUM(RS3:RS29)","v":0},{"$f":"SUM(RT3:RT29)","v":0},{"$f":"SUM(RU3:RU29)","v":0},{"$f":"SUM(RV3:RV29)","v":0},{"$f":"SUM(RW3:RW29)","v":0},{"$f":"SUM(RX3:RX29)","v":0},{"$f":"SUM(RY3:RY29)","v":0},{"$f":"SUM(RZ3:RZ29)","v":0},{"$f":"SUM(SA3:SA29)","v":0},{"$f":"SUM(SB3:SB29)","v":0},{"$f":"SUM(SC3:SC29)","v":0},{"$f":"SUM(SD3:SD29)","v":0},{"$f":"SUM(SE3:SE29)","v":0},{"$f":"SUM(SF3:SF29)","v":0},{"$f":"SUM(SG3:SG29)","v":0},{"$f":"SUM(SH3:SH29)","v":300}]

{"sheet":"CHECK Student Refs are the same","index":4,"n_rows":501,"n_cols":7,"rows_kept":501,"cut":false,"hidden":false,"merged":[]}
["Reference","(P1) Student Name","(P2) Student Name","(P3) Student Name","Match?",{"$f":"MAX(COUNTA('Paper 1'!E2:SG2),COUNTA('Paper 2'!D2:SF2))","v":1},{"$f":"COUNTIF(E2:E501,\"FALSE\")","v":0}]
[1,{"$f":"HLOOKUP(A2,MockP1H,2,FALSE)","v":0},{"$f":"HLOOKUP(A2,MockP2H, 2, FALSE)","v":0},{"$f":"HLOOKUP(A2,MockP3H, 2, FALSE)","v":0},{"$f":"EXACT(B2,C2)","v":true}]
[2,0,0,0,{"$f":"EXACT(B3,C3)","v":true}]
[3,0,0,0,true]
[4,0,0,0,true]
[5,0,0,0,true]
[6,0,0,0,true]
[7,0,0,0,true]
[8,0,0,0,true]
[9,0,0,0,true]
[10,0,0,0,true]
[11,0,0,0,true]
[12,0,0,0,true]
[13,0,0,0,true]
[14,0,0,0,true]
[15,0,0,0,true]
[16,0,0,0,true]
[17,0,0,0,true]
[18,0,0,0,true]
[19,0,0,0,true]
[20,0,0,0,true]
[21,0,0,0,true]
[22,0,0,0,true]
[23,0,0,0,true]
[24,0,0,0,true]
[25,0,0,0,true]
[26,0,0,0,true]
[27,0,0,0,true]
[28,0,0,0,true]
[29,0,0,0,true]
[30,0,0,0,true]
[31,0,0,0,true]
[32,0,0,0,true]
[33,0,0,0,true]
[34,0,0,0,true]
[35,0,0,0,true]
[36,0,0,0,true]
[37,0,0,0,true]
[38,0,0,0,true]
[39,0,0,0,true]
[40,0,0,0,true]
[41,0,0,0,true]
[42,0,0,0,true]
[43,0,0,0,true]
[44,0,0,0,true]
[45,0,0,0,true]
[46,0,0,0,true]
[47,0,0,0,true]
[48,0,0,0,true]
[49,0,0,0,true]
[50,0,0,0,true]
[51,0,0,0,true]
[52,0,0,0,true]
[53,0,0,0,true]
[54,0,0,0,true]
[55,0,0,0,true]
[56,0,0,0,true]
[57,0,0,0,true]
[58,0,0,0,true]
[59,0,0,0,true]
[60,0,0,0,true]
[61,0,0,0,true]
[62,0,0,0,true]
[63,0,0,0,true]
[64,0,0,0,true]
[65,{"$f":"HLOOKUP(A66,MockP1H,2,FALSE)","v":0},{"$f":"HLOOKUP(A66,MockP2H, 2, FALSE)","v":0},{"$f":"HLOOKUP(A66,MockP3H, 2, FALSE)","v":0},true]
[66,0,0,0,{"$f":"EXACT(B67,C67)","v":true}]
[67,0,0,0,true]
[68,0,0,0,true]
[69,0,0,0,true]
[70,0,0,0,true]
[71,0,0,0,true]
[72,0,0,0,true]
[73,0,0,0,true]
[74,0,0,0,true]
[75,0,0,0,true]
[76,0,0,0,true]
[77,0,0,0,true]
[78,0,0,0,true]
[79,0,0,0,true]
[80,0,0,0,true]
[81,0,0,0,true]
[82,0,0,0,true]
[83,0,0,0,true]
[84,0,0,0,true]
[85,0,0,0,true]
[86,0,0,0,true]
[87,0,0,0,true]
[88,0,0,0,true]
[89,0,0,0,true]
[90,0,0,0,true]
[91,0,0,0,true]
[92,0,0,0,true]
[93,0,0,0,true]
[94,0,0,0,true]
[95,0,0,0,true]
[96,0,0,0,true]
[97,0,0,0,true]
[98,0,0,0,true]
[99,0,0,0,true]
[100,0,0,0,true]
[101,0,0,0,true]
[102,0,0,0,true]
[103,0,0,0,true]
[104,0,0,0,true]
[105,0,0,0,true]
[106,0,0,0,true]
[107,0,0,0,true]
[108,0,0,0,true]
[109,0,0,0,true]
[110,0,0,0,true]
[111,0,0,0,true]
[112,0,0,0,true]
[113,0,0,0,true]
[114,0,0,0,true]
[115,0,0,0,true]
[116,0,0,0,true]
[117,0,0,0,true]
[118,0,0,0,true]
[119,0,0,0,true]
[120,0,0,0,true]
[121,0,0,0,true]
[122,0,0,0,true]
[123,0,0,0,true]
[124,0,0,0,true]
[125,0,0,0,true]
[126,0,0,0,true]
[127,0,0,0,true]
[128,0,0,0,true]
[129,{"$f":"HLOOKUP(A130,MockP1H,2,FALSE)","v":0},{"$f":"HLOOKUP(A130,MockP2H, 2, FALSE)","v":0},{"$f":"HLOOKUP(A130,MockP3H, 2, FALSE)","v":0},true]
[130,0,0,0,{"$f":"EXACT(B131,C131)","v":true}]
[131,0,0,0,true]
[132,0,0,0,true]
[133,0,0,0,true]
[134,0,0,0,true]
[135,0,0,0,true]
[136,0,0,0,true]
[137,0,0,0,true]
[138,0,0,0,true]
[139,0,0,0,true]
[140,0,0,0,true]
[141,0,0,0,true]
[142,0,0,0,true]
[143,0,0,0,true]
[144,0,0,0,true]
[145,0,0,0,true]
[146,0,0,0,true]
[147,0,0,0,true]
[148,0,0,0,true]
[149,0,0,0,true]
[150,0,0,0,true]
[151,0,0,0,true]
[152,0,0,0,true]
[153,0,0,0,true]
[154,0,0,0,true]
[155,0,0,0,true]
[156,0,0,0,true]
[157,0,0,0,true]
[158,0,0,0,true]
[159,0,0,0,true]
[160,0,0,0,true]
[161,0,0,0,true]
[162,0,0,0,true]
[163,0,0,0,true]
[164,0,0,0,true]
[165,0,0,0,true]
[166,0,0,0,true]
[167,0,0,0,true]
[168,0,0,0,true]
[169,0,0,0,true]
[170,0,0,0,true]
[171,0,0,0,true]
[172,0,0,0,true]
[173,0,0,0,true]
[174,0,0,0,true]
[175,0,0,0,true]
[176,0,0,0,true]
[177,0,0,0,true]
[178,0,0,0,true]
[179,0,0,0,true]
[180,0,0,0,true]
[181,0,0,0,true]
[182,0,0,0,true]
[183,0,0,0,true]
[184,0,0,0,true]
[185,0,0,0,true]
[186,0,0,0,true]
[187,0,0,0,true]
[188,0,0,0,true]
[189,0,0,0,true]
[190,0,0,0,true]
[191,0,0,0,true]
[192,0,0,0,true]
[193,{"$f":"HLOOKUP(A194,MockP1H,2,FALSE)","v":0},{"$f":"HLOOKUP(A194,MockP2H, 2, FALSE)","v":0},{"$f":"HLOOKUP(A194,MockP3H, 2, FALSE)","v":0},true]
[194,0,0,0,{"$f":"EXACT(B195,C195)","v":true}]
[195,0,0,0,true]
[196,0,0,0,true]
[197,0,0,0,true]
[198,0,0,0,true]
[199,0,0,0,true]
[200,0,0,0,true]
[201,0,0,0,true]
[202,0,0,0,true]
[203,0,0,0,true]
[204,0,0,0,true]
[205,0,0,0,true]
[206,0,0,0,true]
[207,0,0,0,true]
[208,0,0,0,true]
[209,0,0,0,true]
[210,0,0,0,true]
[211,0,0,0,true]
[212,0,0,0,true]
[213,0,0,0,true]
[214,0,0,0,true]
[215,0,0,0,true]
[216,0,0,0,true]
[217,0,0,0,true]
[218,0,0,0,true]
[219,0,0,0,true]
[220,0,0,0,true]
[221,0,0,0,true]
[222,0,0,0,true]
[223,0,0,0,true]
[224,0,0,0,true]
[225,0,0,0,true]
[226,0,0,0,true]
[227,0,0,0,true]
[228,0,0,0,true]
[229,0,0,0,true]
[230,0,0,0,true]
[231,0,0,0,true]
[232,0,0,0,true]
[233,0,0,0,true]
[234,0,0,0,true]
[235,0,0,0,true]
[236,0,0,0,true]
[237,0,0,0,true]
[238,0,0,0,true]
[239,0,0,0,true]
[240,0,0,0,true]
[241,0,0,0,true]
[242,0,0,0,true]
[243,0,0,0,true]
[244,0,0,0,true]
[245,0,0,0,true]
[246,0,0,0,true]
[247,0,0,0,true]
[248,0,0,0,true]
[249,0,0,0,true]
[250,0,0,0,true]
[251,0,0,0,true]
[252,0,0,0,true]
[253,0,0,0,true]
[254,0,0,0,true]
[255,0,0,0,true]
[256,0,0,0,true]
[257,{"$f":"HLOOKUP(A258,MockP1H,2,FALSE)","v":0},{"$f":"HLOOKUP(A258,MockP2H, 2, FALSE)","v":0},{"$f":"HLOOKUP(A258,MockP3H, 2, FALSE)","v":0},true]
[258,0,0,0,{"$f":"EXACT(B259,C259)","v":true}]
[259,0,0,0,true]
[260,0,0,0,true]
[261,0,0,0,true]
[262,0,0,0,true]
[263,0,0,0,true]
[264,0,0,0,true]
[265,0,0,0,true]
[266,0,0,0,true]
[267,0,0,0,true]
[268,0,0,0,true]
[269,0,0,0,true]
[270,0,0,0,true]
[271,0,0,0,true]
[272,0,0,0,true]
[273,0,0,0,true]
[274,0,0,0,true]
[275,0,0,0,true]
[276,0,0,0,true]
[277,0,0,0,true]
[278,0,0,0,true]
[279,0,0,0,true]
[280,0,0,0,true]
[281,0,0,0,true]
[282,0,0,0,true]
[283,0,0,0,true]
[284,0,0,0,true]
[285,0,0,0,true]
[286,0,0,0,true]
[287,0,0,0,true]
[288,0,0,0,true]
[289,0,0,0,true]
[290,0,0,0,true]
[291,0,0,0,true]
[292,0,0,0,true]
[293,0,0,0,true]
[294,0,0,0,true]
[295,0,0,0,true]
[296,0,0,0,true]
[297,0,0,0,true]
[298,0,0,0,true]
[299,0,0,0,true]
[300,0,0,0,true]
[301,0,0,0,true]
[302,0,0,0,true]
[303,0,0,0,true]
[304,0,0,0,true]
[305,0,0,0,true]
[306,0,0,0,true]
[307,0,0,0,true]
[308,0,0,0,true]
[309,0,0,0,true]
[310,0,0,0,true]
[311,0,0,0,true]
[312,0,0,0,true]
[313,0,0,0,true]
[314,0,0,0,true]
[315,0,0,0,true]
[316,0,0,0,true]
[317,0,0,0,true]
[318,0,0,0,true]
[319,0,0,0,true]
[320,0,0,0,true]
[321,{"$f":"HLOOKUP(A322,MockP1H,2,FALSE)","v":0},{"$f":"HLOOKUP(A322,MockP2H, 2, FALSE)","v":0},{"$f":"HLOOKUP(A322,MockP3H, 2, FALSE)","v":0},true]
[322,0,0,0,{"$f":"EXACT(B323,C323)","v":true}]
[323,0,0,0,true]
[324,0,0,0,true]
[325,0,0,0,true]
[326,0,0,0,true]
[327,0,0,0,true]
[328,0,0,0,true]
[329,0,0,0,true]
[330,0,0,0,true]
[331,0,0,0,true]
[332,0,0,0,true]
[333,0,0,0,true]
[334,0,0,0,true]
[335,0,0,0,true]
[336,0,0,0,true]
[337,0,0,0,true]
[338,0,0,0,true]
[339,0,0,0,true]
[340,0,0,0,true]
[341,0,0,0,true]
[342,0,0,0,true]
[343,0,0,0,true]
[344,0,0,0,true]
[345,0,0,0,true]
[346,0,0,0,true]
[347,0,0,0,true]
[348,0,0,0,true]
[349,0,0,0,true]
[350,0,0,0,true]
[351,0,0,0,true]
[352,0,0,0,true]
[353,0,0,0,true]
[354,0,0,0,true]
[355,0,0,0,true]
[356,0,0,0,true]
[357,0,0,0,true]
[358,0,0,0,true]
[359,0,0,0,true]
[360,0,0,0,true]
[361,0,0,0,true]
[362,0,0,0,true]
[363,0,0,0,true]
[364,0,0,0,true]
[365,0,0,0,true]
[366,0,0,0,true]
[367,0,0,0,true]
[368,0,0,0,true]
[369,0,0,0,true]
[370,0,0,0,true]
[371,0,0,0,true]
[372,0,0,0,true]
[373,0,0,0,true]
[374,0,0,0,true]
[375,0,0,0,true]
[376,0,0,0,true]
[377,0,0,0,true]
[378,0,0,0,true]
[379,0,0,0,true]
[380,0,0,0,true]
[381,0,0,0,true]
[382,0,0,0,true]
[383,0,0,0,true]
[384,0,0,0,true]
[385,{"$f":"HLOOKUP(A386,MockP1H,2,FALSE)","v":0},{"$f":"HLOOKUP(A386,MockP2H, 2, FALSE)","v":0},{"$f":"HLOOKUP(A386,MockP3H, 2, FALSE)","v":0},true]
[386,0,0,0,{"$f":"EXACT(B387,C387)","v":true}]
[387,0,0,0,true]
[388,0,0,0,true]
[389,0,0,0,true]
[390,0,0,0,true]
[391,0,0,0,true]
[392,0,0,0,true]
[393,0,0,0,true]
[394,0,0,0,true]
[395,0,0,0,true]
[396,0,0,0,true]
[397,0,0,0,true]
[398,0,0,0,true]
[399,0,0,0,true]
[400,0,0,0,true]
[401,0,0,0,true]
[402,0,0,0,true]
[403,0,0,0,true]
[404,0,0,0,true]
[405,0,0,0,true]
[406,0,0,0,true]
[407,0,0,0,true]
[408,0,0,0,true]
[409,0,0,0,true]
[410,0,0,0,true]
[411,0,0,0,true]
[412,0,0,0,true]
[413,0,0,0,true]
[414,0,0,0,true]
[415,0,0,0,true]
[416,0,0,0,true]
[417,0,0,0,true]
[418,0,0,0,true]
[419,0,0,0,true]
[420,0,0,0,true]
[421,0,0,0,true]
[422,0,0,0,true]
[423,0,0,0,true]
[424,0,0,0,true]
[425,0,0,0,true]
[426,0,0,0,true]
[427,0,0,0,true]
[428,0,0,0,true]
[429,0,0,0,true]
[430,0,0,0,true]
[431,0,0,0,true]
[432,0,0,0,true]
[433,0,0,0,true]
[434,0,0,0,true]
[435,0,0,0,true]
[436,0,0,0,true]
[437,0,0,0,true]
[438,0,0,0,true]
[439,0,0,0,true]
[440,0,0,0,true]
[441,0,0,0,true]
[442,0,0,0,true]
[443,0,0,0,true]
[444,0,0,0,true]
[445,0,0,0,true]
[446,0,0,0,true]
[447,0,0,0,true]
[448,0,0,0,true]
[449,{"$f":"HLOOKUP(A450,MockP1H,2,FALSE)","v":0},{"$f":"HLOOKUP(A450,MockP2H, 2, FALSE)","v":0},{"$f":"HLOOKUP(A450,MockP3H, 2, FALSE)","v":0},true]
[450,0,0,0,{"$f":"EXACT(B451,C451)","v":true}]
[451,0,0,0,true]
[452,0,0,0,true]
[453,0,0,0,true]
[454,0,0,0,true]
[455,0,0,0,true]
[456,0,0,0,true]
[457,0,0,0,true]
[458,0,0,0,true]
[459,0,0,0,true]
[460,0,0,0,true]
[461,0,0,0,true]
[462,0,0,0,true]
[463,0,0,0,true]
[464,0,0,0,true]
[465,0,0,0,true]
[466,0,0,0,true]
[467,0,0,0,true]
[468,0,0,0,true]
[469,0,0,0,true]
[470,0,0,0,true]
[471,0,0,0,true]
[472,0,0,0,true]
[473,0,0,0,true]
[474,0,0,0,true]
[475,0,0,0,true]
[476,0,0,0,true]
[477,0,0,0,true]
[478,0,0,0,true]
[479,0,0,0,true]
[480,0,0,0,true]
[481,0,0,0,true]
[482,0,0,0,true]
[483,0,0,0,true]
[484,0,0,0,true]
[485,0,0,0,true]
[486,0,0,0,true]
[487,0,0,0,true]
[488,0,0,0,true]
[489,0,0,0,true]
[490,0,0,0,true]
[491,0,0,0,true]
[492,0,0,0,true]
[493,0,0,0,true]
[494,0,0,0,true]
[495,0,0,0,true]
[496,0,0,0,true]
[497,0,0,0,true]
[498,{"$error":"#N/A"},{"$error":"#N/A"},0,{"$error":"#N/A"}]
[499,{"$error":"#N/A"},{"$error":"#N/A"},{"$error":"#N/A"},{"$error":"#N/A"}]
[500,"Example Student ","Example Student ","Example Student ",true]

{"sheet":"SINGLE Student Analysis","index":5,"n_rows":42,"n_cols":17,"rows_kept":42,"cut":false,"hidden":false,"merged":[[32,14,32,15],[37,14,38,15],[39,14,40,15],[41,0,41,1],[29,12,29,13],[34,7,39,12],[30,6,31,7],[30,8,31,8],[30,9,31,9],[30,10,31,10],[33,13,34,13],[35,13,36,13],[37,13,38,13],[39,13,40,13],[33,14,34,15],[35,14,36,15],[0,0,0,1],[1,0,1,1],[3,12,3,16],[3,0,3,4],[2,5,2,10],[3,6,3,10],[2,0,2,4]]}
["Insert reference in D1",null,null,1]
["Key Stage 2 - 2018"]
["Name: ",null,null,null,null,{"$f":"HLOOKUP(D1,MockP1H,2,FALSE)","v":0}]
["PAPER 1 - Arithmetic",null,null,null,null,null,"PAPER 2 - Reasoning",null,null,null,null,null,"PAPER 3 - Reasoning"]
["Q","Topic","Max","Actual","RAG",null,"Q","Topic","Max","Actual","RAG",null,"Q","Topic","Max","Actual","RAG"]
[1,"Add 2-digit number and 3-digit number",1,{"$f":"HLOOKUP(D1,MockP1H,3,FALSE)","v":0},{"$f":"D6/C6","v":0},null,1,"Use lines of symmetry ",1,{"$f":"HLOOKUP(D1,MockP2H,3,FALSE)","v":0},{"$f":"J6/I6","v":0},null,1,"Count in multiples of 6, 7, 9, 25 and 100 / Generate and describe linear sequences",2,{"$f":"HLOOKUP(D1,MockP3H,3,FALSE)","v":0},{"$f":"P6/O6","v":0}]
[2,"Subtract proper fractions with the same denominators ",1,{"$f":"HLOOKUP(D1,MockP1H,4,FALSE)","v":0},{"$f":"D7/C7","v":0},null,2,"Use inverse operations to check answers",1,{"$f":"HLOOKUP(D1,MockP2H,4,FALSE)","v":0},0,null,2,"Find possibilities of combinations of two variables",1,{"$f":"HLOOKUP(D1,MockP3H,4,FALSE)","v":0},0]
[3,"Multiply 1-digit number by 2-digit number",1,{"$f":"HLOOKUP($D$1,MockP1H,5,FALSE)","v":0},0,null,3,"Measure lengths (cm/mm)",1,{"$f":"HLOOKUP($D$1,MockP2H,5,FALSE)","v":0},0,null,"3","Determine the value of each digit in numbers up to 1 000 000",1,{"$f":"HLOOKUP($D$1,MockP3H,5,FALSE)","v":0},0]
[4,"Divide 3-digit number by 1",1,{"$f":"HLOOKUP($D$1,MockP1H,6,FALSE)","v":0},0,null,4,"Recognise families of equivalent fractions",1,{"$f":"HLOOKUP($D$1,MockP2H,6,FALSE)","v":0},0,null,4,"Add and subtract whole numbers with more than 4 digits using formal written methods",2,{"$f":"HLOOKUP($D$1,MockP3H,6,FALSE)","v":0},0]
[5,"Know the 11 Times Table division facts",1,{"$f":"HLOOKUP($D$1,MockP1H,7,FALSE)","v":0},0,null,"5a","Use negative numbers in context / Calcualte intervals across zero ",1,{"$f":"HLOOKUP($D$1,MockP2H,7,FALSE)","v":0},0,null,"5","Identify multiples and factors, including finding factor pairs and common factors of numbers",2,{"$f":"HLOOKUP($D$1,MockP3H,7,FALSE)","v":0},0]
[6,"Multiply three numbers together",1,{"$f":"HLOOKUP($D$1,MockP1H,8,FALSE)","v":0},0,null,"5b","Use negative numbers in context / Solve problems using information presented in tables",1,{"$f":"HLOOKUP($D$1,MockP2H,8,FALSE)","v":0},0,null,6,"Interpret and construct pie charts",2,{"$f":"HLOOKUP($D$1,MockP3H,8,FALSE)","v":0},0]
[7,"Subtract 3-digit number from 4-digit number ",1,{"$f":"HLOOKUP($D$1,MockP1H,9,FALSE)","v":0},0,null,"6","Count forwards and backwards in steps of 10 up to 1 000 000",1,{"$f":"HLOOKUP($D$1,MockP2H,9,FALSE)","v":0},0,null,"7a","Divide numbers  using a formal written method and interpret remainders  ",1,{"$f":"HLOOKUP($D$1,MockP3H,9,FALSE)","v":0},0]
[8,"Know and use square numbers",1,{"$f":"HLOOKUP($D$1,MockP1H,10,FALSE)","v":0},0,null,"7","Read and write decimals as fractions",1,{"$f":"HLOOKUP($D$1,MockP2H,10,FALSE)","v":0},0,null,"7b","Divide numbers  using a formal written method and interpret remainders  ",1,{"$f":"HLOOKUP($D$1,MockP3H,10,FALSE)","v":0},0]
[9,"Add decimal numbers (2dp + 1dp)",1,{"$f":"HLOOKUP($D$1,MockP1H,11,FALSE)","v":0},0,null,"8","Solve problems involving multiplication / Recall of 3x, 4x, 8x multiplication tables",2,{"$f":"HLOOKUP($D$1,MockP2H,11,FALSE)","v":0},0,null,8,"Solve problems involving the calculation of percentages ",1,{"$f":"HLOOKUP($D$1,MockP3H,11,FALSE)","v":0},0]
[10,"Find 10 less than a number",1,{"$f":"HLOOKUP($D$1,MockP1H,12,FALSE)","v":0},0,null,"9","Read, write, order and compare numbers up to 10 000 000",1,{"$f":"HLOOKUP($D$1,MockP2H,12,FALSE)","v":0},0,null,"9","Solve problems involving similar shapes",1,{"$f":"HLOOKUP($D$1,MockP3H,12,FALSE)","v":0},0]
[11,"Use 3 Times Tables to find related facts",1,{"$f":"HLOOKUP($D$1,MockP1H,13,FALSE)","v":0},0,null,"10","Perform mental calculations",2,{"$f":"HLOOKUP($D$1,MockP2H,13,FALSE)","v":0},0,null,"10","Describe positions in all four quadrants using co-ordinates / Use properties of rectangles",1,{"$f":"HLOOKUP($D$1,MockP3H,13,FALSE)","v":0},0]
[12,"Use 9 Times Tables to find related facts",1,{"$f":"HLOOKUP($D$1,MockP1H,14,FALSE)","v":0},0,null,"11","Describe simple 3-D shapes",2,{"$f":"HLOOKUP($D$1,MockP2H,14,FALSE)","v":0},0,null,"11","Solve problems involving addition and subtraction of measures ",2,{"$f":"HLOOKUP($D$1,MockP3H,14,FALSE)","v":0},0]
[13,"Use known facts to divide",1,{"$f":"HLOOKUP($D$1,MockP1H,15,FALSE)","v":0},{"$f":"D18/C18","v":0},null,"12","Draw and translate simple shapes ",1,{"$f":"HLOOKUP($D$1,MockP2H,15,FALSE)","v":0},0,null,"12","Solve problems involving the relative sizes of two quantities using multiplication and division ",1,{"$f":"HLOOKUP($D$1,MockP3H,15,FALSE)","v":0},0]
[14,"Subtract 3-digit number from 4-digit number",1,{"$f":"HLOOKUP($D$1,MockP1H,16,FALSE)","v":0},0,null,"13","Convert mixed numbers and improper fractions",1,{"$f":"HLOOKUP($D$1,MockP2H,16,FALSE)","v":0},0,null,"13","Solve problems involving multiplication and division /  Convert units of metric measures  ",2,{"$f":"HLOOKUP($D$1,MockP3H,16,FALSE)","v":0},0]
[15,"Partition numbers up to 10 million",1,{"$f":"HLOOKUP($D$1,MockP1H,17,FALSE)","v":0},0,null,"14","Compare and order fractions, including fractions > 1",1,{"$f":"HLOOKUP($D$1,MockP2H,17,FALSE)","v":0},0,null,"14","Find unknown angles  / Know properties of triangles and quadrilaterals ",1,{"$f":"HLOOKUP($D$1,MockP3H,17,FALSE)","v":0},0]
[16,"Subtract decimal (1dp) from a whole number",1,{"$f":"HLOOKUP($D$1,MockP1H,18,FALSE)","v":0},0,null,"15","Solve problems involving multiplication ",2,{"$f":"HLOOKUP($D$1,MockP2H,18,FALSE)","v":0},0,null,"15a","Use simple formulae / Solve problems involving the four operations",1,{"$f":"HLOOKUP($D$1,MockP3H,18,FALSE)","v":0},0]
[17,"Add proper fractions with denominators that are multiples",1,{"$f":"HLOOKUP($D$1,MockP1H,19,FALSE)","v":0},0,null,"16","Add and subtract numbers mentally ",2,{"$f":"HLOOKUP($D$1,MockP2H,19,FALSE)","v":0},0,null,"15b","Use simple formulae / Solve problems involving the four operations",2,{"$f":"HLOOKUP($D$1,MockP3H,19,FALSE)","v":0},0]
[18,"Divide decimal (1dp) by 100",1,{"$f":"HLOOKUP($D$1,MockP1H,20,FALSE)","v":0},0,null,"17","Convert between metric units / Solve problems involving measures",3,{"$f":"HLOOKUP($D$1,MockP2H,20,FALSE)","v":0},0,null,16,"Solve problems involving finding of fractions of quantities ",2,{"$f":"HLOOKUP($D$1,MockP3H,20,FALSE)","v":0},0]
[19,"Find fraction of a quantity",1,{"$f":"HLOOKUP($D$1,MockP1H,21,FALSE)","v":0},0,null,"18","Calculate the mean",2,{"$f":"HLOOKUP($D$1,MockP2H,21,FALSE)","v":0},0,null,17,"Identify 3-D shapes from 2-D representations / Recognise and use nets of 3-D shapes",1,{"$f":"HLOOKUP($D$1,MockP3H,21,FALSE)","v":0},0]
[20,"Multiply 3-digit number by 2-digit number",2,{"$f":"HLOOKUP($D$1,MockP1H,22,FALSE)","v":0},0,null,"19","Use estimation to check answers to calculations",1,{"$f":"HLOOKUP($D$1,MockP2H,22,FALSE)","v":0},0,null,"18","Add and subtract fractions with different denominators",2,{"$f":"HLOOKUP($D$1,MockP3H,22,FALSE)","v":0},0]
[21,"Find simple percentage (multiple of 10) of a quantity",1,{"$f":"HLOOKUP($D$1,MockP1H,23,FALSE)","v":0},0,null,"20","Solve problems involving multiplication and division ",2,{"$f":"HLOOKUP($D$1,MockP2H,23,FALSE)","v":0},0,null,"19","Solve problems involving multiplying and dividing numbers by 10, 100 and 1000 ",2,{"$f":"HLOOKUP($D$1,MockP3H,23,FALSE)","v":0},0]
[22,"Divide 3-digit number by 2-digit number",2,{"$f":"HLOOKUP($D$1,MockP1H,24,FALSE)","v":0},0,null,"21a","Find pairs of numbers that satisfy an equation with 2 unknowns",1,{"$f":"HLOOKUP($D$1,MockP2H,24,FALSE)","v":0},0,null,20,"Solve problems involving multiplication and addition / Days in each month  ",2,{"$f":"HLOOKUP($D$1,MockP3H,24,FALSE)","v":0},0]
[23,"Multiply whole number by decimal (1dp and <1)",1,{"$f":"HLOOKUP($D$1,MockP1H,25,FALSE)","v":0},0,null,"21b","Find pairs of numbers that satisfy an equation with 2 unknowns",1,{"$f":"HLOOKUP($D$1,MockP2H,25,FALSE)","v":0},0,null,"21a","Solve problems involving converting between units of time",1,{"$f":"HLOOKUP($D$1,MockP3H,25,FALSE)","v":0},0]
[24,"Add proper fractions with different denominators ",1,{"$f":"HLOOKUP($D$1,MockP1H,26,FALSE)","v":0},0,null,22,"Calculate the volume of cubes and cuboids",1,{"$f":"HLOOKUP($D$1,MockP2H,26,FALSE)","v":0},0,null,"21b","Solve problems involving converting between units of time",1,{"$f":"HLOOKUP($D$1,MockP3H,26,FALSE)","v":0},0]
[25,"Add mixed number and a proper fraction with the same denominators ",1,{"$f":"HLOOKUP($D$1,MockP1H,27,FALSE)","v":0},0,null,"23","Multiply proper fractions and mixed numbers by whole numbers",2,{"$f":"HLOOKUP($D$1,MockP2H,27,FALSE)","v":0},0,null,"Total Marks",null,{"$f":"SUM(O6:O45)","v":35},{"$f":"SUM(P6:P45)","v":0},{"$f":"P30/O30","v":0}]
[26,"Subtract decimal (3dp) from a whole number",1,{"$f":"HLOOKUP($D$1,MockP1H,28,FALSE)","v":0},0,null,"Total Marks",null,{"$f":"SUM(I6:I30)","v":35},{"$f":"SUM(J6:J30)","v":0},{"$f":"J31/I31","v":0}]
[27,"Multiply whole number by decimal (1dp and >1)",1,{"$f":"HLOOKUP($D$1,MockP1H,29,FALSE)","v":0},0]
[28," Subtract proper fraction from mixed number with denominators that are multiples",1,{"$f":"HLOOKUP($D$1,MockP1H,30,FALSE)","v":0},0,null,null,null,null,null,null,null,null,"Paper 1 ",{"$f":"D42","v":0}]
[29,"Multiply 4-digit number by 2-digit number",2,{"$f":"HLOOKUP($D$1,MockP1H,31,FALSE)","v":0},0,null,null,null,null,null,null,null,null,"Paper 2 ",{"$f":"J31","v":0}]
[30," Find 99% of a quantity",1,{"$f":"HLOOKUP($D$1,MockP1H,32,FALSE)","v":0},{"$f":"D35/C35","v":0}]
[31,"Divide unit fraction by 1-digit number",1,{"$f":"HLOOKUP($D$1,MockP1H,33,FALSE)","v":0},0,null,null,null,null,null,null,null,null,"Paper 3 ",{"$f":"P30","v":0}]
[32,"Use the order of operations",1,{"$f":"HLOOKUP($D$1,MockP1H,34,FALSE)","v":0},0]
[33,"Multiply mixed number by whole number",1,{"$f":"HLOOKUP($D$1,MockP1H,35,FALSE)","v":0},0,null,null,null,null,null,null,null,null,"TOTAL ",{"$f":"SUM(O33:P37)","v":0}]
[34,"Find a complex percentage (not multiple of 5 or 10)  of a quantity",1,{"$f":"HLOOKUP($D$1,MockP1H,36,FALSE)","v":0},0]
[35,"Subtract mixed numbers with different denominators ",1,{"$f":"HLOOKUP($D$1,MockP1H,37,FALSE)","v":0},0,null,null,null,null,null,null,null,null,"SCALED SCORE",{"$f":"VLOOKUP(O38, Scale, 2, FALSE)","v":0}]
[36,"Divide 4-digit number by 2-digit number",2,{"$f":"HLOOKUP($D$1,MockP1H,38,FALSE)","v":0},0]
["Total Marks",null,{"$f":"SUM(C6:C41)","v":40},{"$f":"SUM(D6:D41)","v":0},{"$f":"D42/C42","v":0}]

{"sheet":"BLANK Analysis","index":6,"n_rows":41,"n_cols":17,"rows_kept":41,"cut":false,"hidden":false,"merged":[[40,0,40,1],[31,14,31,15],[32,13,33,13],[32,14,33,15],[33,7,38,12],[34,13,35,13],[34,14,35,15],[36,13,37,13],[36,14,37,15],[38,13,39,13],[38,14,39,15],[2,12,2,16],[28,12,28,13],[29,6,30,7],[29,8,30,8],[29,9,30,9],[29,10,30,10],[0,0,0,1],[1,0,1,4],[1,5,1,10],[2,0,2,4],[2,6,2,10]]}
["Key Stage 2 - 2018"]
["Name: ",null,null,null,null,"________________________________________________"]
["PAPER 1 - Arithmetic",null,null,null,null,null,"PAPER 2 - Reasoning",null,null,null,null,null,"PAPER 3 - Reasoning"]
["Q","Topic","Max","Actual","RAG",null,"Q","Topic","Max","Actual","RAG",null,"Q","Topic","Max","Actual","RAG"]
[1,"Add 2-digit number and 3-digit number",1,null,null,null,1,"Use lines of symmetry ",1,null,null,null,1,"Count in multiples of 6, 7, 9, 25 and 100 / Generate and describe linear sequences",2]
[2,"Subtract proper fractions with the same denominators ",1,null,null,null,2,"Use inverse operations to check answers",1,null,null,null,2,"Find possibilities of combinations of two variables",1]
[3,"Multiply 1-digit number by 2-digit number",1,null,null,null,3,"Measure lengths (cm/mm)",1,null,null,null,"3","Determine the value of each digit in numbers up to 1 000 000",1]
[4,"Divide 3-digit number by 1",1,null,null,null,4,"Recognise families of equivalent fractions",1,null,null,null,4,"Add and subtract whole numbers with more than 4 digits using formal written methods",2]
[5,"Know the 11 Times Table division facts",1,null,null,null,"5a","Use negative numbers in context / Calcualte intervals across zero ",1,null,null,null,"5","Identify multiples and factors, including finding factor pairs and common factors of numbers",2]
[6,"Multiply three numbers together",1,null,null,null,"5b","Use negative numbers in context / Solve problems using information presented in tables",1,null,null,null,6,"Interpret and construct pie charts",2]
[7,"Subtract 3-digit number from 4-digit number ",1,null,null,null,"6","Count forwards and backwards in steps of 10 up to 1 000 000",1,null,null,null,"7a","Divide numbers  using a formal written method and interpret remainders  ",1]
[8,"Know and use square numbers",1,null,null,null,"7","Read and write decimals as fractions",1,null,null,null,"7b","Divide numbers  using a formal written method and interpret remainders  ",1]
[9,"Add decimal numbers (2dp + 1dp)",1,null,null,null,"8","Solve problems involving multiplication / Recall of 3x, 4x, 8x multiplication tables",2,null,null,null,8,"Solve problems involving the calculation of percentages ",1]
[10,"Find 10 less than a number",1,null,null,null,"9","Read, write, order and compare numbers up to 10 000 000",1,null,null,null,"9","Solve problems involving similar shapes",1]
[11,"Use 3 Times Tables to find related facts",1,null,null,null,"10","Perform mental calculations",2,null,null,null,"10","Describe positions in all four quadrants using co-ordinates / Use properties of rectangles",1]
[12,"Use 9 Times Tables to find related facts",1,null,null,null,"11","Describe simple 3-D shapes",2,null,null,null,"11","Solve problems involving addition and subtraction of measures ",2]
[13,"Use known facts to divide",1,null,null,null,"12","Draw and translate simple shapes ",1,null,null,null,"12","Solve problems involving the relative sizes of two quantities using multiplication and division ",1]
[14,"Subtract 3-digit number from 4-digit number",1,null,null,null,"13","Convert mixed numbers and improper fractions",1,null,null,null,"13","Solve problems involving multiplication and division /  Convert units of metric measures  ",2]
[15,"Partition numbers up to 10 million",1,null,null,null,"14","Compare and order fractions, including fractions > 1",1,null,null,null,"14","Find unknown angles  / Know properties of triangles and quadrilaterals ",1]
[16,"Subtract decimal (1dp) from a whole number",1,null,null,null,"15","Solve problems involving multiplication ",2,null,null,null,"15a","Use simple formulae / Solve problems involving the four operations",1]
[17,"Add proper fractions with denominators that are multiples",1,null,null,null,"16","Add and subtract numbers mentally ",2,null,null,null,"15b","Use simple formulae / Solve problems involving the four operations",2]
[18,"Divide decimal (1dp) by 100",1,null,null,null,"17","Convert between metric units / Solve problems involving measures",3,null,null,null,16,"Solve problems involving finding of fractions of quantities ",2]
[19,"Find fraction of a quantity",1,null,null,null,"18","Calculate the mean",2,null,null,null,17,"Identify 3-D shapes from 2-D representations / Recognise and use nets of 3-D shapes",1]
[20,"Multiply 3-digit number by 2-digit number",2,null,null,null,"19","Use estimation to check answers to calculations",1,null,null,null,"18","Add and subtract fractions with different denominators",2]
[21,"Find simple percentage (multiple of 10) of a quantity",1,null,null,null,"20","Solve problems involving multiplication and division ",2,null,null,null,"19","Solve problems involving multiplying and dividing numbers by 10, 100 and 1000 ",2]
[22,"Divide 3-digit number by 2-digit number",2,null,null,null,"21a","Find pairs of numbers that satisfy an equation with 2 unknowns",1,null,null,null,20,"Solve problems involving multiplication and addition / Days in each month  ",2]
[23,"Multiply whole number by decimal (1dp and <1)",1,null,null,null,"21b","Find pairs of numbers that satisfy an equation with 2 unknowns",1,null,null,null,"21a","Solve problems involving converting between units of time",1]
[24,"Add proper fractions with different denominators ",1,null,null,null,22,"Calculate the volume of cubes and cuboids",1,null,null,null,"21b","Solve problems involving converting between units of time",1]
[25,"Add mixed number and a proper fraction with the same denominators ",1,null,null,null,"23","Multiply proper fractions and mixed numbers by whole numbers",2,null,null,null,"Total Marks",null,{"$f":"SUM(O5:O44)","v":35}]
[26,"Subtract decimal (3dp) from a whole number",1,null,null,null,"Total Marks",null,{"$f":"SUM(I5:I29)","v":35}]
[27,"Multiply whole number by decimal (1dp and >1)",1]
[28," Subtract proper fraction from mixed number with denominators that are multiples",1,null,null,null,null,null,null,null,null,null,null,"Paper 1 "]
[29,"Multiply 4-digit number by 2-digit number",2,null,null,null,null,null,null,null,null,null,null,"Paper 2 "]
[30," Find 99% of a quantity",1]
[31,"Divide unit fraction by 1-digit number",1,null,null,null,null,null,null,null,null,null,null,"Paper 3 "]
[32,"Use the order of operations",1]
[33,"Multiply mixed number by whole number",1,null,null,null,null,null,null,null,null,null,null,"TOTAL "]
[34,"Find a complex percentage (not multiple of 5 or 10)  of a quantity",1]
[35,"Subtract mixed numbers with different denominators ",1]
[36,"Divide 4-digit number by 2-digit number",2]
["Total Marks",null,{"$f":"SUM(C5:C40)","v":40}]

{"sheet":"Scaled Score Look Up","index":7,"n_rows":112,"n_cols":2,"rows_kept":112,"cut":false,"hidden":false,"merged":[]}
["SCALE SCORE LOOK UP "]
["Raw Score"]
[1,"N"]
[2,"N"]
[3,80]
[4,{"$f":"B5","v":80}]
[5,{"$f":"B6","v":80}]
[6,80]
[7,80]
[8,81]
[9,82]
[10,82]
[11,83]
[12,84]
[13,84]
[14,85]
[15,86]
[16,86]
[17,87]
[18,87]
[19,88]
[20,88]
[21,88]
[22,89]
[23,89]
[24,90]
[25,90]
[26,90]
[27,91]
[28,91]
[29,91]
[30,92]
[31,92]
[32,92]
[33,93]
[34,93]
[35,93]
[36,94]
[37,94]
[38,94]
[39,94]
[40,95]
[41,95]
[42,95]
[43,96]
[44,96]
[45,96]
[46,96]
[47,97]
[48,97]
[49,97]
[50,97]
[51,97]
[52,98]
[53,98]
[54,98]
[55,98]
[56,99]
[57,99]
[58,99]
[59,99]
[60,100]
[61,100]
[62,100]
[63,100]
[64,100]
[65,101]
[66,101]
[67,101]
[68,101]
[69,{"$f":"B70","v":101}]
[70,102]
[71,102]
[72,102]
[73,102]
[74,103]
[75,103]
[76,103]
[77,103]
[78,104]
[79,104]
[80,104]
[81,104]
[82,105]
[83,105]
[84,105]
[85,105]
[86,106]
[87,106]
[88,106]
[89,106]
[90,107]
[91,107]
[92,107]
[93,108]
[94,108]
[95,109]
[96,109]
[97,109]
[98,110]
[99,110]
[100,111]
[101,111]
[102,112]
[103,113]
[104,113]
[105,114]
[106,115]
[107,116]
[108,117]
[109,119]
[110,120]

{"sheet":"Sheet1","index":8,"n_rows":0,"n_cols":0,"rows_kept":0,"cut":false,"hidden":true,"merged":[]}